Workbook

Sheet Overblik
A1: =A907 -> Retten i Holstebro | B1: =B907 -> 101.5209374 | C1: 93.55184078 | D1: 106.2600373 | E1: 94.7540087 | F1: 100.5059453 | G1: 95.41783591 | H1: 0.2045676638 | I1: 0.1823747512 | J1: 84 | K1: 79 | L1: 413.4242424 | M1: 474.4166667 | N1: 34.27151899 | O1: 32.42947 | P1: 48.3 | Q1: 37.03 | R1: 71.42857143 | S1: 55.55555556 | T1: 50 | U1: 50 | V1: 7.1 | W1: 7.8 | X1: 14.1 | Y1: 11.2 | Z1: 37.03958 | AA1: 36.90904 | AB1: 9.49824 | AC1: 9.99869 | AD1: 20.18777 | AE1: 20.2146 | AF1: 19.09541128 | AG1: 19.36654729 | AH1: 0 | AI1: =AI902 -> 0 | AJ1: 0
A2: =A ->  | B2: =AH1 -> 0
B3: ÅRSNØGLETAL 2015
I4: Evt. sammenligning
B5: =A1 -> Retten i Holstebro | I5: =B35 -> Retten i Herning | L5: Datatabeller
D6: 2014 | E6: 2015 | F6: Gnst. BR 2015 | G6: 5. bedste 2015 | I6: 2014 | J6: 2015 | L6: KLIK PÅ PILENE FOR AT HOPPE TIL DATA:
B7: Samlet produktivitet, retten (indeks) | D7: =B1 -> 101.5209374 | E7: =C1 -> 93.55184078 | F7: 101.3907711 | G7: 107.0113492 | I7: =IF($B$5=$I$5,"",C35) -> 101.4963296 | J7: =IF($B$5=$I$5,"",D35) -> 96.0568853 | M7: Produktivitet, samlet for retten
B8: Samlet produktivitet, jurister (indeks) | D8: =D1 -> 106.2600373 | E8: =E1 -> 94.7540087 | F8: 101.2430081 | G8: 108.7266625 | I8: =IF($B$5=$I$5,"",E35) -> 97.05183344 | J8: =IF($B$5=$I$5,"",F35) -> 90.88135488 | M8: Produktivitet, jurister
B9: Samlet produktivitet, kontorfunktionærer (indeks) | D9: =F1 -> 100.5059453 | E9: =G1 -> 95.41783591 | F9: 102.0214031 | G9: 109.9053508 | I9: =IF($B$5=$I$5,"",G35) -> 106.6508918 | J9: =IF($B$5=$I$5,"",H35) -> 101.5562426 | M9: Produktivitet, kontor
B10: Årsværksandel til generel ledelse og administration | D10: =H1 -> 0.2045676638 | E10: =I1 -> 0.1823747512 | F10: ='Generel ledelse_Adm.'!J14 -> 0.173935252 | I10: =IF($B$5=$I$5,"",I35*100) -> 18.93007858 | J10: =IF($B$5=$I$5,"",J35*100) -> 17.77540573 | M10: Årsværk, ledelse og administration
B11: Gnst. sagsbehandlingstid, domsmandssager (dage) | D11: =J1 -> 84 | E11: =K1 -> 79 | F11: 126.0869684 | G11: 81 | I11: =IF($B$5=$I$5,"",K35) -> 91 | J11: =IF($B$5=$I$5,"",L35) -> 89 | M11: Aktivitet ved retten
B12: Gnst. sagsbehandlingstid, hovedforhandlet alm. civil sag (dage) | D12: =L1 -> 413.4242424 | E12: =M1 -> 474.4166667 | F12: 496.3948067 | G12: 430.8681319 | I12: =IF($B$5=$I$5,"",M35) -> 520.7297297 | J12: =IF($B$5=$I$5,"",N35) -> 492.2277228 | M12: Målopfyldelse, straffesager
B13: Gnst. sagsbehandlingstid, almindelig fogedsag (dage) | D13: =N1 -> 34.27151899 | E13: =O1 -> 32.42947 | F13: 64.0613836 | G13: 47.93633 | I13: =IF($B$5=$I$5,"",O35) -> 46.73239437 | J13: =IF($B$5=$I$5,"",P35) -> 55.02592 | M13: Målopfyldelse, civile sager
B14: Gnst. sagsbehandlingstid, boudlæg (dage) | D14: =P1 -> 48.3 | E14: =Q1 -> 37.03 | F14: 44.5094278 | G14: 37 | I14: =IF($B$5=$I$5,"",Q35) -> 49.71 | J14: =IF($B$5=$I$5,"",R35) -> 66.98 | M14: Målopfyldelse, fogedsager
B15: Målopfyldelse, voldssager 37-dages frist (procent) | D15: =R1 -> 71.42857143 | E15: =S1 -> 55.55555556 | F15: 39.66005666 | G15: 55.55555556 | I15: =IF($B$5=$I$5,"",S35) -> 76.92307692 | J15: =IF($B$5=$I$5,"",T35) -> 53.84615385 | M15: Målopfyldelse, skiftesager
B16: Målopfyldelse, voldtægtssager 37-dages frist (procent) | D16: =IF(T1=999," -",T1) -> 50 | E16: =IF(U1=999," -",U1) -> 50 | F16: 32.59259259 | G16: 50 | I16: =IF($B$5=$I$5,"",U35) -> 66.66666667 | J16: =IF($B$5=$I$5,"",V35) -> 100 | M16: Gnst. Sagsbehandlingstid, straffesager
B17: Gnst. sygefravær pr. medarbejder (dage pr. år) | D17: =V1 -> 7.1 | E17: =W1 -> 7.8 | F17: 9.1 | G17: 5.9 | I17: =IF($B$5=$I$5,"",W35) -> 5.2 | J17: =IF($B$5=$I$5,"",X35) -> 4.1 | M17: Gnst. Sagsbehandlingstid, civile sager
B18: Personaleomsætningsprocent (procent) | D18: =X1 -> 14.1 | E18: =Y1 -> 11.2 | F18: 9.954166667 | I18: =IF($B$5=$I$5,"",Y35) -> 15.6 | J18: =IF($B$5=$I$5,"",Z35) -> 13.3 | M18: Gnst. Sagsbehandlingstid, fogedsager
B19: Samlet årsværksforbrug, retten (årsværk) | D19: =Z1 -> 37.03958 | E19: =AA1 -> 36.90904 | F19: =Årsværk_Pers.kat!O8/24 -> 60.38491042 | I19: =IF($B$5=$I$5,"",AA35) -> 37.47035 | J19: =IF($B$5=$I$5,"",AB35) -> 37.31716 | M19: Gnst. Sagsbehandlingstid, skiftesager
B20: Samlet årsværksforbrug, jurister (årsværk) | D20: =AB1 -> 9.49824 | E20: =AC1 -> 9.99869 | F20: =Årsværk_Pers.kat!J8/24 -> 17.97931125 | I20: =IF($B$5=$I$5,"",AC35) -> 11.39788 | J20: =IF($B$5=$I$5,"",AD35) -> 11.45896 | M20: HR-nøgletal
B21: Samlet årsværksforbrug, kontorfunktionærer (årsværk) | D21: =AD1 -> 20.18777 | E21: =AE1 -> 20.2146 | F21: =Årsværk_Pers.kat!K8/24 -> 33.39833167 | I21: =IF($B$5=$I$5,"",AE35) -> 20.21608 | J21: =IF($B$5=$I$5,"",AF35) -> 20.62696 | M21: Årsværksforbrug, personalekategorier
B22: Samlet lønsumsforbrug (mio. kr.) | D22: =AF1 -> 19.09541128 | E22: =AG1 -> 19.36654729 | F22: ='HR-nøgletal_lønsum'!I7 -> 31.31840759 | I22: =IF($B$5=$I$5,"",AG35) -> 19.00288448 | J22: =IF($B$5=$I$5,"",AH35) -> 18.70789614 | M22: Årsværksforbrug, sagsområder
B24: Noter:
B25: 1) Ved beregningen af indeks for produktivitet samlet for retten, for jurister og kontor er indeks 100 lig gennemsnittet ved byretterne i 2014.
B27: 2) Årsværksandel til generel ledelse og administration er samlet for retten og inkluderer alle personalegrupper.
B28: 3) Den gennemsnitlige sagsbehandlingstid for en hovedforhandlet almindelig civil sag inkluderer sagstypen almindelige sager. Boligretssager og småsager indgår ikke.
B29: 4) Ansatte under socialt kapitel indgår ikke i beregningen af det gennemsnitlige sygefravær pr. medarbejder (årsværk).
B30: 5) Lønsumsforbruget inkluderer egentlig løn, over- og merarbejde, stævningsmænd, refusioner og pensionsbidrag.
B32: KLIK FOR AT AKTIVERE SAMMENLIGNING:
B34: =A926 -> 0 | C34: =B925 -> 60.27839646 | D34: 60.23952188 | E34: 60.2691734 | F34: 61.26407707 | G34: 65.10749108 | H34: 70.13614744 | I34: 0.3262324987 | J34: 0.3652678355 | K34: 35 | L34: 35 | M34: 332.1111111 | N34: 267 | O34: 27.50285249 | P34: 29.08736 | Q34: 16.75 | R34: 20.89 | S34: 78.94736842 | T34: 100 | U34: - | V34: 100 | W34: 7.4 | X34: 1.8 | Y34: 19.4 | Z34: 22.5 | AA34: 14.58443 | AB34: 13.87751 | AC34: 3.77068 | AD34: 3.45026 | AE34: 7.52959 | AF34: 6.70088 | AG34: 7.08154941
B35: =A908 -> Retten i Herning | C35: =B908 -> 101.4963296 | D35: 96.0568853 | E35: 97.05183344 | F35: 90.88135488 | G35: 106.6508918 | H35: 101.5562426 | I35: 0.1893007858 | J35: 0.1777540573 | K35: 91 | L35: 89 | M35: 520.7297297 | N35: 492.2277228 | O35: 46.73239437 | P35: 55.02592 | Q35: 49.71 | R35: 66.98 | S35: 76.92307692 | T35: 53.84615385 | U35: 66.66666667 | V35: 100 | W35: 5.2 | X35: 4.1 | Y35: 15.6 | Z35: 13.3 | AA35: 37.47035 | AB35: 37.31716 | AC35: 11.39788 | AD35: 11.45896 | AE35: 20.21608 | AF35: 20.62696 | AG35: 19.00288448 | AH35: 18.70789614 | AI35: 0
B900: Samlet produktivitet, retten | D900: Samlet produktivitet, jurister | F900: Samlet produktivitet, kontor | H900: ÅRVK ledelse og adm. | J900: Sagstider domsmandssager | L900: Sagstider hfh. alm. Civil | N900: Sagstid alm. fogedsag | P900: Sagstider boudlæg | R900: Målopfyldelse vold | T900: Målopfyldelse voldtægt | V900: Sygefravær | X900: Personaleomsætning | Z900: Årsværk retten | AB900: Årsværk jurist | AD900: Årsværk kontor | AF900: Samlet lønsum
A901: Ret | B901: 2014 | C901: 2015 | D901: 2014 | E901: 2015 | F901: 2014 | G901: 2015 | H901: 2014 | I901: 2015 | J901: 2014 | K901: 2015 | L901: 2014 | M901: 2015 | N901: 2014 | O901: 2015 | P901: 2014 | Q901: 2015 | R901: 2014 | S901: 2015 | T901: 2014 | U901: 2015 | V901: 2014 | W901: 2015 | X901: 2014 | Y901: 2015 | Z901: 2014 | AA901: 2015 | AB901: 2014 | AC901: 2015 | AD901: 2014 | AE901: 2015 | AF901: 2014 | AG901: 2015
A902: Retten i Hjørring | B902: 106.5689847 | C902: 104.0810952 | D902: 109.838844 | E902: 109.6687383 | F902: 101.0495838 | G902: 100.0445898 | H902: 0.1665256771 | I902: 0.1843247158 | J902: 95 | K902: 117 | L902: 525.5742574 | M902: 545.483871 | N902: 49.91041129 | O902: 59.71777 | P902: 48.61 | Q902: 54.05 | R902: 56.25 | S902: 55.55555556 | T902: 33.33333333 | U902: 41.66666667 | V902: 8.3 | W902: 5.9 | X902: 5.7 | Y902: 5.8 | Z902: 50.05401 | AA902: 50.40589 | AB902: 13.73052 | AC902: 13.18267 | AD902: 28.51714 | AE902: 28.19354 | AF902: 23.90913679 | AG902: 23.92788749
A903: Retten i Aalborg | B903: 100.0135863 | C903: 107.4091758 | D903: 99.0699192 | E903: 110.9242387 | F903: 102.2864447 | G903: 101.1086801 | H903: 0.1197207669 | I903: 0.1409171381 | J903: 114 | K903: 125 | L903: 527.4122807 | M903: 564.0818713 | N903: 43.94413408 | O903: 64.81348 | P903: 49.36 | Q903: 43.56 | R903: 54.28571429 | S903: 43.47826087 | T903: 100 | U903: 42.85714286 | V903: 8.5 | W903: 9.8 | X903: 14.9 | Y903: 6 | Z903: 74.76297 | AA903: 70.46448 | AB903: 23.25516 | AC903: 20.9191 | AD903: 40.42406 | AE903: 41.67825 | AF903: 36.63402749 | AG903: 35.33456669
A904: Retten i Randers | B904: 106.6743809 | C904: 104.9579557 | D904: 105.7096955 | E904: 101.7030454 | F904: 114.4156956 | G904: 115.7513674 | H904: 0.1929961719 | I904: 0.1965922169 | J904: 124 | K904: 123 | L904: 555.5109489 | M904: 526.6923077 | N904: 58.37249399 | O904: 41.02233 | P904: 40.44 | Q904: 43.53 | R904: 47.72727273 | S904: 30.95238095 | T904: 66.66666667 | U904: 44.44444444 | V904: 8.6 | W904: 7.5 | X904: 16.8 | Y904: 7.2 | Z904: 51.06822 | AA904: 51.2652 | AB904: 14.54934 | AC904: 14.40619 | AD904: 26.15055 | AE904: 25.55332 | AF904: 25.62575263 | AG904: 25.50176153
A905: Retten i Århus | B905: 98.83958731 | C905: 98.51713253 | D905: 98.77470479 | E905: 95.11367309 | F905: 104.7897741 | G905: 105.2212842 | H905: 0.1516882453 | I905: 0.1320579781 | J905: 139 | K905: 157 | L905: 483.0638298 | M905: 533.1290323 | N905: 59.21347896 | O905: 62.2823 | P905: 56.38 | Q905: 61.94 | R905: 27.08333333 | S905: 15.68627451 | T905: 14.28571429 | U905: 50 | V905: 7.5 | W905: 8 | X905: 13.7 | Y905: 12.3 | Z905: 81.20104 | AA905: 79.3148 | AB905: 25.26038 | AC905: 25.42637 | AD905: 41.33383 | AE905: 40.34725 | AF905: 40.6273674 | AG905: 40.90032181
A906: Retten i Viborg | B906: 99.02747487 | C906: 98.58877344 | D906: 93.87333748 | E906: 92.40745805 | F906: 107.5274673 | G906: 109.9053508 | H906: 0.1776954429 | I906: 0.1680571436 | J906: 128 | K906: 100 | L906: 519.2689655 | M906: 481.7142857 | N906: 51.79351254 | O906: 59.8391 | P906: 40.5 | Q906: 38.33 | R906: 62.16216216 | S906: 45 | T906: 100 | U906: 60 | V906: 6.3 | W906: 5 | X906: 19.2 | Y906: 7.4 | Z906: 52.03653 | AA906: 51.74993 | AB906: 15.44982 | AC906: 15.68988 | AD906: 26.36467 | AE906: 25.75541 | AF906: 24.61018693 | AG906: 25.06499927
A907: Retten i Holstebro | B907: 101.5209374 | C907: 93.55184078 | D907: 106.2600373 | E907: 94.7540087 | F907: 100.5059453 | G907: 95.41783591 | H907: 0.2045676638 | I907: 0.1823747512 | J907: 84 | K907: 79 | L907: 413.4242424 | M907: 474.4166667 | N907: 34.27151899 | O907: 32.42947 | P907: 48.3 | Q907: 37.03 | R907: 71.42857143 | S907: 55.55555556 | T907: 50 | U907: 50 | V907: 7.1 | W907: 7.8 | X907: 14.1 | Y907: 11.2 | Z907: 37.03958 | AA907: 36.90904 | AB907: 9.49824 | AC907: 9.99869 | AD907: 20.18777 | AE907: 20.2146 | AF907: 19.09541128 | AG907: 19.36654729
A908: Retten i Herning | B908: 101.4963296 | C908: 96.0568853 | D908: 97.05183344 | E908: 90.88135488 | F908: 106.6508918 | G908: 101.5562426 | H908: 0.1893007858 | I908: 0.1777540573 | J908: 91 | K908: 89 | L908: 520.7297297 | M908: 492.2277228 | N908: 46.73239437 | O908: 55.02592 | P908: 49.71 | Q908: 66.98 | R908: 76.92307692 | S908: 53.84615385 | T908: 66.66666667 | U908: 100 | V908: 5.2 | W908: 4.1 | X908: 15.6 | Y908: 13.3 | Z908: 37.47035 | AA908: 37.31716 | AB908: 11.39788 | AC908: 11.45896 | AD908: 20.21608 | AE908: 20.62696 | AF908: 19.00288448 | AG908: 18.70789614
A909: Retten i Horsens | B909: 94.0760306 | C909: 96.70266376 | D909: 91.48763207 | E909: 91.06302051 | F909: 97.78977408 | G909: 107.3637337 | H909: 0.1918271636 | I909: 0.1828827547 | J909: 111 | K909: 109 | L909: 434.1073826 | M909: 512.7837838 | N909: 46.29432687 | O909: 54.81712 | P909: 65.64 | Q909: 49.9 | R909: 40 | S909: 46.66666667 | T909: 50 | U909: 0 | V909: 7.7 | W909: 14.6 | X909: 15.7 | Y909: 23.2 | Z909: 48.3814 | AA909: 44.84206 | AB909: 14.3927 | AC909: 14.10508 | AD909: 24.3045 | AE909: 21.75263 | AF909: 24.09609649 | AG909: 23.04821055
A910: Retten i Kolding | B910: 105.2415989 | C910: 110.7189195 | D910: 104.057862 | E910: 108.7266625 | F910: 105.2428062 | G910: 113.1400713 | H910: 0.1734292531 | I910: 0.1544863337 | J910: 99 | K910: 98 | L910: 480.371134 | M910: 496.2196532 | N910: 52.97362322 | O910: 50.98938 | P910: 32.84 | Q910: 37 | R910: 60 | S910: 45.23809524 | T910: 75 | U910: 0 | V910: 15.6 | W910: 8.6 | X910: 15.3 | Y910: 11.2 | Z910: 66.6538 | AA910: 65.77966 | AB910: 19.78779 | AC910: 19.39277 | AD910: 36.96165 | AE910: 35.57804 | AF910: 33.98298785 | AG910: 33.44978416
A911: Retten i Esbjerg | B911: 97.61519595 | C911: 96.7070687 | D911: 96.00354257 | E911: 93.56370416 | F911: 96.60856124 | G911: 102.0778835 | H911: 0.1449473346 | I911: 0.1607264903 | J911: 133 | K911: 144 | L911: 627.1860465 | M911: 525.8019802 | N911: 42.71642026 | O911: 45.02331 | P911: 37.5 | Q911: 42.53 | R911: 40 | S911: 51.51515152 | T911: 0 | U911: 20 | V911: 7.5 | W911: 8.7 | X911: 15.2 | Y911: 19.6 | Z911: 51.83652 | AA911: 49.17026 | AB911: 14.62602 | AC911: 14.08996 | AD911: 27.96305 | AE911: 25.86657 | AF911: 25.05472688 | AG911: 24.04603543
A912: Retten i Sønderborg | B912: 107.1358034 | C912: 103.657452 | D912: 110.060348 | E912: 102.0101927 | F912: 104.3571938 | G912: 107.1579073 | H912: 0.1880839061 | I912: 0.1312918888 | J912: 81 | K912: 84 | L912: 405.7076923 | M912: 447.8636364 | N912: 51.7282204 | O912: 62.44327 | P912: 46.27 | Q912: 55.72 | R912: 63.82978723 | S912: 60.71428571 | T912: - | U912: 0 | V912: 6.2 | W912: - | X912: 10.3 | Y912: 7.8 | Z912: 55.80884 | AA912: 54.77322 | AB912: 15.55415 | AC912: 16.37808 | AD912: 32.17316 | AE912: 30.6954 | AF912: 30.87363142 | AG912: 31.31045844
A913: Retten i Odense | B913: 97.54645817 | C913: 107.7756345 | D913: 95.5612803 | E913: 100.0730889 | F913: 100.3803805 | G913: 118.626635 | H913: 0.1668205188 | I913: 0.1664783989 | J913: 92 | K913: 91 | L913: 410.88 | M913: 444 | N913: 60.92986425 | O913: 64.28043 | P913: 45.83 | Q913: 56.57 | R913: 45.71428571 | S913: 37.25490196 | T913: 30.76923077 | U913: 21.05263158 | V913: 10.7 | W913: 8.4 | X913: 7.9 | Y913: 11.3 | Z913: 77.07732 | AA913: 69.33496 | AB913: 23.71285 | AC913: 22.71669 | AD913: 43.9482 | AE913: 37.21079 | AF913: 38.61886183 | AG913: 37.59849863
A914: Retten i Svendborg | B914: 100.5509212 | C914: 101.5783304 | D914: 100.6022996 | E914: 100.5145432 | F914: 104.8915577 | G914: 110.3976219 | H914: 0.1705922523 | I914: 0.1817454407 | J914: 122 | K914: 107 | L914: 477.09375 | M914: 415.9333333 | N914: 56.18881119 | O914: 54.69889 | P914: 32.47 | Q914: 31.89 | R914: 51.28205128 | S914: 22.22222222 | T914: 0 | U914: 0 | V914: 6.2 | W914: 7.6 | X914: 14.5 | Y914: 7 | Z914: 36.62017 | AA914: 36.30126 | AB914: 10.27236 | AC914: 9.97958 | AD914: 20.21508 | AE914: 19.38742 | AF914: 18.51114105 | AG914: 18.3421697
A915: Retten i Nykøbing F. | B915: 99.64711386 | C915: 99.84996103 | D915: 104.2437539 | E915: 102.4183965 | F915: 95.97514863 | G915: 97.81629013 | H915: 0.1807260383 | I915: 0.1781192283 | J915: 80 | K915: 101 | L915: 382.2692308 | M915: 345.7846154 | N915: 46.03074305 | O915: 47.93633 | P915: 35.78 | Q915: 37.36 | R915: 67.30769231 | S915: 45.83333333 | T915: 50 | U915: 50 | V915: 7.4 | W915: 6.1 | X915: 11.5 | Y915: 6.2 | Z915: 50.32492 | AA915: 48.39527 | AB915: 13.82973 | AC915: 14.06912 | AD915: 30.67865 | AE915: 29.58863 | AF915: 25.17850572 | AG915: 24.84873316
A916: Retten i Næstved | B916: 104.2290401 | C916: 108.0240487 | D916: 102.2700435 | E916: 108.8953387 | F916: 105.9821641 | G916: 105.9665874 | H916: 0.2055415245 | I916: 0.1851079177 | J916: 137 | K916: 169 | L916: 502.7627119 | M916: 488.46875 | N916: 69.69931074 | O916: 71.02566 | P916: 36.54 | Q916: 42.57 | R916: 31.81818182 | S916: 15.15151515 | T916: 22.22222222 | U916: 33.33333333 | V916: 8 | W916: 9 | X916: 12.6 | Y916: 6.8 | Z916: 60.64993 | AA916: 59.86801 | AB916: 17.55258 | AC916: 16.36537 | AD916: 34.2524 | AE916: 33.32264 | AF916: 29.79163161 | AG916: 28.62373068
A917: Retten i Holbæk | B917: 104.4338546 | C917: 100.0356061 | D917: 107.3802362 | E917: 103.9788689 | F917: 100.3117717 | G917: 96.70321046 | H917: 0.1726009196 | I917: 0.1852070905 | J917: 92 | K917: 82 | L917: 406.2105263 | M917: 430.8681319 | N917: 62.59675489 | O917: 56.77488 | P917: 39.53 | Q917: 39.28 | R917: 60 | S917: 44 | T917: 33.33333333 | U917: 50 | V917: 8.7 | W917: 8.7 | X917: 18.7 | Y917: 8.7 | Z917: 45.54094 | AA917: 45.11286 | AB917: 12.52644 | AC917: 12.4593 | AD917: 25.08951 | AE917: 25.75207 | AF917: 22.46541318 | AG917: 22.39640585
A918: Retten i Roskilde | B918: 104.7172972 | C918: 107.0113492 | D918: 109.0139217 | E918: 112.0786824 | F918: 98.69595719 | G918: 97.560761 | H918: 0.1794598483 | I918: 0.130837881 | J918: 133 | K918: 144 | L918: 468.0430108 | M918: 510.5789474 | N918: 56.66790871 | O918: 61.36073 | P918: 51.58 | Q918: 54.44 | R918: 26.66666667 | S918: 47.36842105 | T918: 0 | U918: 0 | V918: 6.3 | W918: 12.6 | X918: 11.9 | Y918: 2.9 | Z918: 71.54561 | AA918: 67.56438 | AB918: 20.71814 | AC918: 19.29365 | AD918: 43.09007 | AE918: 42.26722 | AF918: 37.60096141 | AG918: 36.05708979
A919: Retten i Hillerød | B919: 94.64382899 | C919: 96.23343495 | D919: 90.33306401 | E919: 95.99341206 | F919: 106.4487515 | G919: 103.2785969 | H919: 0.1991529722 | I919: 0.1766757866 | J919: 113 | K919: 97 | L919: 502.826087 | M919: 578.5504587 | N919: 52.278487 | O919: 58.339 | P919: 27.85 | Q919: 32.3 | R919: 41.37931034 | S919: 28.57142857 | T919: 50 | U919: 0 | V919: 9.8 | W919: - | X919: 12.9 | Y919: 7.4 | Z919: 51.27185 | AA919: 49.13895 | AB919: 15.82924 | AC919: 14.2453 | AD919: 24.89634 | AE919: 24.07071 | AF919: 25.43023796 | AG919: 24.46727605
A920: Retten i Helsingør | B920: 98.29558739 | C920: 100.0661488 | D920: 88.40223741 | E920: 95.40478558 | F920: 108.6916766 | G920: 105.0123662 | H920: 0.1449705115 | I920: 0.1615991126 | J920: 112 | K920: 163 | L920: 559.9230769 | M920: 470.9816514 | N920: 68.93901858 | O920: 77.39692 | P920: 39.57 | Q920: 43.7 | R920: 40 | S920: 31.03448276 | T920: 0 | U920: 20 | V920: 9.6 | W920: 11 | X920: 8.1 | Y920: 10.9 | Z920: 48.75499 | AA920: 48.18485 | AB920: 15.65373 | AC920: 14.08231 | AD920: 23.82526 | AE920: 24.38135 | AF920: 24.29663369 | AG920: 23.63991032
A921: Retten i Lyngby | B921: 89.63132541 | C921: 97.77585534 | D921: 84.12753263 | E921: 97.64325668 | F921: 96.99286564 | G921: 99.35410226 | H921: 0.2029569311 | I921: 0.1901459163 | J921: 105 | K921: 107 | L921: 385.046729 | M921: 428.1336406 | N921: 41.28764479 | O921: 48.69579 | P921: 36.39 | Q921: 46.93 | R921: 60 | S921: 87.5 | T921: 33.33333333 | U921: 100 | V921: 9 | W921: 5.6 | X921: 16.5 | Y921: 16.6 | Z921: 55.26352 | AA921: 51.96079 | AB921: 18.80749 | AC921: 15.98318 | AD921: 29.49397 | AE921: 29.50248 | AF921: 29.34078699 | AG921: 28.24267451
A922: Retten i Glostrup | B922: 104.9173375 | C922: 105.0172109 | D922: 107.7922312 | E922: 105.0824114 | F922: 98.84565993 | G922: 104.060761 | H922: 0.1838177813 | I922: 0.1604566184 | J922: 142 | K922: 148 | L922: 509.8187702 | M922: 528.0311111 | N922: 80.59972946 | O922: 88.04801 | P922: 39.56 | Q922: 39.48 | R922: 32.89473684 | S922: 27.5 | T922: 0 | U922: 18.18181818 | V922: 8.3 | W922: 8.6 | X922: 17.3 | Y922: 6.6 | Z922: 106.84539 | AA922: 103.06842 | AB922: 30.84999 | AC922: 30.74411 | AD922: 63.61432 | AE922: 59.56152 | AF922: 54.12637493 | AG922: 52.60025092
A923: Retten på Frederiksberg | B923: 102.2422422 | C923: 104.0710121 | D923: 99.30522063 | E923: 101.0829086 | F923: 107.6162901 | G923: 107.348038 | H923: 0.1769760671 | I923: 0.164256372 | J923: 162 | K923: 181 | L923: 542.7112299 | M923: 563.4674556 | N923: 76.66579713 | O923: 85.7729 | P923: 41.42 | Q923: 44.35 | R923: 26.47058824 | S923: 27.77777778 | T923: 40 | U923: 9.090909091 | V923: 13 | W923: 17 | X923: 15.6 | Y923: 4.5 | Z923: 80.89792 | AA923: 79.29932 | AB923: 25.78624 | AC923: 24.85565 | AD923: 43.13565 | AE923: 42.96383 | AF923: 40.72638703 | AG923: 42.74148875
A924: Københavns Byret | B924: 96.04821994 | C924: 97.04701145 | D924: 102.3257924 | E924: 103.8379117 | F924: 85.17241379 | G924: 86.56908442 | H924: 0.2060769464 | I924: 0.2195337428 | J924: 104 | K924: 141 | L924: 529.8726592 | M924: 497.8881579 | N924: 73.15736591 | O924: 93.59561 | P924: 28.91 | Q924: 33.35 | R924: 38.02816901 | S924: 31.66666667 | T924: 16.66666667 | U924: 0 | V924: 10.1 | W924: 12.7 | X924: 8.7 | Y924: 2.5 | Z924: 186.12346 | AA924: 185.13957 | AB924: 59.37777 | AC924: 58.2112 | AD924: 108.74881 | AE924: 110.58845 | AF924: 101.9412044 | AG924: 104.3905402
A925: Retten på Bornholm | B925: 60.27839646 | C925: 60.23952188 | D925: 60.2691734 | E925: 61.26407707 | F925: 65.10749108 | G925: 70.13614744 | H925: 0.3262324987 | I925: 0.3652678355 | J925: 35 | K925: 35 | L925: 332.1111111 | M925: 267 | N925: 27.50285249 | O925: 29.08736 | P925: 16.75 | Q925: 20.89 | R925: 78.94736842 | S925: 100 | T925: - | U925: 100 | V925: 7.4 | W925: 1.8 | X925: 19.4 | Y925: 22.5 | Z925: 14.58443 | AA925: 13.87751 | AB925: 3.77068 | AC925: 3.45026 | AD925: 7.52959 | AE925: 6.70088 | AF925: 7.08154941 | AG925: 7.03454467
B926: 0 | C926: 0 | D926: 0 | E926: 0 | F926: 0 | G926: 0 | H926: 0 | I926: 0 | J926: 0 | K926: 0 | L926: 0 | M926: 0 | N926: 0 | O926: 0 | P926: 0 | Q926: 0 | R926: 0 | S926: 0 | T926: 0 | U926: 0 | V926: 0 | W926: 0 | X926: 0 | Y926: 0 | Z926: 0 | AA926: 0 | AB926: 0 | AC926: 0 | AD926: 0 | AE926: 0 | AF926: 0 | AG926: 0

Sheet Produkt.SAML.
B2: PRODUKTIVITETSINDEKS SAMLET FOR RETTEN
B4: EID | C4: Ret | D4: Samlet | F4: Retssager | H4: Straffesager | J4: Civile sager | L4: Fogedsager | N4: Øvrige fogedsager | P4: Tvangsauktioner | R4: Skiftesager | T4: Insolvensskifter | V4: Dødsboskifter
D5: 2014 | E5: 2015 | F5: 2014 | G5: 2015 | H5: 2014 | I5: 2015 | J5: 2014 | K5: 2015 | L5: 2014 | M5: 2015 | N5: 2014 | O5: 2015 | P5: 2014 | Q5: 2015 | R5: 2014 | S5: 2015 | T5: 2014 | U5: 2015 | V5: 2014 | W5: 2015
C6: 5. BEDSTE RET | D6: 104.9 | E6: 107.0113492 | F6: 104.233314 | G6: 105.8863458 | H6: 105.4739774 | I6: 108.4533472 | J6: 109.2557492 | K6: 105.648092 | L6: 117.5631055 | M6: 110.2149356 | O6: 109.5343419 | Q6: 120.3787861 | R6: 143.5833004 | S6: 115.5720506 | U6: 129.0257555 | W6: 115.2901374
C7: SAMLET BYRETTERNE | D7: 100 | E7: 101.3907711 | F7: 100 | G7: 100.9608866 | H7: 100 | I7: 101.7332108 | J7: 100 | K7: 99.80076815 | L7: 100 | M7: 100 | O7: 100 | Q7: 100 | R7: 100 | S7: 100 | U7: 100 | W7: 100
B9: 901 | C9: Retten i Hjørring | D9: 106.5689847 | E9: 104.0810952 | F9: 104.6403919 | G9: 102.3231979 | H9: 100.3137532 | I9: 100.5197264 | J9: 109.2557492 | K9: 104.3949759 | L9: 104.4936156 | M9: 99.42210753 | O9: 95.2828149 | Q9: 141.0468906 | R9: 119.8262444 | S9: 107.6428552 | U9: 99.07443303 | W9: 112.2236954
B10: 902 | C10: Retten i Aalborg | D10: 100.0135863 | E10: 107.4091758 | F10: 97.85179694 | G10: 110.0926792 | H10: 93.9051606 | I10: 108.3424056 | J10: 102.0810755 | K10: 112.1902224 | L10: 94.69731428 | M10: 90.90358283 | O10: 88.34478572 | Q10: 120.3787861 | R10: 143.5833004 | S10: 110.8949008 | U10: 120.8806486 | W10: 104.3144316
B11: 903 | C11: Retten i Randers | D11: 106.6743809 | E11: 104.9579557 | F11: 99.45151187 | G11: 92.48499159 | H11: 96.13198876 | I11: 88.99781345 | J11: 103.0706326 | K11: 96.26883065 | L11: 122.8882852 | M11: 132.8160537 | O11: 142.1806337 | Q11: 96.77405469 | R11: 147.9084659 | S11: 115.5720506 | U11: 110.1389266 | W11: 117.1094504
B12: 904 | C12: Retten i Århus | D12: 98.83958731 | E12: 98.51713253 | F12: 95.28180999 | G12: 95.16834029 | H12: 83.51503271 | I12: 84.21838657 | J12: 110.1580435 | K12: 109.5464198 | L12: 119.0487334 | M12: 110.2149356 | O12: 109.0193888 | Q12: 113.8793568 | R12: 119.7464929 | S12: 97.6737165 | U12: 101.3430724 | W12: 93.31034254
B13: 905 | C13: Retten i Viborg | D13: 99.02747487 | E13: 98.58877344 | F13: 95.02001707 | G13: 92.31332977 | H13: 99.16211352 | I13: 98.50559754 | J13: 91.97527128 | K13: 88.12853491 | L13: 88.21721031 | M13: 86.13005397 | O13: 89.41794785 | Q13: 68.25744893 | R13: 151.7155672 | S13: 152.6546873 | U13: 130.8866508 | W13: 167.4442779
B14: 906 | C14: Retten i Holstebro | D14: 101.5209374 | E14: 93.55184078 | F14: 104.233314 | G14: 92.47593333 | H14: 98.9512288 | I14: 86.74014827 | J14: 110.6960041 | K14: 100.0497571 | L14: 114.3361854 | M14: 112.2799301 | O14: 115.2709786 | Q14: 107.1316126 | R14: 84.59647569 | S14: 77.93248036 | U14: 78.36045853 | W14: 77.68212149
B15: 907 | C15: Retten i Herning | D15: 101.4963296 | E15: 96.0568853 | F15: 98.31694471 | G15: 95.43634882 | H15: 97.04668674 | I15: 98.50783988 | J15: 99.82939434 | K15: 91.76772806 | L15: 117.5631055 | M15: 103.731348 | O15: 109.5343419 | Q15: 74.38614095 | R15: 110.1864735 | S15: 84.61777312 | U15: 80.12935777 | W15: 86.4635617
B16: 908 | C16: Retten i Horsens | D16: 94.0760306 | E16: 96.70266376 | F16: 93.1967482 | G16: 100.1473366 | H16: 103.1753822 | I16: 106.8881907 | J16: 85.93137435 | K16: 94.5900836 | L16: 79.77099808 | M16: 82.63619286 | O16: 83.62141952 | Q16: 78.4796287 | R16: 163.2592026 | S16: 98.0762624 | U16: 79.06029599 | W16: 115.2901374
B17: 909 | C17: Retten i Kolding | D17: 105.2415989 | E17: 110.7189195 | F17: 101.2424378 | G17: 105.6842953 | H17: 102.3808256 | I17: 112.9562966 | J17: 100.5612578 | K17: 99.89668814 | L17: 127.254626 | M17: 122.6161615 | O17: 122.6450756 | Q17: 118.2858523 | R17: 124.3968039 | S17: 113.6746357 | U17: 136.848056 | W17: 102.1147074
B18: 910 | C18: Retten i Esbjerg | D18: 97.61519595 | E18: 96.7070687 | F18: 92.77103079 | G18: 93.84042033 | H18: 91.17828812 | I18: 94.57553818 | J18: 94.27574159 | K18: 91.08410845 | L18: 100.9149761 | M18: 90.61053855 | O18: 97.9417556 | Q18: 60.88496186 | R18: 120.4521334 | S18: 108.9606569 | U18: 137.1495149 | W18: 98.98725123
B19: 911 | C19: Retten i Sønderborg | D19: 107.1358034 | E19: 103.657452 | F19: 103.2066942 | G19: 99.38612289 | H19: 131.0412108 | I19: 118.2578192 | J19: 79.40570225 | K19: 80.50107547 | L19: 120.7698001 | M19: 104.6912624 | O19: 96.43417503 | Q19: 217.9724257 | R19: 111.073956 | S19: 118.4761523 | U19: 141.7271194 | W19: 108.6540064
B20: 912 | C20: Retten i Odense | D20: 97.54645817 | E20: 107.7756345 | F20: 102.4857594 | G20: 108.2677276 | H20: 107.6476166 | I20: 120.6531494 | J20: 95.88697943 | K20: 91.76635232 | L20: 84.52656163 | M20: 101.9787857 | O20: 102.5901573 | Q20: 96.47316427 | R20: 104.0500978 | S20: 108.2607743 | U20: 97.9943939 | W20: 114.0483643
B21: 913 | C21: Retten i Svendborg | D21: 100.5509212 | E21: 101.5783304 | F21: 91.99863123 | G21: 89.37366124 | H21: 83.76279402 | I21: 80.07304393 | J21: 102.5507471 | K21: 101.732123 | L21: 101.8078606 | M21: 109.1271436 | O21: 110.9491129 | Q21: 102.4784266 | R21: 123.4866615 | S21: 122.9940154 | U21: 93.44010361 | W21: 148.4041721
B22: 914 | C22: Retten i Nykøbing F. | D22: 99.64711386 | E22: 99.84996103 | F22: 103.4968545 | G22: 103.0011654 | H22: 103.7911142 | I22: 105.5889327 | J22: 102.5670665 | K22: 98.47739582 | L22: 81.55850872 | M22: 98.88389407 | O22: 96.6803199 | Q22: 121.5914393 | R22: 84.07742284 | S22: 84.92009794 | U22: 52.09372104 | W22: 113.6786531
B23: 915 | C23: Retten i Næstved | D23: 104.2290401 | E23: 108.0240487 | F23: 103.4284979 | G23: 106.0942502 | H23: 107.3842183 | I23: 108.4533472 | J23: 99.20479519 | K23: 102.481982 | L23: 101.6740387 | M23: 107.7128975 | O23: 108.3989227 | Q23: 106.8922924 | R23: 119.0613894 | S23: 107.4104667 | U23: 116.849353 | W23: 100.5767207
B24: 916 | C24: Retten i Holbæk | D24: 104.4338546 | E24: 100.0356061 | F24: 102.2012557 | G24: 100.2159002 | H24: 89.87054788 | I24: 88.83875391 | J24: 118.8123032 | K24: 114.3069079 | L24: 101.1636898 | M24: 102.8157341 | O24: 107.5718007 | Q24: 85.66390335 | R24: 135.4280785 | S24: 90.15433121 | U24: 79.10282804 | W24: 97.35899974
B25: 917 | C25: Retten i Roskilde | D25: 104.7172972 | E25: 107.0113492 | F25: 106.2086451 | G25: 103.2391856 | H25: 105.4739774 | I25: 106.5502762 | J25: 106.8974039 | K25: 99.10590057 | L25: 108.6570763 | M25: 100.7875338 | O25: 99.90707399 | Q25: 108.1915097 | R25: 118.8875534 | S25: 124.8444266 | U25: 129.0257555 | W25: 119.2969799
B26: 918 | C26: Retten i Hillerød | D26: 94.64382899 | E26: 96.23343495 | F26: 93.04108099 | G26: 94.40164033 | H26: 91.02600727 | I26: 89.72176081 | J26: 95.30973419 | K26: 99.90481374 | L26: 101.8385906 | M26: 97.99174636 | O26: 97.28511138 | Q26: 106.8362502 | R26: 116.4183164 | S26: 98.14206093 | U26: 95.97135748 | W26: 97.53002727
B27: 919 | C27: Retten i Helsingør | D27: 98.29558739 | E27: 100.0661488 | F27: 93.81699179 | G27: 96.6497042 | H27: 95.1590834 | I27: 99.30353688 | J27: 93.11379657 | K27: 94.45677662 | L27: 86.94588768 | M27: 95.88704205 | O27: 96.47837977 | Q27: 95.8308928 | R27: 157.7864269 | S27: 111.2576594 | U27: 111.1276276 | W27: 110.519268
B28: 920 | C28: Retten i Lyngby | D28: 89.63132541 | E28: 97.77585534 | F28: 89.03537744 | G28: 99.34396573 | H28: 86.96063708 | I28: 106.5505853 | J28: 91.54875742 | K28: 96.05276016 | L28: 108.4071014 | M28: 113.0525113 | O28: 108.1913023 | Q28: 210.4791149 | R28: 21.9828778 | S28: 74.4426465 | U28: 73.89282913 | W28: 77.22272999
B29: 921 | C29: Retten i Glostrup | D29: 104.9173375 | E29: 105.0172109 | F29: 106.6401629 | G29: 105.8863458 | H29: 102.8149133 | I29: 103.2801112 | J29: 111.0621526 | K29: 108.8318512 | L29: 110.804406 | M29: 102.965019 | O29: 103.2997769 | Q29: 72.25567546 | R29: 11.56703003 | S29: 102.2996087 | U29: 41.92712266 | W29: 111.1358609
B30: 922 | C30: Retten på Frederiksberg | D30: 102.2422422 | E30: 104.0710121 | F30: 108.4748542 | G30: 111.1948829 | H30: 119.4832537 | I30: 125.8820446 | J30: 95.56624132 | K30: 94.10067256 | L30: 108.9461007 | M30: 104.9047615 | O30: 105.7854839 | Q30: 64.94751189 | R30: 5.81672508 | S30: 64.42803909 | U30: 43.69555526 | W30: 67.98460462
B31: 923 | C31: Københavns Byret | D31: 96.04821994 | E31: 97.04701145 | F31: 101.6318574 | G31: 101.2841886 | H31: 100.7701637 | I31: 97.8641839 | J31: 101.8675949 | K31: 105.648092 | L31: 80.8073239 | M31: 84.83379115 | O31: 83.12316201 | Q31: 98.63563726 | R31: 9.237425865 | S31: 68.63711911 | U31: 60.57160428 | W31: 71.86682765
B32: 924 | C32: Retten på Bornholm | D32: 60.27839646 | E32: 60.23952188 | F32: 69.07095926 | G32: 72.94079242 | H32: 61.29453344 | I32: 69.05355133 | J32: 79.54956693 | K32: 77.75609553 | L32: 45.26659227 | M32: 35.22824129 | O32: 34.1551225 | Q32: 46.31294497 | R32: 46.05028163 | S32: 64.75659932 | U32: 44.9075146 | W32: 77.16863353
B35: 1) For retten samlet, retssager, straffesager og civile sager svarer indeks 100 til gennemsnittet ved byretterne i 2014. For øvrige fogedsager, tvangsauktioner, insolvensskifter og dødsboskifter svarer indeks 100 til gennemsnittet for 2015. For fogedsager og skiftesager svarer indeks 100 det pågældende år, da det i 2015 har været nødvendigt at samveje øvrige fogedager og tvansauktioner til fogedsager, og insolvensskifter og dødsboskifter til skiftesager. Denne samvejning kan ikke foretages for 2014, og tallene er derfor ikke direkte sammenlignelige.
B37: 2) Tal for 2014 er genberegnet med nye årsværksvægte samt nye nøgler for samvejningen af retssager, fogedsager og skiftesager, og kan derfor ikke sammenlignes med årsnøgletallene for 2014.
B38: 3) "Retssager" svarer til den samlede produktivitet for straffesager og civile sager, "Fogedsager" til den samlede produktivitet for øvrige fogedsager og tvangsauktioner, "Skiftesager" til den samlede produktivitet for Insolvensskifter og Dødsboskifter.
B39: 4) Ved beregningen af den samlede produktivitet, samlet for retten, anvendes rettens samlede vægtede årsværksforbrug - dvs. også årsværksforbruget til generel ledelse og administration mv. Ved beregning af produktiviteten på de enkelte sagsområder er årsværkforbruget til generel ledelse og administration mv. nøgletalsfordelt, således at forskelle i andele i årsværksforbrug til generel ledelse og administration mv. ikke vanskeliggør en sammenligning af de enkelte retter.

Sheet Produkt.JUR
B2: PRODUKTIVITETSINDEKS JURISTER
B4: EID | C4: Ret | D4: Samlet | F4: Retssager | H4: Straffesager | J4: Civile sager | L4: Fogedsager | N4: Øvrige fogedsager | P4: Tvangsauktioner | R4: Skiftesager | T4: Insolvensskifter | V4: Dødsboskifter
D5: 2014 | E5: 2015 | F5: 2014 | G5: 2015 | H5: 2014 | I5: 2015 | J5: 2014 | K5: 2015 | L5: 2014 | M5: 2015 | N5: 2014 | O5: 2015 | P5: 2014 | Q5: 2015 | R5: 2014 | S5: 2015 | T5: 2014 | U5: 2015 | V5: 2014 | W5: 2015
C6: 5. BEDSTE RET | D6: 101.2430081 | E6: 108.7266625 | F6: 106.5771647 | G6: 104.9531825 | H6: 107.9440758 | I6: 108.480638 | J6: 111.25253 | K6: 111.2466641 | L6: 123.154968 | M6: 123.7318596 | O6: 124.2440985 | Q6: 168.9 | R6: 142.4616242 | S6: 139.8318098 | U6: 124.1 | W6: 231.6
C7: SAMLET BYRETTERNE | D7: 100 | E7: 101.2430081 | F7: 100 | G7: 99.45500816 | H7: 100 | I7: 99.36818807 | J7: 100 | K7: 99.15692266 | L7: 100 | M7: 100 | O7: 100 | Q7: 100 | R7: 100 | S7: 100 | U7: 100 | W7: 100
B9: 901 | C9: Retten i Hjørring | D9: 109.838844 | E9: 109.6687383 | F9: 106.432942 | G9: 109.9996274 | H9: 105.2715587 | I9: 104.0496495 | J9: 108.4526246 | K9: 116.5343738 | L9: 123.154968 | M9: 129.9039156 | O9: 124.758343 | Q9: 165.6955343 | R9: 123.4389086 | S9: 133.9350532 | U9: 104.8383371 | W9: 301.2834852
B10: 902 | C10: Retten i Aalborg | D10: 99.0699192 | E10: 110.9242387 | F10: 92.92543078 | G10: 104.0766205 | H10: 89.22036078 | I10: 96.72827262 | J10: 96.8762934 | K10: 112.0525584 | L10: 83.81410344 | M10: 94.09515029 | O10: 88.29467569 | Q10: 179.7515867 | R10: 131.893755 | S10: 123.0161279 | U10: 123.6241748 | W10: 121.4524492
B11: 903 | C11: Retten i Randers | D11: 105.7096955 | E11: 101.7030454 | F11: 106.5771647 | G11: 96.09526331 | H11: 102.6885489 | I11: 87.20106024 | J11: 110.798627 | K11: 105.3156212 | L11: 104.8321221 | M11: 115.9030458 | O11: 134.2221307 | Q11: 70.10735812 | R11: 161.2759294 | S11: 139.8318098 | U11: 126.0076336 | W11: 199.3884924
B12: 904 | C12: Retten i Århus | D12: 98.77470479 | E12: 95.11367309 | F12: 98.15241155 | G12: 92.36652164 | H12: 83.83167881 | I12: 80.06389617 | J12: 115.3811424 | K12: 107.5507884 | L12: 111.5883174 | M12: 101.7438333 | O12: 97.89849329 | Q12: 168.8709471 | R12: 99.27250236 | S12: 97.11144747 | U12: 103.664855 | W12: 82.81040981
B13: 905 | C13: Retten i Viborg | D13: 93.87333748 | E13: 92.40745805 | F13: 92.17609042 | G13: 88.81783497 | H13: 89.89153795 | I13: 92.85144798 | J13: 94.78667461 | K13: 86.61741529 | L13: 88.03571398 | M13: 79.98269995 | O13: 81.03106526 | Q13: 74.50683544 | R13: 136.3206679 | S13: 121.3831055 | U13: 117.0191193 | W13: 132.2336569
B14: 906 | C14: Retten i Holstebro | D14: 106.2600373 | E14: 94.7540087 | F14: 115.3696654 | G14: 99.53587635 | H14: 105.4602354 | I14: 90.50837282 | J14: 127.4214068 | K14: 111.2466641 | L14: 115.6807006 | M14: 99.11080476 | O14: 106.5864671 | Q14: 80.74371138 | R14: 77.03723334 | S14: 65.40793309 | U14: 79.52644111 | W14: 49.35192889
B15: 907 | C15: Retten i Herning | D15: 97.05183344 | E15: 90.88135488 | F15: 92.44577691 | G15: 90.0764657 | H15: 87.63353003 | I15: 95.58675294 | J15: 97.66608056 | K15: 84.35133128 | L15: 120.7336822 | M15: 94.21591883 | O15: 97.44671615 | Q15: 78.36883828 | R15: 100.913971 | S15: 84.70679362 | U15: 82.07503548 | W15: 91.85340612
B16: 908 | C16: Retten i Horsens | D16: 91.48763207 | E16: 91.06302051 | F16: 87.24544982 | G16: 93.08607628 | H16: 93.69619435 | I16: 100.4636185 | J16: 82.80454403 | K16: 87.6429446 | L16: 89.57817819 | M16: 73.17140023 | O16: 78.28678055 | Q16: 53.54261916 | R16: 143.0464964 | S16: 85.40751526 | U16: 72.05732633 | W16: 170.3828272
B17: 909 | C17: Retten i Kolding | D17: 104.057862 | E17: 108.7266625 | F17: 97.34267331 | G17: 96.77493097 | H17: 99.94553547 | I17: 99.53735971 | J17: 95.62757605 | K17: 94.95661663 | L17: 134.6992747 | M17: 127.073365 | O17: 122.8015593 | Q17: 173.5042544 | R17: 138.5533683 | S17: 166.9431552 | U17: 167.6102351 | W17: 165.1614302
B18: 910 | C18: Retten i Esbjerg | D18: 96.00354257 | E18: 93.56370416 | F18: 90.92629654 | G18: 86.82579412 | H18: 83.33376972 | I18: 79.74899015 | J18: 101.8486229 | K18: 98.46377619 | L18: 95.35773492 | M18: 79.03621155 | O18: 86.31360627 | Q18: 53.46225196 | R18: 150.5340817 | S18: 178.9615967 | U18: 159.2332122 | W18: 231.6424299
B19: 911 | C19: Retten i Sønderborg | D19: 110.060348 | E19: 102.0101927 | F19: 102.5739144 | G19: 90.7328144 | H19: 135.824978 | I19: 108.5252975 | J19: 77.3032318 | K19: 73.65214491 | L19: 143.3991185 | M19: 115.4906122 | O19: 108.9489184 | Q19: 165.1238204 | R19: 124.7910408 | S19: 164.5026985 | U19: 124.1147751 | W19: 453.7431861
B20: 912 | C20: Retten i Odense | D20: 95.5612803 | E20: 100.0730889 | F20: 101.0821348 | G20: 101.8517221 | H20: 107.9440758 | I20: 112.738482 | J20: 93.06560023 | K20: 87.32979968 | L20: 72.51796083 | M20: 85.30462744 | O20: 82.75365028 | Q20: 109.3131738 | R20: 98.01352469 | S20: 96.54859456 | U20: 80.70759887 | W20: 160.6994248
B21: 913 | C21: Retten i Svendborg | D21: 100.6022996 | E21: 100.5145432 | F21: 90.93888948 | G21: 92.61119142 | H21: 80.56262353 | I21: 79.03069075 | J21: 104.0780822 | K21: 111.0582449 | L21: 108.3619321 | M21: 107.0550999 | O21: 111.1099021 | Q21: 92.82931645 | R21: 131.3142806 | S21: 128.027955 | U21: 107.0286403 | W21: 214.5751993
B22: 914 | C22: Retten i Nykøbing F. | D22: 104.2437539 | E22: 102.4183965 | F22: 103.1679804 | G22: 99.77057705 | H22: 104.8242532 | I22: 105.9025723 | J22: 100.4484764 | K22: 91.31962649 | L22: 93.76156544 | M22: 141.7952051 | O22: 127.258022 | Q22: 222.2806149 | R22: 90.61089608 | S22: 76.7685991 | U22: 48.42049441 | W22: 279.6628054
B23: 915 | C23: Retten i Næstved | D23: 102.2700435 | E23: 108.8953387 | F23: 104.0279343 | G23: 103.7576221 | H23: 104.1297964 | I23: 106.4570201 | J23: 103.6501865 | K23: 99.60186984 | L23: 90.35167116 | M23: 119.8945865 | O23: 117.9901878 | Q23: 134.6943727 | R23: 108.321968 | S23: 111.4387256 | U23: 116.8499201 | W23: 101.1841395
B24: 916 | C24: Retten i Holbæk | D24: 107.3802362 | E24: 103.9788689 | F24: 103.3201191 | G24: 109.466941 | H24: 89.3571286 | I24: 96.19341622 | J24: 121.1326732 | K24: 124.8714318 | L24: 92.99947794 | M24: 103.4664476 | O24: 112.803372 | Q24: 77.41250705 | R24: 142.4616242 | S24: 106.1408907 | U24: 88.17698189 | W24: 190.8617896
B25: 917 | C25: Retten i Roskilde | D25: 109.0139217 | E25: 112.0786824 | F25: 112.0814199 | G25: 104.9531825 | H25: 112.5841783 | I25: 108.480638 | J25: 111.25253 | K25: 100.548568 | L25: 114.0087539 | M25: 96.711435 | O25: 95.15554952 | Q25: 108.8551509 | R25: 123.593033 | S25: 157.8370281 | U25: 136.6008445 | W25: 273.527216
B26: 918 | C26: Retten i Hillerød | D26: 90.33306401 | E26: 95.99341206 | F26: 96.39500846 | G26: 94.49418346 | H26: 96.56821002 | I26: 91.36463294 | J26: 96.07789054 | K26: 97.85653232 | L26: 92.09361627 | M26: 91.11190834 | O26: 91.80024812 | Q26: 89.52296462 | R26: 95.31940374 | S26: 95.31201453 | U26: 92.41327732 | W26: 103.8096298
B27: 919 | C27: Retten i Helsingør | D27: 88.40223741 | E27: 95.40478558 | F27: 86.98716036 | G27: 93.4156938 | H27: 90.94949355 | I27: 98.50849442 | J27: 84.48961032 | K27: 89.24750888 | L27: 70.90476085 | M27: 74.99038611 | O27: 75.17976298 | Q27: 76.00260548 | R27: 144.3491578 | S27: 101.914561 | U27: 98.26062258 | W27: 109.2800815
B28: 920 | C28: Retten i Lyngby | D28: 84.12753263 | E28: 97.64325668 | F28: 83.69582003 | G28: 95.10315937 | H28: 81.29874173 | I28: 105.5634039 | J28: 86.69280459 | K28: 90.86583149 | L28: 113.1987851 | M28: 123.7318596 | O28: 124.2440985 | Q28: 113.344621 | R28: 23.31461137 | S28: 57.45927645 | U28: 70.64622727 | W28: 54.49942376
B29: 921 | C29: Retten i Glostrup | D29: 107.7922312 | E29: 105.0824114 | F29: 107.5723635 | G29: 103.0108922 | H29: 102.8662053 | I29: 97.17180326 | J29: 112.6814841 | K29: 109.8989726 | L29: 162.3670487 | M29: 106.3922108 | O29: 107.1821532 | Q29: 78.29686224 | R29: 16.01073581 | S29: 84.50555186 | U29: 52.00271522 | W29: 90.83730344
B30: 922 | C30: Retten på Frederiksberg | D30: 99.30522063 | E30: 101.0829086 | F30: 101.9541004 | G30: 103.3726583 | H30: 108.3091273 | I30: 114.0742098 | J30: 93.80350688 | K30: 90.38224757 | L30: 128.796235 | M30: 147.8360065 | O30: 161.0167833 | Q30: 48.19708876 | R30: 5.784779599 | S30: 34.23517751 | U30: 29.85514212 | W30: 34.89338424
B31: 923 | C31: Københavns Byret | D31: 102.3257924 | E31: 103.8379117 | F31: 106.7077529 | G31: 105.8892745 | H31: 109.1499242 | I31: 104.1730074 | J31: 102.3688805 | K31: 106.5749104 | L31: 70.03047836 | M31: 80.9661969 | O31: 78.11468152 | Q31: 189.5065319 | R31: 10.0321636 | S31: 39.16259949 | U31: 49.788402 | W31: 38.12713201
B32: 924 | C32: Retten på Bornholm | D32: 60.2691734 | E32: 61.26407707 | F32: 90.1482613 | G32: 133.8139082 | H32: 75.95816095 | I32: 118.2348262 | J32: 109.5815711 | K32: 154.8050263 | L32: 51.80474649 | M32: 34.76114014 | O32: 33.52224645 | Q32: 44.00827076 | R32: 53.33467206 | S32: 64.76062903 | U32: 52.62846251 | W32: 86.35946574
B35: 1) For retten samlet, retssager, straffesager og civile sager svarer indeks 100 til gennemsnittet ved byretterne i 2014. For øvrige fogedsager, tvangsauktioner, insolvensskifter og dødsboskifter svarer indeks 100 til gennemsnittet for 2015. For fogedsager og skiftesager svarer indeks 100 det pågældende år, da det i 2015 har været nødvendigt at samveje øvrige fogedager og tvansauktioner til fogedsager, og insolvensskifter og dødsboskifter til skiftesager. Denne samvejning kan ikke foretages for 2014, og tallene er derfor ikke direkte sammenlignelige.
B37: 2) Tal for 2014 er genberegnet med nye årsværksvægte samt nye nøgler for samvejningen af retssager, fogedsager og skiftesager, og kan derfor ikke sammenlignes med årsnøgletallene for 2014.
B38: 3) "Retssager" svarer til den samlede produktivitet for straffesager og civile sager, "Fogedsager" til den samlede produktivitet for øvrige fogedsager og tvangsauktioner, "Skiftesager" til den samlede produktivitet for Insolvensskifter og Dødsboskifter.
B39: 4) Ved beregningen af den samlede produktivitet for juristerne anvendes det samlede årsværksforbrug for gruppen - dvs. også årsværksforbruget til generel ledelse og administration mv. Ved beregning af produktiviteten på de enkelte sagsområder er kun medtaget det direkte årsværksforbrug - dvs. der er ikke foretaget en nøgletalsfordeling af årsværkforbruget til generel ledelse og administration mv.

Sheet Produkt.KON
B2: PRODUKTIVITETSINDEKS KONTORPERSONALE
B4: EID | C4: Ret | D4: Samlet | F4: Retssager | H4: Straffesager | J4: Civile sager | L4: Fogedsager | N4: Øvrige fogedsager | P4: Tvangsauktioner | R4: Skiftesager | T4: Insolvensskifter | V4: Dødsboskifter
D5: 2014 | E5: 2015 | F5: 2014 | G5: 2015 | H5: 2014 | I5: 2015 | J5: 2014 | K5: 2015 | L5: 2014 | M5: 2015 | N5: 2014 | O5: 2015 | P5: 2014 | Q5: 2015 | R5: 2014 | S5: 2015 | T5: 2014 | U5: 2015 | V5: 2014 | W5: 2015
C6: 5. BEDSTE RET | D6: 106.6508918 | E6: 109.9053508 | F6: 105.7549565 | G6: 112.5435474 | H6: 119.6475365 | I6: 125.721787 | J6: 107.1938071 | K6: 110.585901 | L6: 113.1976477 | M6: 116.6790392 | O6: 112.2726974 | Q6: 130.4002499 | R6: 141.5927838 | S6: 112.0448772 | U6: 144.2156855 | W6: 110.2739541
C7: SAMLET BYRETTERNE | D7: 100 | E7: 102.0214031 | F7: 100 | G7: 102.1018986 | H7: 100 | I7: 104.3398816 | J7: 100 | K7: 99.1454215 | L7: 100 | M7: 100 | O7: 100 | Q7: 100 | R7: 100 | S7: 100 | U7: 100 | W7: 100
B9: 901 | C9: Retten i Hjørring | D9: 101.0495838 | E9: 100.0445898 | F9: 96.35395732 | G9: 96.05310351 | H9: 88.72712705 | I9: 101.1053138 | J9: 105.6582693 | K9: 90.57448007 | L9: 94.53218365 | M9: 90.99157348 | O9: 87.33913646 | Q9: 135.4721851 | R9: 115.3558938 | S9: 101.0547495 | U9: 94.40730805 | W9: 102.3190495
B10: 902 | C10: Retten i Aalborg | D10: 102.2864447 | E10: 101.1086801 | F10: 96.22781199 | G10: 106.5258948 | H10: 99.63179382 | I10: 116.2180093 | J10: 93.1886531 | K10: 97.0796409 | L10: 104.5584174 | M10: 97.92306113 | O10: 97.84465086 | Q10: 96.70433053 | R10: 136.0945837 | S10: 97.32658403 | U10: 97.89785704 | W10: 96.60969093
B11: 903 | C11: Retten i Randers | D11: 114.4156956 | E11: 115.7513674 | F11: 92.69868634 | G11: 91.04531978 | H11: 90.61450348 | I11: 97.38126035 | J11: 94.91683034 | K11: 85.88517738 | L11: 149.4580768 | M11: 153.9529088 | O11: 159.5196338 | Q11: 130.4002499 | R11: 146.2840964 | S11: 107.5403511 | U11: 90.68998313 | W11: 112.3219772
B12: 904 | C12: Retten i Århus | D12: 104.7897741 | E12: 105.2212842 | F12: 90.95020846 | G12: 94.97149551 | H12: 80.64091992 | I12: 83.75313432 | J12: 106.5830967 | K12: 113.4083325 | L12: 114.5357231 | M12: 104.2010227 | O12: 103.88883 | Q12: 95.27978439 | R12: 128.2154256 | S12: 95.20995099 | U12: 106.8234027 | W12: 91.52017895
B13: 905 | C13: Retten i Viborg | D13: 107.5274673 | E13: 109.9053508 | F13: 100.6800261 | G13: 96.30905066 | H13: 119.6475365 | I13: 106.7079496 | J13: 86.36784367 | K13: 87.83292276 | L13: 94.49469143 | M13: 95.2043815 | O13: 101.5480966 | Q13: 64.76518165 | R13: 162.4619812 | S13: 174.3555039 | U13: 162.3398279 | W13: 176.5358725
B14: 906 | C14: Retten i Holstebro | D14: 100.5059453 | E14: 95.41783591 | F14: 92.66545173 | G14: 82.00671459 | H14: 94.16622243 | I14: 82.08508193 | J14: 90.76101978 | K14: 81.83004842 | L14: 115.6197436 | M14: 117.2022548 | O14: 116.9434902 | Q14: 133.0754357 | R14: 93.64228061 | S14: 87.04887174 | U14: 74.32669392 | W14: 89.96849115
B15: 907 | C15: Retten i Herning | D15: 106.6508918 | E15: 101.5562426 | F15: 110.0717245 | G15: 105.3499281 | H15: 116.2999894 | I15: 101.773958 | J15: 103.4036432 | K15: 110.585901 | L15: 113.1976477 | M15: 105.7945072 | O15: 112.2726974 | Q15: 72.85707683 | R15: 115.6807782 | S15: 84.11539265 | U15: 73.52887035 | W15: 86.64258448
B16: 908 | C16: Retten i Horsens | D16: 97.78977408 | E16: 107.3637337 | F16: 108.4902231 | G16: 120.6781866 | H16: 126.133693 | I16: 126.17986 | J16: 94.72489721 | K16: 115.0154854 | L16: 76.31163177 | M16: 87.62798205 | O16: 86.18734592 | Q16: 105.1400691 | R16: 185.8671063 | S16: 116.2462564 | U16: 144.2156855 | W16: 109.256874
B17: 909 | C17: Retten i Kolding | D17: 105.2428062 | E17: 113.1400713 | F17: 103.7301686 | G17: 113.4147532 | H17: 101.2974178 | I17: 129.1791184 | J17: 106.65455 | K17: 99.6879643 | L17: 124.928424 | M17: 123.4558348 | O17: 126.0857174 | Q17: 98.66677799 | R17: 115.0920237 | S17: 92.30615605 | U17: 91.00644917 | W17: 92.12622753
B18: 910 | C18: Retten i Esbjerg | D18: 96.60856124 | E18: 102.0778835 | F18: 85.76325516 | G18: 101.3155026 | H18: 96.07540769 | I18: 125.721787 | J18: 73.35639234 | K18: 73.32888109 | L18: 96.17198768 | M18: 91.47520182 | O18: 97.8572961 | Q18: 64.26614384 | R18: 102.7215094 | S18: 89.19415745 | U18: 99.38121003 | W18: 87.45151249
B19: 911 | C19: Retten i Sønderborg | D19: 104.3571938 | E19: 107.1579073 | F19: 103.7050004 | G19: 102.7875049 | H19: 121.7395971 | I19: 119.2066101 | J19: 84.19924376 | K19: 84.29161492 | L19: 112.0945392 | M19: 96.98441937 | O19: 88.93563018 | Q19: 242.6568225 | R19: 104.509142 | S19: 96.96060583 | U19: 155.731434 | W19: 89.75216162
B20: 912 | C20: Retten i Odense | D20: 100.3803805 | E20: 118.626635 | F20: 99.89466727 | G20: 116.1993509 | H20: 101.8368211 | I20: 130.198443 | J20: 96.96903395 | K20: 96.85733361 | L20: 87.59309351 | M20: 106.5149216 | O20: 108.6363049 | Q20: 91.16631746 | R20: 105.4541248 | S20: 113.2085553 | U20: 150.2415497 | W20: 107.2132284
B21: 913 | C21: Retten i Svendborg | D21: 104.8915577 | E21: 110.3976219 | F21: 89.2464196 | G21: 86.76087725 | H21: 85.1086933 | I21: 84.34218591 | J21: 94.63829096 | K21: 89.88908423 | L21: 97.55244623 | M21: 117.9062112 | O21: 119.9030862 | Q21: 110.4784067 | R21: 116.4053185 | S21: 121.0187799 | U21: 73.2593386 | W21: 141.331557
B22: 914 | C22: Retten i Nykøbing F. | D22: 95.97514863 | E22: 97.81629013 | F22: 103.1758106 | G22: 107.8296468 | H22: 100.8506729 | I22: 103.0726912 | J22: 106.6155129 | K22: 116.5386263 | L22: 75.47313034 | M22: 84.83838489 | O22: 85.69694101 | Q22: 96.19481805 | R22: 80.83719192 | S22: 89.99510449 | U22: 58.50152458 | W22: 98.88742034
B23: 915 | C23: Retten i Næstved | D23: 105.9821641 | E23: 105.9665874 | F23: 109.1088619 | G23: 112.5435474 | H23: 122.7588259 | I23: 114.7651267 | J23: 95.77382023 | K23: 109.2729691 | L23: 109.7432993 | M23: 101.4206296 | O23: 102.7649852 | Q23: 96.34834694 | R23: 130.7683346 | S23: 104.5795271 | U23: 113.595934 | W23: 101.6061246
B24: 916 | C24: Retten i Holbæk | D24: 100.3117717 | E24: 96.70321046 | F24: 96.82942553 | G24: 89.34276857 | H24: 89.00649491 | I24: 81.34913136 | J24: 108.149245 | K24: 100.327034 | L24: 102.2262696 | M24: 103.2818657 | O24: 105.9572331 | Q24: 94.93217759 | R24: 129.5130258 | S24: 89.76840165 | U24: 85.72182925 | W24: 90.20862833
B25: 917 | C25: Retten i Roskilde | D25: 98.69595719 | E25: 97.560761 | F25: 96.61079522 | G25: 86.50179089 | H25: 94.82112819 | I25: 89.64263723 | J25: 99.00238509 | K25: 82.52187419 | L25: 107.9924713 | M25: 93.57295364 | O25: 92.72209523 | Q25: 100.6464777 | R25: 117.1845688 | S25: 102.5791405 | U25: 99.2713753 | W25: 102.4596545
B26: 918 | C26: Retten i Hillerød | D26: 106.4487515 | E26: 103.2785969 | F26: 103.879548 | G26: 103.0599015 | H26: 98.61933329 | I26: 99.78872446 | J26: 111.4784597 | K26: 107.3716154 | L26: 112.3586287 | M26: 106.5433029 | O26: 105.5844878 | Q26: 119.5331676 | R26: 141.5927838 | S26: 97.80824182 | U26: 97.76832737 | W26: 96.78783669
B27: 919 | C27: Retten i Helsingør | D27: 108.6916766 | E27: 105.0123662 | F27: 97.61225542 | G27: 96.7946879 | H27: 92.48149496 | I27: 92.2941629 | J27: 103.7048477 | K27: 102.1400533 | L27: 90.04744494 | M27: 102.2237747 | O27: 102.1532518 | Q27: 108.1931574 | R27: 157.535643 | S27: 112.0448772 | U27: 129.5799334 | W27: 108.3207718
B28: 920 | C28: Retten i Lyngby | D28: 96.99286564 | E28: 99.35410226 | F28: 105.7549565 | G28: 106.2470602 | H28: 99.86379064 | I28: 104.9990701 | J28: 110.5456122 | K28: 107.6124946 | L28: 109.1794932 | M28: 116.6790392 | O28: 109.6472783 | Q28: 409.909989 | R28: 21.45197842 | S28: 83.36992612 | U28: 76.60875962 | W28: 85.07023211
B29: 921 | C29: Retten i Glostrup | D29: 98.84565993 | E29: 104.060761 | F29: 104.1103292 | G29: 106.1861928 | H29: 101.7092645 | I29: 112.9116811 | J29: 107.1938071 | K29: 97.80962511 | L29: 94.67106836 | M29: 96.04242282 | O29: 95.83070183 | Q29: 67.41742091 | R29: 10.0047778 | S29: 111.4319729 | U29: 80.24365376 | W29: 114.1348084
B30: 922 | C30: Retten på Frederiksberg | D30: 107.6162901 | E30: 107.348038 | F30: 120.9868147 | G30: 121.9288315 | H30: 140.320302 | I30: 143.9384283 | J30: 99.16131846 | K30: 96.93770652 | L30: 104.6801816 | M30: 90.86689807 | O30: 89.60669593 | Q30: 78.11943167 | R30: 6.043289707 | S30: 84.43222768 | U30: 245.0184559 | W30: 85.56330985
B31: 923 | C31: Københavns Byret | D31: 85.17241379 | E31: 86.56908442 | F31: 97.9563294 | G31: 101.0729446 | H31: 92.53775036 | I31: 93.56279587 | J31: 108.9107797 | K31: 116.5066944 | L31: 87.20534971 | M31: 90.46679648 | O31: 89.07591134 | Q31: 81.00327292 | R31: 8.94173714 | S31: 92.4419166 | U31: 110.4950909 | W31: 93.9264394
B32: 924 | C32: Retten på Bornholm | D32: 65.10749108 | E32: 70.13614744 | F32: 76.57016782 | G32: 64.06198071 | H32: 74.56210702 | I32: 66.58466408 | J32: 79.19886249 | K32: 61.12289283 | L32: 57.97011905 | M32: 57.13055132 | O32: 55.14967345 | Q32: 81.6930841 | R32: 59.94199985 | S32: 105.1875286 | U32: 81.37109266 | W32: 110.2739541
B35: 1) For retten samlet, retssager, straffesager og civile sager svarer indeks 100 til gennemsnittet ved byretterne i 2014. For øvrige fogedsager, tvangsauktioner, insolvensskifter og dødsboskifter svarer indeks 100 til gennemsnittet for 2015. For fogedsager og skiftesager svarer indeks 100 det pågældende år, da det i 2015 har været nødvendigt at samveje øvrige fogedager og tvansauktioner til fogedsager, og insolvensskifter og dødsboskifter til skiftesager. Denne samvejning kan ikke foretages for 2014, og tallene er derfor ikke direkte sammenlignelige.
B37: 2) Tal for 2014 er genberegnet med nye årsværksvægte samt nye nøgler for samvejningen af retssager, fogedsager og skiftesager, og kan derfor ikke sammenlignes med årsnøgletallene for 2014.
B38: 3) "Retssager" svarer til den samlede produktivitet for straffesager og civile sager, "Fogedsager" til den samlede produktivitet for øvrige fogedsager og tvangsauktioner, "Skiftesager" til den samlede produktivitet for Insolvensskifter og Dødsboskifter.
B39: 4) Ved beregningen af den samlede produktivitet for juristerne anvendes det samlede årsværksforbrug for gruppen - dvs. også årsværksforbruget til generel ledelse og administration mv. Ved beregning af produktiviteten på de enkelte sagsområder er kun medtaget det direkte årsværksforbrug - dvs. der er ikke foretaget en nøgletalsfordeling af årsværkforbruget til generel ledelse og administration mv.

Sheet Generel ledelse_Adm.
B3: ÅRSVÆRKSFORBRUG ANVENDT TIL GENEREL LEDELSE OG ADMINISTRATION MV.
B5: EID | C5: Ret | E5: Årsværk til generel ledelse og administration | H5: %-del til generel ledelse og administration
E6: 2013 | F6: 2014 | G6: 2015 | H6: 2013 | I6: 2014 | J6: 2015
C8: SAMLET BYRETTERNE | D8: Jurister | E8: 36.35702278 | F8: 37.33012859 | G8: 35.63491684 | H8: 0.08133507374 | I8: 0.08366433883 | J8: 0.08258315243
D9: Kontor | E9: 155.2515591 | F9: 135.7750836 | G9: 123.1166614 | H9: 0.1810402546 | I9: 0.1649528892 | J9: 0.1535963216
D10: Elev | E10: 15.68827025 | F10: 10.58040017 | G10: 7.164550744 | H10: 0.1822297913 | I10: 0.1262837989 | J10: 0.09036842666
D11: Fleks | E11: 22.97564793 | F11: 21.51095487 | G11: 21.73261409 | H11: 0.4688870421 | I11: 0.4263307055 | J11: 0.4398293369
D12: Øvrige | E12: 74.78483108 | F12: 71.75058444 | G12: 70.9377161 | H12: 0.8134693366 | I12: 0.8260964736 | J12: 0.8108893127
C13: Samlet byretterne | D13: Samlet | E13: 305.0573311 | F13: 276.9471517 | G13: 258.5864591 | H13: 0.1991782049 | I13: 0.185821026 | J13: 0.1784292752
D14: - ekskl. fleks og elever | E14: 230.0363902 | F14: 244.8557966 | G14: 229.6892943 | H14: 0.1647248254 | I14: 0.1805510132 | J14: 0.173935252
B16: 901 | C16: Retten i Hjørring | D16: Jurister | E16: 1.711579293 | F16: 1.238467118 | G16: 1.927718998 | H16: 0.1179035896 | I16: 0.09019812202 | J16: 0.146231302
B17: 901 | C17: Retten i Hjørring | D17: Kontor | E17: 4.464384705 | F17: 4.067881552 | G17: 3.557959968 | H17: 0.1522361061 | I17: 0.1426468977 | J17: 0.1261977023
B18: 901 | C18: Retten i Hjørring | D18: Elev | E18: 1.04652633 | F18: 0.08265622103 | G18: 0.08961122894 | H18: 0.3331952606 | I18: 0.03411739837 | J18: 0.0322398216
B19: 901 | C19: Retten i Hjørring | D19: Fleks | E19: 0.4090567352 | F19: 0.0196392862 | G19: 0.01620549656 | H19: 0.1108960555 | I19: 0.006095806403 | J19: 0.005032794167
B20: 901 | C20: Retten i Hjørring | D20: Øvrige | E20: 2.538818452 | F20: 2.088980048 | G20: 2.699516249 | H20: 0.9053305467 | I20: 0.9662793715 | J20: 0.8908765317
B21: 901 | C21: Retten i Hjørring | D21: Samlet | E21: 10.17036552 | F21: 7.497624225 | G21: 8.29101194 | H21: 0.1901856069 | I21: 0.1497906806 | J21: 0.1644849826
D22: - ekskl. fleks og elever | E22: 8.71478245 | F22: 7.395328718 | G22: 8.185195215 | H22: 0.1868261939 | I22: 0.1665256771 | J22: 0.1843247158
B23: 902 | C23: Retten i Aalborg | D23: Jurister | E23: 0.8460539844 | F23: 0.9682438502 | G23: 1.049419821 | H23: 0.04072313044 | I23: 0.04163565635 | J23: 0.05016562953
B24: 902 | C24: Retten i Aalborg | D24: Kontor | E24: 7.365112991 | F24: 5.711289982 | G24: 6.955717691 | H24: 0.1675004336 | I24: 0.1412844228 | J24: 0.1668908289
B25: 902 | C25: Retten i Aalborg | D25: Elev | E25: 0.113336412 | F25: 0.2571238669 | G25: 0.3529961556 | H25: 0.02728939666 | I25: 0.06124855097 | J25: 0.107457627
B26: 902 | C26: Retten i Aalborg | D26: Fleks | E26: 1.592083399 | F26: 0.833058283 | G26: 0.4149964316 | H26: 0.6666373838 | I26: 0.4083138665 | J26: 0.2986660177
B27: 902 | C27: Retten i Aalborg | D27: Øvrige | E27: 1.037785109 | F27: 1.524294606 | G27: 1.265801002 | H27: 0.2403537751 | I27: 0.3145813731 | J27: 0.3964734631
B28: 902 | C28: Retten i Aalborg | D28: Samlet | E28: 10.9543719 | F28: 9.294010589 | G28: 10.0389311 | H28: 0.1448884242 | I28: 0.1243130201 | J28: 0.1424679654
D29: - ekskl. fleks og elever | E29: 9.248952085 | F29: 8.203828439 | G29: 9.270938514 | H29: 0.1339181623 | I29: 0.1197207669 | J29: 0.1409171381
B30: 903 | C30: Retten i Randers | D30: Jurister | E30: 1.865190253 | F30: 1.936296865 | G30: 1.780031634 | H30: 0.128240422 | I30: 0.1330848592 | J30: 0.1235601942
B31: 903 | C31: Retten i Randers | D31: Kontor | E31: 4.021040646 | F31: 2.909723753 | G31: 2.963392888 | H31: 0.1431059858 | I31: 0.1112681666 | J31: 0.1159689969
B32: 903 | C32: Retten i Randers | D32: Elev | E32: 0.3271675159 | F32: 0.7255616404 | G32: 0.2166317332 | H32: 0.1045534199 | I32: 0.2096447583 | J32: 0.05351719865
B33: 903 | C33: Retten i Randers | D33: Fleks | E33: 2.00006 | F33: 1.961935784 | G33: 2.794174135 | H33: 1 | I33: 0.753625466 | J33: 0.9419887516
B34: 903 | C34: Retten i Randers | D34: Øvrige | E34: 3.268930812 | F34: 3.839575243 | G34: 3.955989466 | H34: 0.9121893321 | I34: 0.8920759656 | J34: 0.9218090121
B35: 903 | C35: Retten i Randers | D35: Samlet | E35: 11.48238923 | F35: 11.37309329 | G35: 11.71021986 | H35: 0.2235855747 | I35: 0.2227039299 | J35: 0.2284243474
D36: - ekskl. fleks og elever | E36: 9.155161711 | F36: 8.685595861 | G36: 8.699413987 | H36: 0.1980503732 | I36: 0.1929961719 | J36: 0.1965922169
B37: 904 | C37: Retten i Århus | D37: Jurister | E37: 1.727330528 | F37: 1.892102974 | G37: 2.026770779 | H37: 0.06847082134 | I37: 0.07490397905 | J37: 0.0797113697
B38: 904 | C38: Retten i Århus | D38: Kontor | E38: 7.090608628 | F38: 4.464206871 | G38: 4.046671597 | H38: 0.1563449 | I38: 0.1080037072 | J38: 0.1002960945
B39: 904 | C39: Retten i Århus | D39: Elev | E39: 0.04737915046 | F39: 0.2122014787 | G39: 0.02006919433 | H39: 0.01705242887 | I39: 0.1012658036 | J39: 0.01006514488
B40: 904 | C40: Retten i Århus | D40: Fleks | E40: 2.45948994 | F40: 1.837616393 | G40: 1.939036151 | H40: 0.5170710762 | I40: 0.342262907 | J40: 0.3249512584
B41: 904 | C41: Retten i Århus | D41: Øvrige | E41: 3.846141491 | F41: 4.828655008 | G41: 3.349384299 | H41: 0.6545632221 | I41: 0.6760625411 | J41: 0.600238401
B42: 904 | C42: Retten i Århus | D42: Samlet | E42: 15.17094974 | F42: 13.23478273 | G42: 11.38193202 | H42: 0.180626951 | I42: 0.1629878475 | J42: 0.1435032556
D43: - ekskl. fleks og elever | E43: 12.66408065 | F43: 11.18496485 | G43: 9.422826676 | H43: 0.1656399121 | I43: 0.1516882453 | J43: 0.1320579781
B44: 905 | C44: Retten i Viborg | D44: Jurister | E44: 1.430296292 | F44: 1.525485417 | G44: 1.405995945 | H44: 0.09533598919 | I44: 0.09873807055 | J44: 0.08961164428
B45: 905 | C45: Retten i Viborg | D45: Kontor | E45: 4.578198862 | F45: 3.996436188 | G45: 3.540452682 | H45: 0.1632739121 | I45: 0.1515830158 | J45: 0.1374644271
B46: 905 | C46: Retten i Viborg | D46: Elev | E46: 0.6714420804 | F46: 0.2894278293 | G46: 0.2880265444 | H46: 0.161433839 | I46: 0.06747167099 | J46: 0.06940014033
B47: 905 | C47: Retten i Viborg | D47: Fleks | E47: 0.8174955916 | F47: 0.2713005559 | G47: 0.156245565 | H47: 0.4087355337 | I47: 0.1064157446 | J47: 0.06324835143
B48: 905 | C48: Retten i Viborg | D48: Øvrige | E48: 2.588169923 | F48: 2.509462845 | G48: 2.637861028 | H48: 0.666597107 | I48: 0.7417906239 | J48: 0.7160201049
B49: 905 | C49: Retten i Viborg | D49: Samlet | E49: 10.08560275 | F49: 8.592112835 | G49: 8.028581764 | H49: 0.1899909795 | I49: 0.1651169445 | J49: 0.1551418865
D50: - ekskl. fleks og elever | E50: 8.596665077 | F50: 8.03138445 | G50: 7.584309655 | H50: 0.1831987808 | I50: 0.1776954429 | J50: 0.1680571436
B51: 906 | C51: Retten i Holstebro | D51: Jurister | E51: 1.221986447 | F51: 0.9828585471 | G51: 0.9785960657 | H51: 0.1263472569 | I51: 0.1034779651 | J51: 0.09787242785
B52: 906 | C52: Retten i Holstebro | D52: Kontor | E52: 3.381041056 | F52: 3.21810841 | G52: 2.705851618 | H52: 0.1646634427 | I52: 0.1594088109 | J52: 0.1338563028
B53: 906 | C53: Retten i Holstebro | D53: Elev | E53: 0.250976155 | F53: 0.260219673 | G53: 0.2987936929 | H53: 0.1076494819 | I53: 0.09441350604 | J53: 0.1416278507
B54: 906 | C54: Retten i Holstebro | D54: Fleks | E54: 2.00005428 | F54: 2.00006 | G54: 2.00006 | H54: 0.6365058938 | I54: 1 | J54: 1
B55: 906 | C55: Retten i Holstebro | D55: Øvrige | E55: 2.493469055 | F55: 2.403162531 | G55: 2.297311023 | H55: 0.9156359791 | I55: 0.9252398729 | J55: 0.8883715355
B56: 906 | C56: Retten i Holstebro | D56: Samlet | E56: 9.347526992 | F56: 8.864409162 | G56: 8.2806124 | H56: 0.2434152933 | I56: 0.2393226155 | J56: 0.2243518769
D57: - ekskl. fleks og elever | E57: 7.096496557 | F57: 6.604129489 | G57: 5.981758707 | H57: 0.2155162205 | I57: 0.2045676638 | J57: 0.1823747512
B58: 907 | C58: Retten i Herning | D58: Jurister | E58: 0.7810083426 | F58: 0.7576176844 | G58: 1.145046948 | H58: 0.06595880723 | I58: 0.06647005271 | J58: 0.09992590497
B59: 907 | C59: Retten i Herning | D59: Kontor | E59: 3.895425067 | F59: 3.534635712 | G59: 2.913140052 | H59: 0.1876559948 | I59: 0.1748427841 | J59: 0.1412297329
B60: 907 | C60: Retten i Herning | D60: Elev | E60: 1.342690553 | F60: 0.913308257 | G60: 0.3777368315 | H60: 0.3306533207 | I60: 0.2423249659 | J60: 0.1169333546
B61: 907 | C61: Retten i Herning | D61: Fleks | E61: 0 | F61: 0 | G61: 0 | H61: 0 | I61: 0 | J61: 0
B62: 907 | C62: Retten i Herning | D62: Øvrige | E62: 2.11002 | F62: 2.08745 | G62: 2.00088 | H62: 1 | I62: 1 | J62: 1
B63: 907 | C63: Retten i Herning | D63: Samlet | E63: 8.129143962 | F63: 7.293011653 | G63: 6.436803831 | H63: 0.2096765189 | I63: 0.1946342015 | J63: 0.1724891131
D64: - ekskl. fleks og elever | E64: 6.786453409 | F64: 6.379703396 | G64: 6.059067 | H64: 0.1955231872 | I64: 0.1893007858 | J64: 0.1777540573
B65: 908 | C65: Retten i Horsens | D65: Jurister | E65: 1.153397266 | F65: 1.203072755 | G65: 1.263129335 | H65: 0.08200006014 | I65: 0.08358909411 | J65: 0.08955137685
B66: 908 | C66: Retten i Horsens | D66: Kontor | E66: 4.369533089 | F66: 4.259009138 | G66: 3.524991396 | H66: 0.1725936644 | I66: 0.1752354148 | J66: 0.162048975
B67: 908 | C67: Retten i Horsens | D67: Elev | E67: 0.8223624035 | F67: 0.3587700286 | G67: 0.5026444744 | H67: 0.2087807711 | I67: 0.09253232419 | J67: 0.164223186
B68: 908 | C68: Retten i Horsens | D68: Fleks | E68: 1.002587431 | F68: 1.037038757 | G68: 0.7857314286 | H68: 0.2809769105 | I68: 0.3456692156 | J68: 0.2857142857
B69: 908 | C69: Retten i Horsens | D69: Øvrige | E69: 2.866348658 | F69: 2.499526133 | G69: 2.350023616 | H69: 0.9554208901 | I69: 0.890502992 | J69: 0.7405031011
B70: 908 | C70: Retten i Horsens | D70: Samlet | E70: 10.21422885 | F70: 9.357416812 | G70: 8.42652025 | H70: 0.2047354864 | I70: 0.1934093848 | J70: 0.1879155474
D71: - ekskl. fleks og elever | E71: 8.389279013 | F71: 7.961608026 | G71: 7.138144347 | H71: 0.1979407442 | I71: 0.1918271636 | J71: 0.1828827547
B72: 909 | C72: Retten i Kolding | D72: Jurister | E72: 1.657589582 | F72: 1.480405023 | G72: 1.228612324 | H72: 0.07769082001 | I72: 0.07481406578 | J72: 0.06335414301
B73: 909 | C73: Retten i Kolding | D73: Kontor | E73: 6.488451367 | F73: 5.926518123 | G73: 4.82872704 | H73: 0.1743452798 | I73: 0.1603423582 | J73: 0.1357221207
B74: 909 | C74: Retten i Kolding | D74: Elev | E74: 0.1620074364 | F74: 0.04646470159 | G74: 0.3968045223 | H74: 0.04746789073 | I74: 0.01311291647 | J74: 0.09741957017
B75: 909 | C75: Retten i Kolding | D75: Fleks | E75: 0.8473533333 | F75: 1.015208751 | G75: 1.01435647 | H75: 0.3333333333 | I75: 0.3383927654 | J75: 0.338106426
B76: 909 | C76: Retten i Kolding | D76: Øvrige | E76: 3.02865 | F76: 3.017957819 | G76: 3.011997136 | H76: 1 | I76: 0.8979772375 | J76: 0.8062975692
B77: 909 | C77: Retten i Kolding | D77: Samlet | E77: 12.18405172 | F77: 11.48655442 | G77: 10.48049749 | H77: 0.1804095344 | I77: 0.1723315763 | J77: 0.1593273284
D78: - ekskl. fleks og elever | E78: 11.17469095 | F78: 10.42488097 | G78: 9.0693365 | H78: 0.1814648532 | I78: 0.1734292531 | J78: 0.1544863337
B79: 910 | C79: Retten i Esbjerg | D79: Jurister | E79: 0.9842534688 | F79: 1.194115675 | G79: 1.102596759 | H79: 0.06593010989 | I79: 0.08164324098 | J79: 0.07825407307
B80: 910 | C80: Retten i Esbjerg | D80: Kontor | E80: 4.077491019 | F80: 3.232979106 | G80: 2.725533434 | H80: 0.1370703166 | I80: 0.1156161115 | J80: 0.1053689544
B81: 910 | C81: Retten i Esbjerg | D81: Elev | E81: 0.2077267303 | F81: 0.2559738462 | G81: 0.2191336411 | H81: 0.06231546415 | I81: 0.06448792269 | J81: 0.05613054331
B82: 910 | C82: Retten i Esbjerg | D82: Fleks | E82: 2.017117625 | F82: 1.213883574 | G82: 0.1200053823 | H82: 0.4962012499 | I82: 0.3751127374 | J82: 0.0540801081
B83: 910 | C83: Retten i Esbjerg | D83: Øvrige | E83: 2.177761759 | F83: 2.04207 | G83: 3.0907 | H83: 0.9900402148 | I83: 1 | J83: 1
B84: 910 | C84: Retten i Esbjerg | D84: Samlet | E84: 9.464350602 | F84: 7.939022202 | G84: 7.257969217 | H84: 0.1743795164 | I84: 0.1531549996 | J84: 0.1476089249
D85: - ekskl. fleks og elever | E85: 7.239506247 | F85: 6.469164782 | G85: 6.918830193 | H85: 0.1544399994 | I85: 0.1449473346 | J85: 0.1607264903
B86: 911 | C86: Retten i Sønderborg | D86: Jurister | E86: 1.731698581 | F86: 1.099184253 | G86: 1.043237784 | H86: 0.09974389129 | I86: 0.07066823021 | J86: 0.06369719672
B87: 911 | C87: Retten i Sønderborg | D87: Kontor | E87: 5.846119635 | F87: 5.499621713 | G87: 2.714924234 | H87: 0.174480669 | I87: 0.1709381893 | J87: 0.08844726683
B88: 911 | C88: Retten i Sønderborg | D88: Elev | E88: 0.9449837657 | F88: 0.2819133878 | G88: 0.2697529082 | H88: 0.2408418052 | I88: 0.07867050312 | J88: 0.09364274446
B89: 911 | C89: Retten i Sønderborg | D89: Fleks | E89: 0.5 | F89: 1.036323206 | G89: 0.8147727195 | H89: 1 | I89: 0.7748500548 | J89: 0.6614273927
B90: 911 | C90: Retten i Sønderborg | D90: Øvrige | E90: 3.049404946 | F90: 2.972392799 | G90: 2.893179599 | H90: 0.9752197698 | I90: 0.9404490902 | J90: 0.8065196639
B91: 911 | C91: Retten i Sønderborg | D91: Samlet | E91: 12.07220693 | F91: 10.88943536 | G91: 7.735867245 | H91: 0.2066527439 | I91: 0.1951202598 | J91: 0.14123448
D92: - ekskl. fleks og elever | E92: 10.62722316 | F92: 9.571198765 | G92: 6.651341617 | H92: 0.1968216784 | I92: 0.1880839061 | J92: 0.1312918888
B93: 912 | C93: Retten i Odense | D93: Jurister | E93: 1.16149438 | F93: 2.166297076 | G93: 2.176553678 | H93: 0.05324363147 | I93: 0.09135540755 | J93: 0.0958129762
B94: 912 | C94: Retten i Odense | D94: Kontor | E94: 5.717530347 | F94: 5.143963768 | G94: 4.139676773 | H94: 0.1264111119 | I94: 0.1170460626 | J94: 0.1112493654
B95: 912 | C95: Retten i Odense | D95: Elev | E95: 0.43227057 | F95: 0.1974280623 | G95: 0.2078070924 | H95: 0.1083251856 | I95: 0.07470016812 | J95: 0.07669120567
B96: 912 | C96: Retten i Odense | D96: Fleks | E96: 2.00006 | F96: 2.00006 | G96: 2.125729867 | H96: 1 | I96: 1 | J96: 0.9329145952
B97: 912 | C97: Retten i Odense | D97: Øvrige | E97: 4.694404146 | F97: 4.77327 | G97: 4.396106807 | H97: 0.9723188754 | I97: 1 | J97: 0.9947675968
B98: 912 | C98: Retten i Odense | D98: Samlet | E98: 14.00575944 | F98: 14.28101891 | G98: 13.04587422 | H98: 0.1798770486 | I98: 0.1852817263 | J98: 0.1881572329
D99: - ekskl. fleks og elever | E99: 11.57342887 | F99: 12.08353084 | G99: 10.71233726 | H99: 0.1610274217 | I99: 0.1668205188 | J99: 0.1664783989
B100: 913 | C100: Retten i Svendborg | D100: Jurister | E100: 0.8474480396 | F100: 0.6600560723 | G100: 1.003447994 | H100: 0.08227483125 | I100: 0.06425554326 | J100: 0.1005501228
B101: 913 | C101: Retten i Svendborg | D101: Kontor | E101: 2.32071822 | F101: 2.412987161 | G101: 2.315375499 | H101: 0.1069119885 | I101: 0.1193656993 | J101: 0.1194266952
B102: 913 | C102: Retten i Svendborg | D102: Elev | E102: 0.2390917663 | F102: 0.9442746025 | G102: 0.3647912909 | H102: 0.1758984788 | I102: 0.4081178886 | J102: 0.1376015311
B103: 913 | C103: Retten i Svendborg | D103: Fleks | E103: 0.5543142599 | F103: 0.5616630293 | G103: 0.5085780684 | H103: 0.554297631 | I103: 0.5616461799 | J103: 0.5085628115
B104: 913 | C104: Retten i Svendborg | D104: Øvrige | E104: 2.585208709 | F104: 2.608772264 | G104: 2.615194224 | H104: 0.9963535667 | I104: 0.9254345609 | J104: 0.7965479063
B105: 913 | C105: Retten i Svendborg | D105: Samlet | E105: 6.546780995 | F105: 7.187753129 | G105: 6.807387077 | H105: 0.1771268239 | I105: 0.1962785298 | J105: 0.1875248153
D106: - ekskl. fleks og elever | E106: 5.753374969 | F106: 5.681815497 | G106: 5.934017717 | H106: 0.1662743921 | I106: 0.1705922523 | J106: 0.1817454407
B107: 914 | C107: Retten i Nykøbing F. | D107: Jurister | E107: 1.295914033 | F107: 1.271458669 | G107: 1.311103055 | H107: 0.0927106451 | I107: 0.0919366227 | J107: 0.09319012523
B108: 914 | C108: Retten i Nykøbing F. | D108: Kontor | E108: 5.582460346 | F108: 4.322331885 | G108: 4.051827423 | H108: 0.1827234928 | I108: 0.1408905504 | J108: 0.1369386627
B109: 914 | C109: Retten i Nykøbing F. | D109: Elev | E109: 0.385803918 | F109: 0.2843849131 | G109: 0.4258019571 | H109: 0.1928942432 | I109: 0.1183566174 | J109: 0.2364069184
B110: 914 | C110: Retten i Nykøbing F. | D110: Fleks | E110: 0 | F110: 0 | G110: 0 | H110: 0 | I110: 0 | J110: 0
B111: 914 | C111: Retten i Nykøbing F. | D111: Øvrige | E111: 3.35203681 | F111: 2.991731824 | G111: 2.93638 | H111: 0.9981052911 | I111: 0.998125619 | J111: 1
B112: 914 | C112: Retten i Nykøbing F. | D112: Samlet | E112: 10.61621511 | F112: 8.869907292 | G112: 8.725112435 | H112: 0.2126084746 | I112: 0.1762527847 | J112: 0.1802885372
D113: - ekskl. fleks og elever | E113: 10.23041119 | F113: 8.585522379 | G113: 8.299310478 | H113: 0.2136326657 | I113: 0.1807260383 | J113: 0.1781192283
B114: 915 | C114: Retten i Næstved | D114: Jurister | E114: 1.608808756 | F114: 1.648800767 | G114: 1.482948436 | H114: 0.08602684933 | I114: 0.09393495242 | J114: 0.09061502651
B115: 915 | C115: Retten i Næstved | D115: Kontor | E115: 7.126083293 | F115: 6.652085932 | G115: 5.612669648 | H115: 0.1989985206 | I115: 0.1942078783 | J115: 0.1684341231
B116: 915 | C116: Retten i Næstved | D116: Elev | E116: 0.6677756321 | F116: 0.2408870973 | G116: 0.3174811928 | H116: 0.2750515409 | I116: 0.09104302468 | J116: 0.09182710398
B117: 915 | C117: Retten i Næstved | D117: Fleks | E117: 2.579130576 | F117: 1.723899886 | G117: 3.107654402 | H117: 0.9127339495 | I117: 0.5858384318 | J117: 0.8047749077
B118: 915 | C118: Retten i Næstved | D118: Øvrige | E118: 3.546260046 | F118: 3.016527676 | G118: 2.631638244 | H118: 0.9602601788 | I118: 0.9263182759 | J118: 0.9197994632
B119: 915 | C119: Retten i Næstved | D119: Samlet | E119: 15.5280583 | F119: 13.28220136 | G119: 13.15239192 | H119: 0.2447000112 | I119: 0.218997802 | J119: 0.219689813
D120: - ekskl. fleks og elever | E120: 12.28115209 | F120: 11.31741438 | G120: 9.727256329 | H120: 0.2110018934 | I120: 0.2055415245 | J120: 0.1851079177
B121: 916 | C121: Retten i Holbæk | D121: Jurister | E121: 0.9256281188 | F121: 0.911139099 | G121: 1.801819262 | H121: 0.07186112954 | I121: 0.07273727404 | J121: 0.144616412
B122: 916 | C122: Retten i Holbæk | D122: Kontor | E122: 4.428882005 | F122: 4.049270375 | G122: 3.439557075 | H122: 0.1610022468 | I122: 0.1613929636 | J122: 0.133564295
B123: 916 | C123: Retten i Holbæk | D123: Elev | E123: 1.050256038 | F123: 0.2942430528 | G123: 0.1900746386 | H123: 0.3354636056 | I123: 0.1027998745 | J123: 0.151992834
B124: 916 | C124: Retten i Holbæk | D124: Fleks | E124: 1.00003 | F124: 0.9461920835 | G124: 0.9772101338 | H124: 0.3333333333 | I124: 0.3350574133 | J124: 0.3257269395
B125: 916 | C125: Retten i Holbæk | D125: Øvrige | E125: 2.328462706 | F125: 1.918544946 | G125: 2.326596541 | H125: 0.9295000561 | I125: 0.8569791559 | J125: 0.8776794391
B126: 916 | C126: Retten i Holbæk | D126: Samlet | E126: 9.733258867 | F126: 8.119389556 | G126: 8.73525765 | H126: 0.1985370063 | I126: 0.1782877024 | J126: 0.1936312096
D127: - ekskl. fleks og elever | E127: 7.682972829 | F127: 6.87895442 | G127: 7.567972878 | H127: 0.1791150763 | I127: 0.1726009196 | J127: 0.1852070905
B128: 917 | C128: Retten i Roskilde | D128: Jurister | E128: 2.465676969 | F128: 2.383437268 | G128: 1.445986128 | H128: 0.1096671867 | I128: 0.1150410832 | J128: 0.07494621949
B129: 917 | C129: Retten i Roskilde | D129: Kontor | E129: 6.543050036 | F129: 6.443531807 | G129: 4.702296064 | H129: 0.1572889401 | I129: 0.1495363504 | J129: 0.111251605
B130: 917 | C130: Retten i Roskilde | D130: Elev | E130: 0.514708254 | F130: 0.5786450391 | G130: 0.3263616835 | H130: 0.1032230368 | I130: 0.1805118073 | J130: 0.1066036302
B131: 917 | C131: Retten i Roskilde | D131: Fleks | E131: 0 | F131: 0 | G131: 0.6445941077 | H131: 0 | I131: 0 | J131: 0
B132: 917 | C132: Retten i Roskilde | D132: Øvrige | E132: 3.607227626 | F132: 3.257857106 | G132: 2.19316 | H132: 0.9344713527 | I132: 0.922437944 | J132: 1
B133: 917 | C133: Retten i Roskilde | D133: Samlet | E133: 13.13066289 | F133: 12.66347122 | G133: 9.312397982 | H133: 0.1776123542 | I133: 0.1769985778 | J133: 0.1378299924
D134: - ekskl. fleks og elever | E134: 12.61595463 | F134: 12.08482618 | G134: 8.341442191 | H134: 0.1856861136 | I134: 0.1794598483 | J134: 0.130837881
B135: 918 | C135: Retten i Hillerød | D135: Jurister | E135: 1.917792908 | F135: 2.019006618 | G135: 1.243913384 | H135: 0.1285599402 | I135: 0.1275491823 | J135: 0.08732096792
B136: 918 | C136: Retten i Hillerød | D136: Kontor | E136: 5.680527422 | F136: 4.143702819 | G136: 3.681746673 | H136: 0.2194150976 | I136: 0.1664382323 | J136: 0.1529554663
B137: 918 | C137: Retten i Hillerød | D137: Elev | E137: 0.1906740076 | F137: 0.1543435384 | G137: 0.05670782552 | H137: 0.04663301578 | I137: 0.04051171002 | J137: 0.0142391101
B138: 918 | C138: Retten i Hillerød | D138: Fleks | E138: 1.168203155 | F138: 1.173645324 | G138: 1.516586518 | H138: 0.5042748663 | I138: 0.5049196461 | J138: 0.5994152499
B139: 918 | C139: Retten i Hillerød | D139: Øvrige | E139: 2.691975178 | F139: 2.826573776 | G139: 2.605375024 | H139: 0.5680650745 | I139: 0.6406558875 | J139: 0.6044546942
B140: 918 | C140: Retten i Hillerød | D140: Samlet | E140: 11.64917267 | F140: 10.31727208 | G140: 9.104329424 | H140: 0.2242330717 | I140: 0.2012268345 | J140: 0.185277248
D141: - ekskl. fleks og elever | E141: 10.29029551 | F141: 8.989283214 | G141: 7.531035081 | H141: 0.2259331167 | I141: 0.1991529722 | J141: 0.1766757866
B142: 919 | C142: Retten i Helsingør | D142: Jurister | E142: 1.394779274 | F142: 1.476871394 | G142: 0.9700124343 | H142: 0.09635208366 | I142: 0.09434629281 | J142: 0.06888162768
B143: 919 | C143: Retten i Helsingør | D143: Kontor | E143: 3.294942808 | F143: 2.553297135 | G143: 3.437969586 | H143: 0.130844588 | I143: 0.1071676504 | J143: 0.1410081716
B144: 919 | C144: Retten i Helsingør | D144: Elev | E144: 0.4013449307 | F144: 0.5854494623 | G144: 0.3669610329 | H144: 0.09544650806 | I144: 0.147329955 | J144: 0.0986852314
B145: 919 | C145: Retten i Helsingør | D145: Fleks | E145: 0.8697369233 | F145: 2.013549582 | G145: 1.876253107 | H145: 0.4110929036 | I145: 0.6061111058 | J145: 0.5305680518
B146: 919 | C146: Retten i Helsingør | D146: Øvrige | E146: 1.863176694 | F146: 1.98019 | G146: 2.206276124 | H146: 0.9990437834 | I146: 1 | J146: 0.8945402265
B147: 919 | C147: Retten i Helsingør | D147: Samlet | E147: 7.82398063 | F147: 8.609357574 | G147: 8.857472284 | H147: 0.1635327131 | I147: 0.1765841317 | J147: 0.1838227635
D148: - ekskl. fleks og elever | E148: 6.552898776 | F148: 6.010358529 | G148: 6.614258144 | H148: 0.1578139783 | I148: 0.1449705115 | J148: 0.1615991126
B149: 920 | C149: Retten i Lyngby | D149: Jurister | E149: 1.171867033 | F149: 1.173160617 | G149: 0.7857969043 | H149: 0.0600574933 | I149: 0.06237730909 | J149: 0.04916399016
B150: 920 | C150: Retten i Lyngby | D150: Kontor | E150: 6.985242451 | F150: 6.28629777 | G150: 5.47707255 | H150: 0.2358070821 | I150: 0.2131384066 | J150: 0.1856478692
B151: 920 | C151: Retten i Lyngby | D151: Elev | E151: 1.645148052 | F151: 0.8580004628 | G151: 0.5986310517 | H151: 0.4785022198 | I151: 0.2431829349 | J151: 0.2028082202
B152: 920 | C152: Retten i Lyngby | D152: Fleks | E152: -0.1428 | F152: 0 | G152: 0 | H152: 0.3333333333 | I152: 0 | J152: 0
B153: 920 | C153: Retten i Lyngby | D153: Øvrige | E153: 3.271606203 | F153: 3.040581361 | G153: 3.056006971 | H153: 0.909398397 | I153: 0.8854729708 | J153: 0.8673410979
B154: 920 | C154: Retten i Lyngby | D154: Samlet | E154: 12.93106374 | F154: 11.35804021 | G154: 9.917507477 | H154: 0.2319789973 | I154: 0.2055250952 | J154: 0.1908652173
D155: - ekskl. fleks og elever | E155: 11.42871569 | F155: 10.50003975 | G155: 9.318876425 | H155: 0.2167293196 | I155: 0.2029569311 | J155: 0.1901459163
B156: 921 | C156: Retten i Glostrup | D156: Jurister | E156: 2.619334027 | F156: 2.854978396 | G156: 1.96632876 | H156: 0.08032896718 | I156: 0.09254390021 | J156: 0.06395790154
B157: 921 | C157: Retten i Glostrup | D157: Kontor | E157: 13.68923352 | F157: 10.8986431 | G157: 9.191330202 | H157: 0.2060845702 | I157: 0.1713237381 | J157: 0.1543165823
B158: 921 | C158: Retten i Glostrup | D158: Elev | E158: 0.8994684532 | F158: 0.8010689453 | G158: 0.1930422244 | H158: 0.1783682851 | I158: 0.1619119213 | J158: 0.03950877074
B159: 921 | C159: Retten i Glostrup | D159: Fleks | E159: 1.004816961 | F159: 1.001719403 | G159: 0.8843131411 | H159: 0.3115808122 | I159: 0.3338964508 | J159: 0.3842801389
B160: 921 | C160: Retten i Glostrup | D160: Øvrige | E160: 5.17710372 | F160: 4.425541651 | G160: 4.227104527 | H160: 0.6385061598 | I160: 0.9982207121 | J160: 0.7581556714
B161: 921 | C161: Retten i Glostrup | D161: Samlet | E161: 23.38995668 | F161: 19.98195149 | G161: 16.46211886 | H161: 0.2026706187 | I161: 0.1870174417 | J161: 0.159720299
D162: - ekskl. fleks og elever | E162: 21.48567127 | F162: 18.17916315 | G162: 15.38476349 | H162: 0.2005362955 | I162: 0.1838177813 | J162: 0.1604566184
B163: 922 | C163: Retten på Frederiksberg | D163: Jurister | E163: 1.759340021 | F163: 1.852787927 | G163: 2.003515108 | H163: 0.07381069939 | I163: 0.07185180649 | J163: 0.08060602351
B164: 922 | C164: Retten på Frederiksberg | D164: Kontor | E164: 8.58306785 | F164: 7.344255037 | G164: 5.812512206 | H164: 0.1919548636 | I164: 0.1702595194 | J164: 0.1352885021
B165: 922 | C165: Retten på Frederiksberg | D165: Elev | E165: 0.6262782166 | F165: 0.7437631575 | G165: 0.3907372396 | H165: 0.2089620988 | I165: 0.213521341 | J165: 0.09768040268
B166: 922 | C166: Retten på Frederiksberg | D166: Fleks | E166: 0.01042454241 | F166: 0.02418866682 | G166: 0.02199959582 | H166: 0.004344772252 | I166: 0.008199325721 | J166: 0.007592560473
B167: 922 | C167: Retten på Frederiksberg | D167: Øvrige | E167: 4.77074056 | F167: 3.981394921 | G167: 4.0764034 | H167: 0.797902788 | I167: 0.7183223345 | J167: 0.8896248494
B168: 922 | C168: Retten på Frederiksberg | D168: Samlet | E168: 15.74985119 | F168: 13.94638971 | G168: 12.30516755 | H168: 0.1970570187 | I168: 0.1723949109 | J168: 0.1551736831
D169: - ekskl. fleks og elever | E169: 15.11314843 | F169: 13.17843788 | G169: 11.89243071 | H169: 0.2027823079 | I169: 0.1769760671 | J169: 0.164256372
B170: 923 | C170: Københavns Byret | D170: Jurister | E170: 3.285429929 | F170: 3.531979526 | G170: 3.137026083 | H170: 0.05593505519 | I170: 0.05948319592 | J170: 0.05389042113
B171: 923 | C171: Københavns Byret | D171: Kontor | E171: 27.5450978 | F171: 26.92259971 | G171: 29.50634781 | H171: 0.2423785039 | I171: 0.2475668442 | J171: 0.2668122016
B172: 923 | C172: Københavns Byret | D172: Elev | E172: 2.236469241 | F172: 0.9417307953 | G172: 0.4164350414 | H172: 0.2766691912 | I172: 0.1176985475 | J172: 0.05640007657
B173: 923 | C173: Københavns Byret | D173: Fleks | E173: 0.2864331744 | F173: 0.8399722993 | G173: 0.01411136758 | H173: 0.3370158892 | I173: 0.4840948277 | J173: 0.3293970024
B174: 923 | C174: Københavns Byret | D174: Øvrige | E174: 6.613096491 | F174: 5.894737783 | G174: 6.370656869 | H174: 0.7452400771 | I174: 0.7136028539 | J174: 0.7147208185
B175: 923 | C175: Københavns Byret | D175: Samlet | E175: 39.96652664 | F175: 38.13102011 | G175: 39.44457717 | H175: 0.2101414145 | I175: 0.2048694996 | J175: 0.2130531964
D176: - ekskl. fleks og elever | E176: 37.44362422 | F176: 36.34931702 | G176: 39.01403076 | H176: 0.2065795179 | I176: 0.2060769464 | J176: 0.2195337428
B177: 924 | C177: Retten på Bornholm | D177: Jurister | E177: 0.7931252527 | F177: 1.102305001 | G177: 1.35530922 | H177: 0.2273966061 | I177: 0.2923358654 | J177: 0.3928136487
B178: 924 | C178: Retten på Bornholm | D178: Kontor | E178: 2.177315947 | F178: 1.781706553 | G178: 1.270917261 | H178: 0.278961745 | I178: 0.2366273002 | J178: 0.1896642323
B179: 924 | C179: Retten på Bornholm | D179: Elev | E179: 0.4623826341 | F179: 0.272560107 | G179: 0.2775175468 | H179: 0.2337012687 | I179: 0.1362582522 | J179: 0.1451003857
B180: 924 | C180: Retten på Bornholm | D180: Fleks | E180: 0 | F180: 0 | G180: 0 | H180: 0 | I180: 0 | J180: 0
B181: 924 | C181: Retten på Bornholm | D181: Øvrige | E181: 1.278031987 | F181: 1.221334095 | G181: 1.74417395 | H181: 0.9994932171 | I181: 0.9513133215 | J181: 0.9616237635
B182: 924 | C182: Retten på Bornholm | D182: Samlet | E182: 4.71085582 | F182: 4.377905756 | G182: 4.647917977 | H182: 0.3237672667 | I182: 0.3001766785 | J182: 0.3349244913
D183: - ekskl. fleks og elever | E183: 4.248473186 | F183: 4.105345649 | G183: 4.37040043 | H183: 0.3379421224 | I183: 0.3262324987 | J183: 0.3652678355
B185: 1) I opgørelsen er årsværksforbrug under kategorierne "ledelse og administration", "hjælpefunktioner" og "transporttid" henført under generel ledelse og administration mv.
B187: 2) Opgørelsen af årsværk for 2014 er genberegnet med de nye årsværksvægte og kan derfor ikke sammenlignes med tal fra Årsnøgletallene for 2014.

Sheet Aktivitet
B2: AKTIVITET VED RETTEN MÅLT SOM VÆGTEDE AFSLUTTEDE SAGER
B4: EID | C4: Ret | D4: Samlet | F4: Straffesager | H4: Civile sager | J4: Øvrige Fogedsager | L4: Tvangsauktionssager | N4: Insolvensskiftesager | P4: Dødsboskiftesager | R4: Notarialforretninger
D5: 2014 | E5: 2015 | F5: 2014 | G5: 2015 | H5: 2014 | I5: 2015 | J5: 2014 | K5: 2015 | L5: 2014 | M5: 2015 | N5: 2014 | O5: 2015 | P5: 2014 | Q5: 2015 | R5: 2014 | S5: 2015
C7: SAMLET BYRETTERNE | D7: =SUM(D9:D32) -> 706113.5831 | E7: 695941.2373 | F7: 165160.2882 | G7: 169254.2535 | H7: 52764.1052 | I7: 49533.30445 | J7: 330079.5161 | K7: 319666.4754 | L7: 9285.529617 | M7: 8548.055595 | N7: 14422.50818 | O7: =SUM(O9:O32) -> 13978.84688 | P7: 52083.64159 | Q7: =SUM(Q9:Q32) -> 54603.68575 | R7: =SUM(R9:R32) -> 72581 | S7: =SUM(S9:S32) -> 70145
B9: 901 | C9: Retten i Hjørring | D9: 24231.45153 | E9: 23449.99912 | F9: 4479.728149 | G9: 4812.739258 | H9: 1908.932007 | I9: 1610.890808 | J9: 11870.073 | K9: 11777.38892 | L9: 508.4147186 | M9: 502.3278961 | N9: 707.5811768 | O9: 657.1255035 | P9: 2159.498199 | Q9: 2257.094421 | R9: 1348 | S9: 1258
B10: 902 | C10: Retten i Aalborg | D10: 35991.69263 | E10: 36439.19642 | F10: 7112.765137 | G10: 7968.145508 | H10: 3010.994873 | I10: 2846.479248 | J10: 15752.21826 | K10: 15339.42871 | L10: 484.5171661 | M10: 379.3684082 | N10: 1086.06488 | O10: 999.8043518 | P10: 2725.312866 | Q10: 3028.224976 | R10: 3714 | S10: 3572
B11: 903 | C11: Retten i Randers | D11: 24920.91522 | E11: 24155.2195 | F11: 4457.95459 | G11: 4272.122559 | H11: 1948.402405 | I11: 1773.822876 | J11: 12261.29736 | K11: 12763.90698 | L11: 382.5650177 | M11: 447.9236298 | N11: 916.5063171 | O11: 867.2238464 | P11: 2153.675842 | Q11: 2220.374298 | R11: 1744 | S11: 1708
B12: 904 | C12: Retten i Århus | D12: 38421.27509 | E12: 37428.17365 | F12: 8485.993896 | G12: 8661.665527 | H12: 3155.017761 | I12: 3021.378967 | J12: 16743.5752 | K12: 15535.50684 | L12: 331.1032333 | M12: 255.6871872 | N12: 972.2393799 | O12: 940.5897217 | P12: 2520.260864 | Q12: 2464.756226 | R12: 5668 | S12: 5576
B13: 905 | C13: Retten i Viborg | D13: 23556.03139 | E13: 23532.43328 | F13: 4668.484375 | G13: 4471.237183 | H13: 1781.420776 | I13: 1811.395813 | J13: 11757.76831 | K13: 11814.17212 | L13: 319.4341125 | M13: 346.5276184 | N13: 667.6626434 | O13: 683.7905273 | P13: 2060.987305 | Q13: 2121.629364 | R13: 2219 | S13: 1939
B14: 906 | C14: Retten i Holstebro | D14: 16602.88617 | E14: 15678.89651 | F14: 3517.164429 | G14: 3393.118042 | H14: 1099.136749 | I14: 987.1185303 | J14: 7684.278809 | K14: 7386.050049 | L14: 285.274025 | M14: 339.1680145 | N14: 489.186554 | O14: 436.7157898 | P14: 1764.232605 | Q14: 1682.725891 | R14: 1614 | S14: 1581
B15: 907 | C15: Retten i Herning | D15: 17939.2435 | E15: 17141.48965 | F15: 3698.776001 | G15: 3762.540039 | H15: 1266.091248 | I15: 1093.167816 | J15: 8758.179443 | K15: 8537.907959 | L15: 235.4385452 | M15: 246.099884 | N15: 563.692627 | O15: 539.7242126 | P15: 1633.056763 | Q15: 1596.773804 | R15: 1825 | S15: 1705
B16: 908 | C16: Retten i Horsens | D16: 20622.8524 | E16: 20178.86705 | F16: 4225.838501 | G16: 4313.830811 | H16: 1588.588379 | I16: 1526.77301 | J16: 9204.590088 | K16: 8862.283691 | L16: 361.2175293 | M16: 281.5792465 | N16: 752.0718994 | O16: 628.4399261 | P16: 1440.007141 | Q16: 1645.343475 | R16: 1766 | S16: 1560
B17: 909 | C17: Retten i Kolding | D17: 32929.73508 | E17: 33878.43573 | F17: 6915.296143 | G17: 7043.859619 | H17: 2533.439331 | I17: 2553.150818 | J17: 16391.63672 | K17: 17553.50537 | L17: 340.017807 | M17: 396.0522308 | N17: 907.188324 | O17: 865.6363525 | P17: 2439.259338 | Q17: 2672.467773 | R17: 3351 | S17: 3249
B18: 910 | C18: Retten i Esbjerg | D18: 22639.76365 | E18: 21654.31366 | F18: 5641.803955 | G18: 5706.415771 | H18: 1397.600922 | I18: 1151.103241 | J18: 10924.32202 | K18: 10232.13916 | L18: 320.3431396 | M18: 327.6441498 | N18: 578.9685059 | O18: 546.7305756 | P18: 1871.876465 | Q18: 2089.453857 | R18: 1980 | S18: 1808
B19: 911 | C19: Retten i Sønderborg | D19: 27852.73529 | E19: 27226.23348 | F19: 6856.359863 | G19: 6795.155029 | H19: 1724.220886 | I19: 1660.525757 | J19: 14077.21143 | K19: 12231.59985 | L19: 446.8674622 | M19: 513.721817 | N19: 660.2856293 | O19: 695.8743744 | P19: 2271.315216 | Q19: 2464.422272 | R19: 2197 | S19: 2032
B20: 912 | C20: Retten i Odense | D20: 36744.23685 | E20: 36811.99036 | F20: 8888.474365 | G20: 9819.551514 | H20: 2347.748596 | I20: 2103.960938 | J20: 18468.66553 | K20: 17137.88574 | L20: 544.7731934 | M20: 443.8759613 | N20: 903.4162292 | O20: 918.5071716 | P20: 2894.672729 | Q20: 3133.800903 | R20: 3663 | S20: 3285
B21: 913 | C21: Retten i Svendborg | D21: 17167.42617 | E21: 16976.47094 | F21: 3431.621704 | G21: 3156.530396 | H21: 1147.668274 | I21: 1053.818298 | J21: 8912.706787 | K21: 9383.548096 | L21: 368.8421173 | M21: 322.572113 | N21: 486.3911591 | O21: 588.4513397 | P21: 1752.541168 | Q21: 1922.723114 | R21: 1098 | S21: 1161
B22: 914 | C22: Retten i Nykøbing F. | D22: 23898.18672 | E22: 23697.47212 | F22: 5251.076904 | G22: 5687.441895 | H22: 1413.418732 | I22: 1346.128571 | J22: 13307.21167 | K22: 12178.83179 | L22: 872.5664062 | M22: 822.4550781 | N22: 502.4062347 | O22: 469.5357056 | P22: 2233.823669 | Q22: 2239.356689 | R22: 1037 | S22: 917
B23: 915 | C23: Retten i Næstved | D23: 29629.24024 | E23: 29125.93231 | F23: 6219.368652 | G23: 6656.340332 | H23: 1911.199707 | I23: 1738.830383 | J23: 17248.54004 | K23: 15908.08936 | L23: 650.5984497 | M23: 524.3079681 | N23: 822.6194153 | O23: 857.3530579 | P23: 2348.953796 | Q23: 2456.766357 | R23: 2103 | S23: 1966
B24: 916 | C24: Retten i Holbæk | D24: 21407.47733 | E24: 20873.32047 | F24: 4391.970215 | G24: 4051.486328 | H24: 1512.123901 | I24: 1503.855164 | J24: 11704.97241 | K24: 11519.28149 | L24: 463.9634094 | M24: 441.2679443 | N24: 614.3150787 | O24: 592.8428192 | P24: 1610.339661 | Q24: 1745.19693 | R24: 1117 | S24: 1056
B25: 917 | C25: Retten i Roskilde | D25: 36067.01337 | E25: 34719.23038 | F25: 8207.594727 | G25: 8039.248779 | H25: 2495.398743 | I25: 2274.530151 | J25: 18369.10449 | K25: 16433.60498 | L25: 646.903717 | M25: 421.7391663 | N25: 1028.861481 | O25: 1123.916565 | P25: 2401.312836 | Q25: 2865.213135 | R25: 2855 | S25: 2746
B26: 918 | C26: Retten i Hillerød | D26: 22666.59835 | E26: 21486.29726 | F26: 5243.24646 | G26: 4808.031006 | H26: 1629.178101 | I26: 1614.889771 | J26: 10232.53979 | K26: 9212.493408 | L26: 270.847847 | M26: 300.4926605 | N26: 660.4494629 | O26: 641.1624451 | P26: 1701.493408 | Q26: 1640.173645 | R26: 1943 | S26: 1866
B27: 919 | C27: Retten i Helsingør | D27: 22027.06826 | E27: 21566.01828 | F27: 4424.480103 | G27: 4553.238403 | H27: 1711.182922 | I27: 1613.107178 | J27: 10395.77661 | K27: 10464.64526 | L27: 327.9034119 | M27: 355.5715179 | N27: 670.3866119 | O27: 543.4214325 | P27: 1801.072845 | Q27: 1813.765594 | R27: 1521 | S27: 1565
B28: 920 | C28: Retten i Lyngby | D28: 24814.69002 | E28: 24902.19301 | F28: 4178.591553 | G28: 4839.554932 | H28: 2730.111694 | I28: 2496.268494 | J28: 9225.772949 | K28: 8677.398682 | L28: 132.741066 | M28: 156.8437347 | N28: 124.0658264 | O28: 110.3257599 | P28: 2245.485504 | Q28: 2417.018585 | R28: 7492 | S28: 7996
B29: 921 | C29: Retten i Glostrup | D29: 53234.93887 | E29: 52060.78784 | F29: 13024.98779 | G29: 13653.3291 | H29: 4326.893921 | I29: 3847.253052 | J29: 28228.15625 | K29: 27809.66309 | L29: 340.4235992 | M29: 258.4563446 | N29: 79.49358177 | O29: 56.11311722 | P29: 3729.611084 | Q29: 3853.46875 | R29: 4172 | S29: 4338
B30: 922 | C30: Retten på Frederiksberg | D30: 40210.14377 | E30: 39679.93414 | F30: 11277.67993 | G30: 11467.47607 | H30: 2825.399597 | I30: 2699.321533 | J30: 20493.33936 | K30: 20730.90332 | L30: 309.9633789 | M30: 176.1081467 | N30: 42.08483887 | O30: 33.90167522 | P30: 2705.809875 | Q30: 2605.580383 | R30: 4012 | S30: 3376
B31: 923 | C31: Københavns Byret | D31: 88673.92082 | E31: 89631.43238 | F31: 29848.99902 | G31: 30638.76758 | H31: 7060.252441 | I31: 6994.379883 | J31: 26268.41602 | K31: 26486.40723 | L31: 250.762291 | M31: 225.2225037 | N31: 70.14139557 | O31: 73.64846611 | P31: 3057.330261 | Q31: 3069.424072 | R31: 13835 | S31: 13612
B32: 924 | C32: Retten på Bornholm | D32: 3864.06035 | E32: 3646.899706 | F32: 712.0317383 | G32: 682.4278107 | H32: 239.6832352 | I32: 211.1541519 | J32: 1799.163574 | K32: 1689.833282 | L32: 90.04797363 | M32: 63.04237366 | N32: 116.4289284 | O32: 108.0121384 | P32: 561.7121429 | Q32: 597.9312286 | R32: 307 | S32: 273
B34: 1) Vægtningen på tværs af sagstyper betyder, at antallet af vægtede sager inden for de enkelte sagområder ikke summer op til det samlede antal vægtede sager. Der er sket en genberegning af de vægtede sager for 2014 baseret på den reviderede vægtningsmodel, der trådte i kraft den 1. januar 2015
B35: 2) Der foretages en tilsvarende opgørelse samlet for henholdsvis jurister og kontor.

Sheet Målopf.Straf
B2: MÅLOPFYLDELSE STRAFFESAGER (PROCENT)
B4: EID | C4: Ret | D4: Alle alm. straffesager | F4: Nævninge- og domsmandssager (hfh.) | H4: Tilståelsessager og sager uden domsmænd (hfh) | J4: Voldssager | L4: Voldtægtssager
D5: 2014 | E5: 2015 | F5: 2014 | G5: 2015 | H5: 2014 | I5: 2015 | J5: 2014 | K5: 2015 | L5: 2014 | M5: 2015
D6: <4 MDR. | F6: <3 MDR. | H6: <2 MDR. | J6: <37 DG. | L6: <37 DG.
C8: MÅL (procent) | D8: 80 | F8: 72 | H8: 75
C9: SAMLET BYRETTERNE | D9: 78.90684476 | E9: 79.93323103 | F9: 69.23170448 | G9: 66.16161189 | H9: 69.27506803 | I9: 68.09069406 | J9: 47.67321613 | K9: 39.66005666 | L9: 35.41666667 | M9: 32.59259259
C10: 5. BEDSTE RET | D10: 82.34562382 | E10: 82.67023738 | F10: 80.67840909 | G10: 80.68414943 | H10: 87.26277108 | I10: 85.18390753 | J10: 63.82978723 | K10: 55.55555556 | L10: 66.66666667 | M10: 50
B12: 901 | C12: Retten i Hjørring | D12: 82.34562382 | E12: 80.88770689 | F12: 80.33178054 | G12: 77.16641649 | H12: 84.69840804 | I12: 76.51312937 | J12: 56.25 | K12: 55.55555556 | L12: 33.33333333 | M12: 41.66666667
B13: 902 | C13: Retten i Aalborg | D13: 74.19324732 | E13: 79.52023104 | F13: 65.65951178 | G13: 71.25455719 | H13: 62.49854027 | I13: 73.78629393 | J13: 54.28571429 | K13: 43.47826087 | L13: 100 | M13: 42.85714286
B14: 903 | C14: Retten i Randers | D14: 82.59784665 | E14: 82.44306899 | F14: 73.38656716 | G14: 75.34876365 | H14: 73.51491629 | I14: 76.01950759 | J14: 47.72727273 | K14: 30.95238095 | L14: 66.66666667 | M14: 44.44444444
B15: 904 | C15: Retten i Århus | D15: 77.46997283 | E15: 78.67503592 | F15: 62.84592163 | G15: 60.82523664 | H15: 74.54762387 | I15: 66.19774594 | J15: 27.08333333 | K15: 15.68627451 | L15: 14.28571429 | M15: 50
B16: 905 | C16: Retten i Viborg | D16: 75.03075431 | E16: 78.14065463 | F16: 64.34593625 | G16: 72.88417626 | H16: 76.13455344 | I16: 75.7444142 | J16: 62.16216216 | K16: 45 | L16: 100 | M16: 60
B17: 906 | C17: Retten i Holstebro | D17: 81.58112936 | E17: 85.89664564 | F17: 80.67840909 | G17: 85.79146496 | H17: 90.51768966 | I17: 91.24911175 | J17: 71.42857143 | K17: 55.55555556 | L17: 50 | M17: 50
B18: 907 | C18: Retten i Herning | D18: 80.08239437 | E18: 82.67023738 | F18: 75.30031175 | G18: 82.99242671 | H18: 87.26277108 | I18: 84.45213824 | J18: 76.92307692 | K18: 53.84615385 | L18: 66.66666667 | M18: 100
B19: 908 | C19: Retten i Horsens | D19: 76.20806789 | E19: 80.44611528 | F19: 75.34989583 | G19: 72.52582648 | H19: 66.5427881 | I19: 76.81721732 | J19: 40 | K19: 46.66666667 | L19: 50 | M19: 0
B20: 909 | C20: Retten i Kolding | D20: 79.32528485 | E20: 81.64180945 | F20: 70.27161512 | G20: 78.72631646 | H20: 68.06146341 | I20: 73.65511185 | J20: 60 | K20: 45.23809524 | L20: 75 | M20: 0
B21: 910 | C21: Retten i Esbjerg | D21: 63.54713606 | E21: 74.13979122 | F21: 62.32186795 | G21: 60.14542111 | H21: 60.3450627 | I21: 57.33303271 | J21: 40 | K21: 51.51515152 | L21: 0 | M21: 20
B22: 911 | C22: Retten i Sønderborg | D22: 74.51723265 | E22: 82.2457614 | F22: 82.02057257 | G22: 80.68414943 | H22: 81.66715476 | I22: 83.6676747 | J22: 63.82978723 | K22: 60.71428571 | L22: - | M22: 0
B23: 912 | C23: Retten i Odense | D23: 85.35157458 | E23: 84.22167092 | F23: 84.63049118 | G23: 79.56848719 | H23: 90.07319114 | I23: 86.07600528 | J23: 45.71428571 | K23: 37.25490196 | L23: 30.76923077 | M23: 21.05263158
B24: 913 | C24: Retten i Svendborg | D24: 72.4806698 | E24: 79.38020025 | F24: 68.52805014 | G24: 74.17838865 | H24: 80.4532716 | I24: 85.18390753 | J24: 51.28205128 | K24: 22.22222222 | L24: 0 | M24: 0
B25: 914 | C25: Retten i Nykøbing F. | D25: 87.40287426 | E25: 85.3490846 | F25: 81.23326886 | G25: 71.98452026 | H25: 90.52732331 | I25: 78.92162498 | J25: 67.30769231 | K25: 45.83333333 | L25: 50 | M25: 50
B26: 915 | C26: Retten i Næstved | D26: 76.09080487 | E26: 73.88116538 | F26: 55.71332677 | G26: 46.72157286 | H26: 30.62854518 | I26: 33.6832971 | J26: 31.81818182 | K26: 15.15151515 | L26: 22.22222222 | M26: 33.33333333
B27: 916 | C27: Retten i Holbæk | D27: 81.87974118 | E27: 81.87421302 | F27: 76.78966507 | G27: 85.33197376 | H27: 85.16294715 | I27: 88.96557134 | J27: 60 | K27: 44 | L27: 33.33333333 | M27: 50
B28: 917 | C28: Retten i Roskilde | D28: 77.83511768 | E28: 74.80773715 | F28: 61.25 | G28: 57.5658887 | H28: 48.40846154 | I28: 50.83342272 | J28: 26.66666667 | K28: 47.36842105 | L28: 0 | M28: 0
B29: 918 | C29: Retten i Hillerød | D29: 78.28518841 | E29: 76.50511092 | F29: 68.91480769 | G29: 73.49059815 | H29: 63.29017208 | I29: 68.65856123 | J29: 41.37931034 | K29: 28.57142857 | L29: 50 | M29: 0
B30: 919 | C30: Retten i Helsingør | D30: 71.95112713 | E30: 75.55585376 | F30: 66.01653722 | G30: 53.71866657 | H30: 56.67878543 | I30: 31.2617227 | J30: 40 | K30: 31.03448276 | L30: 0 | M30: 20
B31: 920 | C31: Retten i Lyngby | D31: 80.59675611 | E31: 79.44523496 | F31: 69.69204545 | G31: 74.06917889 | H31: 78.12119792 | I31: 74.41415215 | J31: 60 | K31: 87.5 | L31: 33.33333333 | M31: 100
B32: 921 | C32: Retten i Glostrup | D32: 75.64721576 | E32: 78.07637499 | F32: 55.6102611 | G32: 56.52130051 | H32: 52.12827128 | I32: 44.54529323 | J32: 32.89473684 | K32: 27.5 | L32: 0 | M32: 18.18181818
B33: 922 | C33: Retten på Frederiksberg | D33: 80.93107002 | E33: 79.07035388 | F33: 47.91194805 | G33: 47.32934664 | H33: 44.03368999 | I33: 46.6176259 | J33: 26.47058824 | K33: 27.77777778 | L33: 40 | M33: 9.090909091
B34: 923 | C34: Københavns Byret | D34: 82.17198737 | E34: 80.9281323 | F34: 73.04152125 | G34: 55.04828409 | H34: 69.39233103 | I34: 64.48140616 | J34: 38.02816901 | K34: 31.66666667 | L34: 16.66666667 | M34: 0
B35: 924 | C35: Retten på Bornholm | D35: 93.28959364 | E35: 94.4600587 | F35: 100 | G35: 100 | H35: 97.67457364 | I35: 98.38522271 | J35: 78.94736842 | K35: 100 | L35: - | M35: 100
B37: 1) Målene for de enkelte sagstyper er opstillet i samarbejde med byretterne. De aktuelle mål trådte i kraft 1. januar 2015. "Målopfyldelsen" for 2014 er derfor kun vist for at have tal at sammenligne resultaterne for 2015 med. Sammensatte mål i 2015 er vægtet på baggrund af den fordeling af sagerne, retterne havde for alle byretter i 2014. Målene for voldssager og voldtægtssager er fastsat eksternt.

Sheet Målopf.Civil
B2: MÅLOPFYLDELSE CIVILE SAGER (PROCENT)
B4: EID | C4: Ret | D4: Alle alm. sager, boligsager, småsager og forbud/påbudssager | F4: Hfh. almindelige sager og boligsager | H4: Hfh. småsager | J4: Alle forældreansvars- og ægtefællesager
D5: 2014 | E5: 2015 | F5: 2014 | G5: 2015 | H5: 2014 | I5: 2015 | J5: 2014 | K5: 2015
D6: <6 MDR. | F6: <15 MDR. | H6: <9 MDR. | J6: <6 MDR.
C8: MÅL (procent) | D8: 70 | F8: 62 | H8: 65 | J8: 80
C9: SAMLET BYRETTERNE | D9: 67.35977572 | E9: 68.51712629 | F9: 60.79754058 | G9: 61.80137103 | H9: 63.71423544 | I9: 62.88434555 | J9: 77.69925799 | K9: 74.48243234
C10: 5. BEDSTE RET | D10: 73.52 | E10: 73.65364553 | F10: 71.50554404 | G10: 70.21554194 | H10: 81.81818182 | I10: 79.40735294 | J10: 88.88740741 | K10: 87.94959159
B12: 901 | C12: Retten i Hjørring | D12: 71.14 | E12: 73.90425649 | F12: 51.42695238 | G12: 55.26254872 | H12: 78.57107143 | I12: 76.92307692 | J12: 84.92653266 | K12: 79.56406389
B13: 902 | C13: Retten i Aalborg | D13: 68.11 | E13: 72.04204718 | F13: 52.91902724 | G13: 59.52554792 | H13: 74.38585366 | I13: 79.40735294 | J13: 82.29708075 | K13: 88.20772746
B14: 903 | C14: Retten i Randers | D14: 62.32 | E14: 67.08147945 | F14: 46.26855721 | G14: 55.24754318 | H14: 63.64030303 | I14: 63.80952381 | J14: 73.73808081 | K14: 82.18933077
B15: 904 | C15: Retten i Århus | D15: 66.3 | E15: 68.35187505 | F15: 65.95485816 | G15: 56.41504456 | H15: 63.52811765 | I15: 74.46531915 | J15: 77.13030717 | K15: 77.38177517
B16: 905 | C16: Retten i Viborg | D16: 63.31 | E16: 63.63192207 | F16: 61.72518519 | G16: 64.37776485 | H16: 57.32121951 | I16: 64.52010753 | J16: 87.78767442 | K16: 76.1548059
B17: 906 | C17: Retten i Holstebro | D17: 73.23 | E17: 75.60541708 | F17: 69.90097087 | G17: 66.87831953 | H17: 88 | I17: 90.625 | J17: 90.5523622 | K17: 82.36453296
B18: 907 | C18: Retten i Herning | D18: 69.85 | E18: 73.65364553 | F18: 60.71830357 | G18: 54.72055973 | H18: 87.80292683 | I18: 88.56914286 | J18: 77.52031008 | K18: 79.56539628
B19: 908 | C19: Retten i Horsens | D19: 63.86 | E19: 63.30390386 | F19: 70.98382716 | G19: 59.6364977 | H19: 51.06 | I19: 34.99675 | J19: 83.975 | K19: 84.94502628
B20: 909 | C20: Retten i Kolding | D20: 71.96 | E20: 71.06919529 | F20: 60.80828829 | G20: 60.12052864 | H20: 59.69746269 | I20: 70.72707317 | J20: 94.51968037 | K20: 86.37789931
B21: 910 | C21: Retten i Esbjerg | D21: 62.81 | E21: 66.73935012 | F21: 42.44618705 | G21: 61.48401783 | H21: 76.08652174 | I21: 67.74548387 | J21: 80.12846154 | K21: 78.69553376
B22: 911 | C22: Retten i Sønderborg | D22: 75.57 | E22: 72.48501148 | F22: 75.17565517 | G22: 73.38293859 | H22: 80.00457143 | I22: 78.57357143 | J22: 85.54168675 | K22: 89.11414072
B23: 912 | C23: Retten i Odense | D23: 72.71 | E23: 72.09397195 | F23: 71.50554404 | G23: 65.07858329 | H23: 64.47789474 | I23: 69.23318681 | J23: 84.55955882 | K23: 69.25095228
B24: 913 | C24: Retten i Svendborg | D24: 69.78 | E24: 65.85747723 | F24: 67.14057143 | G24: 68.45551091 | H24: 46.15384615 | I24: 35.4175 | J24: 89.31328244 | K24: 93.01168015
B25: 914 | C25: Retten i Nykøbing F. | D25: 79.53 | E25: 77.54171319 | F25: 80.67988636 | G25: 81.64187435 | H25: 90.56981132 | I25: 75.00307692 | J25: 88.88740741 | K25: 87.94959159
B26: 915 | C26: Retten i Næstved | D26: 74.2 | E26: 70.14102899 | F26: 50.37 | G26: 62.01111928 | H26: 74.29028571 | I26: 61.90190476 | J26: 81.16686099 | K26: 85.75268095
B27: 916 | C27: Retten i Holbæk | D27: 73.52 | E27: 72.57332153 | F27: 71.15509615 | G27: 75.42460683 | H27: 82.60956522 | I27: 52.38095238 | J27: 90.91272727 | K27: 78.49368176
B28: 917 | C28: Retten i Roskilde | D28: 64.36 | E28: 64.02398141 | F28: 64.38415525 | G28: 61.18731359 | H28: 49.09127273 | I28: 43.15526316 | J28: 63.25757576 | K28: 62.75083906
B29: 918 | C29: Retten i Hillerød | D29: 70.14 | E29: 72.07800876 | F29: 64.96068376 | G29: 64.82102036 | H29: 69.56695652 | I29: 81.81745455 | J29: 75.41681564 | K29: 77.78
B30: 919 | C30: Retten i Helsingør | D30: 70.81 | E30: 67.58311292 | F30: 58.9894964 | G30: 69.97310111 | H30: 73.68385965 | I30: 49.02294118 | J30: 74.99914634 | K30: 66.33133441
B31: 920 | C31: Retten i Lyngby | D31: 63.3 | E31: 63.59664172 | F31: 76.51356061 | G31: 70.21554194 | H31: 63.01 | I31: 61.70148936 | J31: 75.17324138 | K31: 65.4552689
B32: 921 | C32: Retten i Glostrup | D32: 57.61 | E32: 62.72068771 | F32: 57.22646154 | G32: 55.44201944 | H32: 21.36097087 | I32: 38.77632653 | J32: 65.69013544 | K32: 62.00156894
B33: 922 | C33: Retten på Frederiksberg | D33: 63.73 | E33: 63.6198049 | F33: 49.76632558 | G33: 48.96760058 | H33: 47.52148515 | I33: 56.66222222 | J33: 61.074 | K33: 44.80028306
B34: 923 | C34: Københavns Byret | D34: 65.17 | E34: 68.73314184 | F34: 55.38884674 | G34: 61.44550465 | H34: 68.128625 | I34: 60.26339286 | J34: 64.86448649 | K34: 63.50692074
B35: 924 | C35: Retten på Bornholm | D35: 84.62 | E35: 85.98429567 | F35: 72.22222222 | G35: 92.77762342 | H35: 81.81818182 | I35: 100 | J35: 84.84606061 | K35: 89.0296947
B37: 1) Målene for de enkelte sagstyper er opstillet i samarbejde med byretterne. De aktuelle mål trådte i kraft 1. januar 2015. "Målopfyldelsen" for 2014 er derfor kun vist for at have tal at sammenligne resultaterne for 2015 med. Sammensatte mål i 2015 er vægtet på baggrund af den fordeling af sagerne, retterne havde for alle byretter i 2014. Generelt er målene opstillet i forhold til hovedforhandlede sager.

Sheet Målopf.Foged
B2: MÅLOPFYLDELSE FOGEDSAGER (PROCENT)
B4: EID | C4: Ret | D4: Alm. fogedsager og betalingspåkrav | F4: Særlige fogedsager | H4: Tvangsauktion solgt efter 1. auktion
D5: 2014 | E5: 2015 | F5: 2014 | G5: 2015 | H5: 2014 | I5: 2015
D6: <3 MDR. | F6: <2 MDR. | H6: <5 MDR.
C8: MÅL (procent) | D8: 80 | F8: 80 | H8: 80
C9: SAMLET BYRETTERNE | D9: 85.49798235 | E9: 81.87919875 | F9: 83.8861911 | G9: 82.1185372 | H9: 83.72237717 | I9: 83.26048316
C10: 5. BEDSTE RET | D10: 91.96035242 | E10: 89.92617503 | F10: 90.93277749 | G10: 89.40754039 | H10: 94.44583333 | I10: 93.93984848
B12: 901 | C12: Retten i Hjørring | D12: 91.7696839 | E12: 85.93681517 | F12: 84.29319372 | G12: 80.44164038 | H12: 77.2992638 | I12: 88.1947205
B13: 902 | C13: Retten i Aalborg | D13: 91.96035242 | E13: 83.27844918 | F13: 89.96282528 | G13: 78.0861244 | H13: 92.55489362 | I13: 90.42595745
B14: 903 | C14: Retten i Randers | D14: 87.76859504 | E14: 93.29708459 | F14: 79.23566879 | G14: 85.01628664 | H14: 77.12177966 | I14: 75.9988
B15: 904 | C15: Retten i Århus | D15: 86.13220816 | E15: 84.37138858 | F15: 90.93277749 | G15: 90.92009685 | H15: 83.78378378 | I15: 81.39395349
B16: 905 | C16: Retten i Viborg | D16: 89.00169205 | E16: 86.63770428 | F16: 82.24076281 | G16: 81.21621622 | H16: 86.79301887 | I16: 67.92811321
B17: 906 | C17: Retten i Holstebro | D17: 96.66277107 | E17: 96.5033122 | F17: 96.81818182 | G17: 95.14824798 | H17: 91.93806452 | I17: 98.26
B18: 907 | C18: Retten i Herning | D18: 93.60999764 | E18: 89.92617503 | F18: 91.58075601 | G18: 89.40754039 | H18: 91.66933333 | I18: 90.16540984
B19: 908 | C19: Retten i Horsens | D19: 90.14069264 | E19: 85.61425809 | F19: 79.44664032 | G19: 81.85654008 | H19: 86.44067797 | I19: 97.30162162
B20: 909 | C20: Retten i Kolding | D20: 85.56573731 | E20: 86.94301249 | F20: 90.13678906 | G20: 88.23938761 | H20: 94.44583333 | I20: 95.34476744
B21: 910 | C21: Retten i Esbjerg | D21: 89.3877936 | E21: 85.78183161 | F21: 90.51008304 | G21: 87.67123288 | H21: 91.01101124 | I21: 70.835
B22: 911 | C22: Retten i Sønderborg | D22: 86.5352349 | E22: 77.95343748 | F22: 85.21031208 | G22: 80.87349398 | H22: 67.13216783 | I22: 51.45152174
B23: 912 | C23: Retten i Odense | D23: 86.54991041 | E23: 84.17901552 | F23: 80.34682081 | G23: 78.79234168 | H23: 80.14262411 | I23: 79.20176
B24: 913 | C24: Retten i Svendborg | D24: 85.53507993 | E24: 87.6428622 | F24: 85.27607362 | G24: 88.02521008 | H24: 87.61026549 | I24: 80.4348913
B25: 914 | C25: Retten i Nykøbing F. | D25: 87.20255369 | E25: 83.51841052 | F25: 83.1625183 | G25: 85.81560284 | H25: 96.2534375 | I25: 98.47117347
B26: 915 | C26: Retten i Næstved | D26: 82.80074622 | E26: 79.99159866 | F26: 87.03703704 | G26: 82.15271389 | H26: 77.20286765 | I26: 81.45532258
B27: 916 | C27: Retten i Holbæk | D27: 86.82190379 | E27: 87.9841157 | F27: 90.42995839 | G27: 83.64153627 | H27: 85.31167832 | I27: 92.00306667
B28: 917 | C28: Retten i Roskilde | D28: 85.72759564 | E28: 85.16584748 | F28: 79.55271565 | G28: 78.44036697 | H28: 79.61339806 | I28: 81.89267241
B29: 918 | C29: Retten i Hillerød | D29: 89.76581963 | E29: 87.11313435 | F29: 83.26530612 | G29: 82.41042345 | H29: 95.45333333 | I29: 93.93984848
B30: 919 | C30: Retten i Helsingør | D30: 79.24547083 | E30: 75.40149443 | F30: 86.30460449 | G30: 77.90697674 | H30: 87.50208333 | I30: 75.00133333
B31: 920 | C31: Retten i Lyngby | D31: 92.92929293 | E31: 89.93764563 | F31: 93.94594595 | G31: 92.60115607 | H31: 94.44666667 | I31: 76.47176471
B32: 921 | C32: Retten i Glostrup | D32: 77.80154682 | E32: 76.60144593 | F32: 75.15638963 | G32: 75.82518337 | H32: 79.30793103 | I32: 73.52941176
B33: 922 | C33: Retten på Frederiksberg | D33: 77.30891243 | E33: 73.82004309 | F33: 87.31447774 | G33: 83.80925186 | H33: 38.46 | I33: 14.28571429
B34: 923 | C34: Københavns Byret | D34: 73.99635828 | E34: 56.79996103 | F34: 76.10573148 | G34: 77.04918033 | H34: 25 | I34: 49.99833333
B35: 924 | C35: Retten på Bornholm | D35: 97.54010695 | E35: 97.45507974 | F35: 95.74468085 | G35: 94.18604651 | H35: 96.15538462 | I35: 90.90681818
B37: 1) Målene for de enkelte sagstyper er opstillet i samarbejde med byretterne. De aktuelle mål trådte i kraft 1. januar 2015. "Målopfyldelsen" for 2014 er derfor kun vist for at have tal at sammenligne resultaterne for 2015 med. Sammensatte mål i 2015 er vægtet på baggrund af den fordeling af sagerne, retterne havde for alle byretter i 2014.

Sheet Målopf.Skifte
B2: MÅLOPFYLDELSE SKIFTESAGER (PROCENT)
D4: Udlevering af bo | F4: Tvangsopløsningssager (eksklusive likvidation) | H4: Gældssanering (dog kun indledte sager)
D5: 2014 | E5: 2015 | F5: 2014 | G5: 2015 | H5: 2014 | I5: 2015
B6: EID | C6: Ret | D6: <2 MDR. | F6: <3 MDR. | H6: <9 MDR.
C8: MÅL (procent) | D8: 80 | F8: 70 | H8: 72
C9: SAMLET BYRETTERNE | D9: 83.10414061 | E9: 81.27063197 | F9: 81.43968626 | G9: 91.08019502 | H9: 75.14211182 | I9: 79.35892977
C10: 5. BEDSTE RET | D10: 88.42 | E10: 87.82653753 | F10: 91.9962 | G10: 96.65625698 | H10: 86.51047619 | I10: 87.38468468
B12: 901 | C12: Retten i Hjørring | D12: 82.97 | E12: 79.5820137 | F12: 95.55344444 | G12: 92.43932773 | H12: 77.2053886 | I12: 71.32360294
B13: 902 | C13: Retten i Aalborg | D13: 80.27 | E13: 79.29996734 | F13: 79.6359276 | G13: 88.63736364 | H13: 66.00753695 | I13: 74.64964789
B14: 903 | C14: Retten i Randers | D14: 86.6 | E14: 88.35569106 | F14: 75.73145631 | G14: 97.68381503 | H14: 75.99994286 | I14: 88.128875
B15: 904 | C15: Retten i Århus | D15: 81.28 | E15: 69.69337521 | F15: 86.08018987 | G15: 96.65625698 | H15: 77.96542373 | I15: 77.44754902
B16: 905 | C16: Retten i Viborg | D16: 82.34 | E16: 82.83300616 | F16: 94.39584 | G16: 98.69006536 | H16: 76.11910448 | I16: 87.38468468
B17: 906 | C17: Retten i Holstebro | D17: 87.64 | E17: 86.20790957 | F17: 91.9962 | G17: 97.40935065 | H17: 91.91818182 | I17: 98.78243902
B18: 907 | C18: Retten i Herning | D18: 79.95 | E18: 66.70592615 | F18: 86.66409524 | G18: 93.22220339 | H18: 45.83583333 | I18: 67.3250495
B19: 908 | C19: Retten i Horsens | D19: 57.52 | E19: 78.67130599 | F19: 87.6187619 | G19: 95.08672131 | H19: 82.14422619 | I19: 86.6677037
B20: 909 | C20: Retten i Kolding | D20: 83.31 | E20: 82.47297839 | F20: 92.16995392 | G20: 96.97219697 | H20: 75.85986207 | I20: 88.6512973
B21: 910 | C21: Retten i Esbjerg | D21: 86.57 | E21: 82.99601 | F21: 86.1087037 | G21: 88.39669643 | H21: 72.47614679 | I21: 77.85832061
B22: 911 | C22: Retten i Sønderborg | D22: 77.83 | E22: 75.32083228 | F22: 80.00145455 | G22: 95.42925714 | H22: 78.98818841 | I22: 83.33388889
B23: 912 | C23: Retten i Odense | D23: 80.96 | E23: 76.19627862 | F23: 84.78275362 | G23: 89.8442246 | H23: 85.63646409 | I23: 77.59262295
B24: 913 | C24: Retten i Svendborg | D24: 86.12 | E24: 87.80045553 | F24: 90.3166129 | G24: 93.50493506 | H24: 86.51047619 | I24: 83.60852459
B25: 914 | C25: Retten i Nykøbing F. | D25: 92.2 | E25: 92.88575772 | F25: 66.17294118 | G25: 78.26184783 | H25: 86.61370079 | I25: 80.5815534
B26: 915 | C26: Retten i Næstved | D26: 84.24 | E26: 81.07535461 | F26: 81.89695238 | G26: 89.46894737 | H26: 73.05148936 | I26: 73.38991935
B27: 916 | C27: Retten i Holbæk | D27: 85.36 | E27: 86.09959732 | F27: 76.10835821 | G27: 93.97771084 | H27: 73.14527778 | I27: 77.66191489
B28: 917 | C28: Retten i Roskilde | D28: 71.11 | E28: 70.77520397 | F28: 56.04620879 | G28: 63.52552486 | H28: 50.00166667 | I28: 64.92052356
B29: 918 | C29: Retten i Hillerød | D29: 88.62 | E29: 87.82653753 | F29: 87.26927273 | G29: 93.60152 | H29: 89.10752475 | I29: 78.09342857
B30: 919 | C30: Retten i Helsingør | D30: 83.27 | E30: 80.01965035 | F30: 68.81591398 | G30: 89.00483516 | H30: 58.62356322 | I30: 77.77847222
B31: 920 | C31: Retten i Lyngby | D31: 83.07 | E31: 76.74440181 | F31: 100
B32: 921 | C32: Retten i Glostrup | D32: 88.42 | E32: 88.3218201
B33: 922 | C33: Retten på Frederiksberg | D33: 81.77 | E33: 81.27869529
B34: 923 | C34: Københavns Byret | D34: 89.83 | E34: 85.09113556
B35: 924 | C35: Retten på Bornholm | D35: 97.35 | E35: 98.31723364 | F35: 71.43571429 | G35: 93.7525 | H35: 100 | I35: 100
B37: 1) Målene for de enkelte sagstyper er opstillet i samarbejde med byretterne. De aktuelle mål trådte i kraft 1. januar 2015. "Målopfyldelsen" for 2014 er derfor kun vist for at have tal at sammenligne resultaterne for 2015 med.

Sheet Sagstid.Straf
B2: GENNEMSNITLIG SAGSBEHANDLINGSTID STRAFFESAGER (DAGE)
B4: EID | C4: Ret | D4: Nævningesager | F4: Domsmandssager | H4: Sager uden domsmænd | J4: Tilståelsessager
D5: 2014 | E5: 2015 | F5: 2014 | G5: 2015 | H5: 2014 | I5: 2015 | J5: 2014 | K5: 2015
C6: 5. BEDSTE RET | D6: 92 | E6: 81 | F6: 91 | G6: 89 | H6: 20 | I6: 20 | J6: 50 | K6: 55
C7: SAMLET BYRETTERNE | D7: 170.825 | E7: 131.630137 | F7: 113.695816 | G7: 126.0869684 | H7: 29.31337323 | I7: 27.46023408 | J7: 75.43808819 | K7: 82.18836328
B9: 901 | C9: Retten i Hjørring | D9: - | E9: 136 | F9: 95 | G9: 117 | H9: 20 | I9: 24 | J9: 52 | K9: 73
B10: 902 | C10: Retten i Aalborg | D10: 115 | E10: 145 | F10: 114 | G10: 125 | H10: 35 | I10: 28 | J10: 100 | K10: 93
B11: 903 | C11: Retten i Randers | D11: - | E11: 13 | F11: 124 | G11: 123 | H11: 29 | I11: 25 | J11: 82 | K11: 69
B12: 904 | C12: Retten i Århus | D12: 67 | E12: 50 | F12: 139 | G12: 157 | H12: 30 | I12: 24 | J12: 78 | K12: 95
B13: 905 | C13: Retten i Viborg | D13: 203 | E13: 99 | F13: 128 | G13: 100 | H13: 30 | I13: 29 | J13: 71 | K13: 76
B14: 906 | C14: Retten i Holstebro | D14: 89 | E14: 90 | F14: 84 | G14: 79 | H14: 30 | I14: 28 | J14: 42 | K14: 48
B15: 907 | C15: Retten i Herning | D15: 178 | E15: 108 | F15: 91 | G15: 89 | H15: 28 | I15: 30 | J15: 53 | K15: 55
B16: 908 | C16: Retten i Horsens | D16: 99 | E16: 81 | F16: 111 | G16: 109 | H16: 43 | I16: 37 | J16: 79 | K16: 67
B17: 909 | C17: Retten i Kolding | D17: 88 | E17: 114 | F17: 99 | G17: 98 | H17: 28 | I17: 20 | J17: 74 | K17: 66
B18: 910 | C18: Retten i Esbjerg | D18: 154 | E18: 169 | F18: 133 | G18: 144 | H18: 43 | I18: 35 | J18: 65 | K18: 68
B19: 911 | C19: Retten i Sønderborg | D19: 92 | E19: 193 | F19: 81 | G19: 84 | H19: 30 | I19: 26 | J19: 46 | K19: 46
B20: 912 | C20: Retten i Odense | D20: 112 | E20: 92 | F20: 92 | G20: 91 | H20: 16 | I20: 19 | J20: 56 | K20: 60
B21: 913 | C21: Retten i Svendborg | D21: 126 | E21: 78 | F21: 122 | G21: 107 | H21: 35 | I21: 27 | J21: 69 | K21: 74
B22: 914 | C22: Retten i Nykøbing F. | D22: 123 | E22: 103 | F22: 80 | G22: 101 | H22: 16 | I22: 17 | J22: 42 | K22: 55
B23: 915 | C23: Retten i Næstved | D23: 166 | E23: 154 | F23: 137 | G23: 169 | H23: 46 | I23: 38 | J23: 102 | K23: 136
B24: 916 | C24: Retten i Holbæk | D24: 105 | E24: 104 | F24: 92 | G24: 82 | H24: 19 | I24: 18 | J24: 50 | K24: 53
B25: 917 | C25: Retten i Roskilde | D25: 145 | E25: 184 | F25: 133 | G25: 144 | H25: 41 | I25: 44 | J25: 95 | K25: 85
B26: 918 | C26: Retten i Hillerød | D26: 69 | E26: 146 | F26: 113 | G26: 97 | H26: 24 | I26: 27 | J26: 81 | K26: 96
B27: 919 | C27: Retten i Helsingør | D27: 107 | E27: 110 | F27: 112 | G27: 163 | H27: 36 | I27: 53 | J27: 102 | K27: 190
B28: 920 | C28: Retten i Lyngby | D28: - | E28: 117 | F28: 105 | G28: 107 | H28: 23 | I28: 24 | J28: 63 | K28: 71
B29: 921 | C29: Retten i Glostrup | D29: 102 | E29: 111 | F29: 142 | G29: 148 | H29: 35 | I29: 33 | J29: 92 | K29: 102
B30: 922 | C30: Retten på Frederiksberg | D30: 147 | E30: 132 | F30: 162 | G30: 181 | H30: 32 | I30: 29 | J30: 115 | K30: 97
B31: 923 | C31: Københavns Byret | D31: 389 | E31: 168 | F31: 104 | G31: 141 | H31: 22 | I31: 21 | J31: 71 | K31: 80
B32: 924 | C32: Retten på Bornholm | D32: - | E32: 57 | F32: 35 | G32: 35 | H32: 16 | I32: 13 | J32: 29 | K32: 36

Sheet Sagstid.Civil
B2: GENNEMSNITLIG SAGSBEHANDLINGSTID CIVILE SAGER (DAGE)
B4: EID | C4: Ret | D4: Hovedforhandlede almindelige sager | F4: Hovedforhandlede boligretssager | H4: Hovedforhandlede småsager | J4: Alle civile sager m. forhandlingsmaksime | L4: Alle ægteskabssager | N4: Alle forældre- ansvarssager
D5: 2014 | E5: 2015 | F5: 2014 | G5: 2015 | H5: 2014 | I5: 2015 | J5: 2014 | K5: 2015 | L5: 2014 | M5: 2015 | N5: 2014 | O5: 2015
C6: 5. BEDSTE RET | D6: 406.2105263 | E6: 430.8681319 | F6: 347 | G6: 305.5 | H6: 219.6086957 | I6: 207.0769231 | J6: 160 | K6: 158 | L6: 79 | M6: 94 | N6: 110 | O6: 114
C7: SAMLET BYRETTERNE | D7: 490.9893368 | E7: 496.3948067 | F7: 472.6598985 | G7: 438.6350365 | H7: 267.8349515 | I7: 264.9156486 | J7: 192.7029481 | K7: 179.7662895 | L7: 118.2550044 | M7: 130.0320171 | N7: 140.94601 | O7: 147.8360705
B9: 901 | C9: Retten i Hjørring | D9: 525.5742574 | E9: 545.483871 | F9: 352 | G9: 280 | H9: 209.6785714 | I9: 207.0769231 | J9: 202 | K9: 172 | L9: 120 | M9: 98 | N9: 132 | O9: 147
B10: 902 | C10: Retten i Aalborg | D10: 527.4122807 | E10: 564.0818713 | F10: 580.4137931 | G10: 402 | H10: 237.4146341 | I10: 230.3823529 | J10: 191 | K10: 168 | L10: 101 | M10: 112 | N10: 119 | O10: 109
B11: 903 | C11: Retten i Randers | D11: 555.5109489 | E11: 526.6923077 | F11: 744.515625 | G11: 651 | H11: 270.6969697 | I11: 269.952381 | J11: 273 | K11: 226 | L11: 126 | M11: 94 | N11: 136 | O11: 127
B12: 904 | C12: Retten i Århus | D12: 483.0638298 | E12: 533.1290323 | F12: 451.5744681 | G12: 475.6078431 | H12: 271.4470588 | I12: 225.1489362 | J12: 200 | K12: 192 | L12: 144 | M12: 105 | N12: 143 | O12: 136
B13: 905 | C13: Retten i Viborg | D13: 519.2689655 | E13: 481.7142857 | F13: 492.2941176 | G13: 549.4166667 | H13: 271.902439 | I13: 266.6666667 | J13: 213 | K13: 211 | L13: 103 | M13: 106 | N13: 127 | O13: 146
B14: 906 | C14: Retten i Holstebro | D14: 413.4242424 | E14: 474.4166667 | F14: 288.5 | G14: 353.75 | H14: 181 | I14: 165.625 | J14: 166 | K14: 187 | L14: 79 | M14: 117 | N14: 111 | O14: 126
B15: 907 | C15: Retten i Herning | D15: 520.7297297 | E15: 492.2277228 | F15: 995 | G15: 501 | H15: 231.0243902 | I15: 180.6 | J15: 192 | K15: 178 | L15: 121 | M15: 137 | N15: 144 | O15: 132
B16: 908 | C16: Retten i Horsens | D16: 434.1073826 | E16: 512.7837838 | F16: 448 | G16: 587 | H16: 268.2553191 | I16: 313.7 | J16: 198 | K16: 201 | L16: 64 | M16: 206 | N16: 115 | O16: 122
B17: 909 | C17: Retten i Kolding | D17: 480.371134 | E17: 496.2196532 | F17: 414.5357143 | G17: 354.9473684 | H17: 282.238806 | I17: 251.3902439 | J17: 168 | K17: 158 | L17: 71 | M17: 129 | N17: 99 | O17: 114
B18: 910 | C18: Retten i Esbjerg | D18: 627.1860465 | E18: 525.8019802 | F18: 668.3 | G18: 382.5 | H18: 235.7826087 | I18: 238.483871 | J18: 222 | K18: 190 | L18: 111 | M18: 130 | N18: 148 | O18: 149
B19: 911 | C19: Retten i Sønderborg | D19: 405.7076923 | E19: 447.8636364 | F19: 410 | G19: 305.5 | H19: 217.7142857 | I19: 228.2142857 | J19: 147 | K19: 155 | L19: 129 | M19: 93 | N19: 110 | O19: 125
B20: 912 | C20: Retten i Odense | D20: 410.88 | E20: 444 | F20: 347.2222222 | G20: 278.625 | H20: 258.7368421 | I20: 255.3186813 | J20: 167 | K20: 158 | L20: 110 | M20: 166 | N20: 120 | O20: 157
B21: 913 | C21: Retten i Svendborg | D21: 477.09375 | E21: 415.9333333 | F21: 317.5 | G21: 471.2857143 | H21: 322.8461538 | I21: 333.25 | J21: 165 | K21: 173 | L21: 134 | M21: 80 | N21: 109 | O21: 105
B22: 914 | C22: Retten i Nykøbing F. | D22: 382.2692308 | E22: 345.7846154 | F22: 288.2 | G22: 293.3846154 | H22: 194.0754717 | I22: 214.1538462 | J22: 131 | K22: 132 | L22: 116 | M22: 93 | N22: 109 | O22: 102
B23: 915 | C23: Retten i Næstved | D23: 502.7627119 | E23: 488.46875 | F23: 398.0588235 | G23: 370.2916667 | H23: 229.4 | I23: 266.8571429 | J23: 160 | K23: 159 | L23: 130 | M23: 129 | N23: 128 | O23: 122
B24: 916 | C24: Retten i Holbæk | D24: 406.2105263 | E24: 430.8681319 | F24: 357.4444444 | G24: 334.6 | H24: 219.6086957 | I24: 270.3809524 | J24: 142 | K24: 144 | L24: 77 | M24: 124 | N24: 108 | O24: 126
B25: 917 | C25: Retten i Roskilde | D25: 468.0430108 | E25: 510.5789474 | F25: 418.5151515 | G25: 393.3333333 | H25: 330.9818182 | I25: 328.1052632 | J25: 193 | K25: 193 | L25: 149 | M25: 141 | N25: 183 | O25: 171
B26: 918 | C26: Retten i Hillerød | D26: 502.826087 | E26: 578.5504587 | F26: 433.04 | G26: 423.6666667 | H26: 246.7826087 | I26: 204.4 | J26: 174 | K26: 162 | L26: 132 | M26: 130 | N26: 151 | O26: 137
B27: 919 | C27: Retten i Helsingør | D27: 559.9230769 | E27: 470.9816514 | F27: 333.0909091 | G27: 347.0526316 | H27: 242.4035088 | I27: 322.8823529 | J27: 175 | K27: 179 | L27: 113 | M27: 112 | N27: 162 | O27: 198
B28: 920 | C28: Retten i Lyngby | D28: 385.046729 | E28: 428.1336406 | F28: 347 | G28: 368.4761905 | H28: 277 | I28: 270.7978723 | J28: 190 | K28: 192 | L28: 112 | M28: 155 | N28: 155 | O28: 163
B29: 921 | C29: Retten i Glostrup | D29: 509.8187702 | E29: 528.0311111 | F29: 507.5 | G29: 505.8484848 | H29: 361.9126214 | I29: 344.2040816 | J29: 240 | K29: 211 | L29: 117 | M29: 121 | N29: 173 | O29: 181
B30: 922 | C30: Retten på Frederiksberg | D30: 542.7112299 | E30: 563.4674556 | F30: 494.25 | G30: 450.2363636 | H30: 318.6534653 | I30: 297.4444444 | J30: 198 | K30: 244 | L30: 141 | M30: 176 | N30: 197 | O30: 256
B31: 923 | C31: Københavns Byret | D31: 529.8726592 | E31: 497.8881579 | F31: 473.216 | G31: 441.9042553 | H31: 268 | I31: 262.8616071 | J31: 207 | K31: 158 | L31: 127 | M31: 146 | N31: 181 | O31: 166
B32: 924 | C32: Retten på Bornholm | D32: 332.1111111 | E32: 267 | F32: - | G32: 171 | H32: 239.3636364 | I32: 166 | J32: 113 | K32: 96 | L32: 69 | M32: 73 | N32: 115 | O32: 107
B34: 1) Alle civile sager med forhandlingsmaksime inkluderer sagstyperne almindelige sager, boligretssager og småsager.

Sheet Sagstid.Foged
B2: GENNEMSNITLIG SAGSBEHANDLINGSTID FOGEDSAGER (DAGE)
B4: EID | C4: Ret | D4: Alm. fogedsager | F4: Særlige fogedsager | H4: Betalingspåkrav | J4: Tvangsauktioner
D5: 2014 | E5: 2015 | F5: 2014 | G5: 2015 | H5: 2014 | I5: 2015 | J5: 2014 | K5: 2015
C6: 5. BEDSTE RET | D6: 43.94413408 | E6: 47.93633 | F6: 33.5395189 | G6: 35.69958 | H6: 48.21355529 | I6: 51.09071 | J6: 70 | K6: 70
C7: SAMLET BYRETTERNE | D7: 58.27006269 | E7: 64.0613836 | F7: 40.95927091 | G7: 42.11374527 | H7: 59.94753197 | I7: 66.39660455 | J7: 89.64619694 | K7: 83.6150515
B9: 901 | C9: Retten i Hjørring | D9: 49.91041129 | E9: 59.71777 | F9: 41.11343805 | G9: 41.78076 | H9: 54.82223645 | I9: 61.93062 | J9: 81 | K9: 78
B10: 902 | C10: Retten i Aalborg | D10: 43.94413408 | E10: 64.81348 | F10: 37.22118959 | G10: 46.19904 | H10: 58.59743143 | I10: 63.34112 | J10: 76 | K10: 74
B11: 903 | C11: Retten i Randers | D11: 58.37249399 | E11: 41.02233 | F11: 48.55286624 | G11: 37.50814 | H11: 56.86184495 | I11: 47.96578 | J11: 94 | K11: 93
B12: 904 | C12: Retten i Århus | D12: 59.21347896 | E12: 62.2823 | F12: 28.69150599 | G12: 28.53329 | H12: 58.22067175 | I12: 66.96629 | J12: 78 | K12: 72
B13: 905 | C13: Retten i Viborg | D13: 51.79351254 | E13: 59.8391 | F13: 40.99761621 | G13: 43.37973 | H13: 52.98490153 | I13: 59.03777 | J13: 74 | K13: 88
B14: 906 | C14: Retten i Holstebro | D14: 34.27151899 | E14: 32.42947 | F14: 25.80681818 | G14: 24.81132 | H14: 35.88145897 | I14: 40.84956 | J14: 57 | K14: 69
B15: 907 | C15: Retten i Herning | D15: 46.73239437 | E15: 55.02592 | F15: 33.5395189 | G15: 37.91742 | H15: 48.53787016 | I15: 51.87664 | J15: 83 | K15: 89
B16: 908 | C16: Retten i Horsens | D16: 46.29432687 | E16: 54.81712 | F16: 41.92094862 | G16: 38.5443 | H16: 54.29665469 | I16: 57.48098 | J16: 70 | K16: 70
B17: 909 | C17: Retten i Kolding | D17: 52.97362322 | E17: 50.98938 | F17: 36.2325414 | G17: 36.49617 | H17: 61.83133101 | I17: 54.58241 | J17: 72 | K17: 80
B18: 910 | C18: Retten i Esbjerg | D18: 42.71642026 | E18: 45.02331 | F18: 34.58125741 | G18: 37.98904 | H18: 58.73438605 | I18: 79.62312 | J18: 84 | K18: 81
B19: 911 | C19: Retten i Sønderborg | D19: 51.7282204 | E19: 62.44327 | F19: 36.15332429 | G19: 42.35241 | H19: 65.27969901 | I19: 74.04386 | J19: 99 | K19: 101
B20: 912 | C20: Retten i Odense | D20: 60.92986425 | E20: 64.28043 | F20: 44.1046885 | G20: 45.38218 | H20: 56.58570427 | I20: 71.3308 | J20: 81 | K20: 87
B21: 913 | C21: Retten i Svendborg | D21: 56.18881119 | E21: 54.69889 | F21: 39.65235174 | G21: 35.69958 | H21: 64.62605654 | I21: 55.79694 | J21: 91 | K21: 94
B22: 914 | C22: Retten i Nykøbing F. | D22: 46.03074305 | E22: 47.93633 | F22: 38.55490483 | G22: 38.92766 | H22: 64.04507949 | I22: 72.87019 | J22: 69 | K22: 85
B23: 915 | C23: Retten i Næstved | D23: 69.69931074 | E23: 71.02566 | F23: 38.88720539 | G23: 43.80681 | H23: 65.60022687 | I23: 68.94263 | J23: 91 | K23: 89
B24: 916 | C24: Retten i Holbæk | D24: 62.59675489 | E24: 56.77488 | F24: 36.19972261 | G24: 41.64722 | H24: 48.21355529 | I24: 53.48637 | J24: 84 | K24: 87
B25: 917 | C25: Retten i Roskilde | D25: 56.66790871 | E25: 61.36073 | F25: 46.31693291 | G25: 47.37462 | H25: 64.66185151 | I25: 69.22495 | J25: 176 | K25: 93
B26: 918 | C26: Retten i Hillerød | D26: 52.278487 | E26: 58.339 | F26: 38.3537415 | G26: 36.49511 | H26: 48.17425474 | I26: 51.09071 | J26: 83 | K26: 63
B27: 919 | C27: Retten i Helsingør | D27: 68.93901858 | E27: 77.39692 | F27: 41.33884298 | G27: 45.33075 | H27: 69.41824487 | I27: 73.36193 | J27: 91 | K27: 84
B28: 920 | C28: Retten i Lyngby | D28: 41.28764479 | E28: 48.69579 | F28: 31.66810811 | G28: 33.8578 | H28: 42.09000874 | I28: 44.86131 | J28: 57 | K28: 50
B29: 921 | C29: Retten i Glostrup | D29: 80.59972946 | E29: 88.04801 | F29: 45.77301162 | G29: 44.50642 | H29: 60.22576919 | I29: 57.20801 | J29: 71 | K29: 68
B30: 922 | C30: Retten på Frederiksberg | D30: 76.66579713 | E30: 85.7729 | F30: 41.8633436 | G30: 43.70902 | H30: 69.05534125 | I30: 73.69566 | J30: 161 | K30: 85
B31: 923 | C31: Københavns Byret | D31: 73.15736591 | E31: 93.59561 | F31: 50.05312745 | G31: 49.48251 | H31: 78.91637782 | I31: 112.3209 | J31: 92 | K31: 111
B32: 924 | C32: Retten på Bornholm | D32: 27.50285249 | E32: 29.08736 | F32: 24.04255319 | G32: 26.74419 | H32: 33.05287714 | I32: 36.2697 | J32: 57 | K32: 71

Sheet Sagstid.Skifte
B2: GENNEMSNITLIG SAGSBEHANDLINGSTID SKIFTESAGER (DAGE)
B4: EID | C4: Ret | D4: Boudlæg | F4: Uskiftet bo | H4: Privat skifte | J4: Forenklet privat skifte
D5: 2014 | E5: 2015 | F5: 2014 | G5: 2015 | H5: 2014 | I5: 2015 | J5: 2014 | K5: 2015
C6: 5. BEDSTE RET | D6: 32.84 | E6: 37 | F6: 67.82 | G6: 69.25 | H6: 349.26 | I6: 335.87 | J6: 55.8 | K6: 58.81
C7: SAMLET BYRETTERNE | D7: 41.66029576 | E7: 44.5094278 | F7: 80.01693998 | G7: 84.79631885 | H7: 365.7794402 | I7: 351.8902443 | J7: 67.1719416 | K7: 70.54290969
B9: 901 | C9: Retten i Hjørring | D9: 48.61 | E9: 54.05 | F9: 81.47 | G9: 79.56 | H9: 362.62 | I9: 344.17 | J9: 67.82 | K9: 70.74
B10: 902 | C10: Retten i Aalborg | D10: 49.36 | E10: 43.56 | F10: 68.96 | G10: 77.98 | H10: 370.89 | I10: 346.07 | J10: 62.04 | K10: 72.21
B11: 903 | C11: Retten i Randers | D11: 40.44 | E11: 43.53 | F11: 67.82 | G11: 68.2 | H11: 373.72 | I11: 349.41 | J11: 63.96 | K11: 57.17
B12: 904 | C12: Retten i Århus | D12: 56.38 | E12: 61.94 | F12: 93.02 | G12: 101 | H12: 382.64 | I12: 374.81 | J12: 72.24 | K12: 81.23
B13: 905 | C13: Retten i Viborg | D13: 40.5 | E13: 38.33 | F13: 75.42 | G13: 75.5 | H13: 359.74 | I13: 329.8 | J13: 65.13 | K13: 64.69
B14: 906 | C14: Retten i Holstebro | D14: 48.3 | E14: 37.03 | F14: 57.01 | G14: 63.75 | H14: 337.9 | I14: 334.93 | J14: 54.62 | K14: 58.81
B15: 907 | C15: Retten i Herning | D15: 49.71 | E15: 66.98 | F15: 77.59 | G15: 96.64 | H15: 366.1 | I15: 351.5 | J15: 69.44 | K15: 87.02
B16: 908 | C16: Retten i Horsens | D16: 65.64 | E16: 49.9 | F16: 104.59 | G16: 91.13 | H16: 450.88 | I16: 401.01 | J16: 86.66 | K16: 76.48
B17: 909 | C17: Retten i Kolding | D17: 32.84 | E17: 37 | F17: 76.5 | G17: 79.56 | H17: 350.68 | I17: 345.44 | J17: 82.78 | K17: 68
B18: 910 | C18: Retten i Esbjerg | D18: 37.5 | E18: 42.53 | F18: 73.04 | G18: 80.03 | H18: 366.83 | I18: 351.47 | J18: 55.8 | K18: 65.49
B19: 911 | C19: Retten i Sønderborg | D19: 46.27 | E19: 55.72 | F19: 81.12 | G19: 92.13 | H19: 399.66 | I19: 370.18 | J19: 79.43 | K19: 77.17
B20: 912 | C20: Retten i Odense | D20: 45.83 | E20: 56.57 | F20: 75.38 | G20: 74.72 | H20: 364.6 | I20: 366.03 | J20: 69.16 | K20: 74.1
B21: 913 | C21: Retten i Svendborg | D21: 32.47 | E21: 31.89 | F21: 62.77 | G21: 69.25 | H21: 356.27 | I21: 349.52 | J21: 53.02 | K21: 55.04
B22: 914 | C22: Retten i Nykøbing F. | D22: 35.78 | E22: 37.36 | F22: 42.48 | G22: 44.76 | H22: 374.12 | I22: 342.11 | J22: 39.11 | K22: 41.11
B23: 915 | C23: Retten i Næstved | D23: 36.54 | E23: 42.57 | F23: 101.34 | G23: 93.23 | H23: 351.65 | I23: 350.27 | J23: 69.36 | K23: 73.72
B24: 916 | C24: Retten i Holbæk | D24: 39.53 | E24: 39.28 | F24: 99.42 | G24: 99.41 | H24: 373.27 | I24: 373.88 | J24: 71 | K24: 77.33
B25: 917 | C25: Retten i Roskilde | D25: 51.58 | E25: 54.44 | F25: 90.2 | G25: 105.41 | H25: 368.01 | I25: 350.12 | J25: 86.93 | K25: 86.52
B26: 918 | C26: Retten i Hillerød | D26: 27.85 | E26: 32.3 | F26: 70.74 | G26: 75.94 | H26: 349.26 | I26: 340.25 | J26: 59.34 | K26: 60.94
B27: 919 | C27: Retten i Helsingør | D27: 39.57 | E27: 43.7 | F27: 90.06 | G27: 104.25 | H27: 371.8 | I27: 371.9 | J27: 86.47 | K27: 79.45
B28: 920 | C28: Retten i Lyngby | D28: 36.39 | E28: 46.93 | F28: 99.23 | G28: 115.8 | H28: 387.38 | I28: 369.9 | J28: 62.98 | K28: 81.54
B29: 921 | C29: Retten i Glostrup | D29: 39.56 | E29: 39.48 | F29: 93.16 | G29: 96.4 | H29: 346.9 | I29: 324.34 | J29: 65.91 | K29: 66.07
B30: 922 | C30: Retten på Frederiksberg | D30: 41.42 | E30: 44.35 | F30: 84.76 | G30: 108.92 | H30: 351.8 | I30: 341.9 | J30: 75.54 | K30: 79.15
B31: 923 | C31: Københavns Byret | D31: 28.91 | E31: 33.35 | F31: 83.15 | G31: 80.58 | H31: 345.52 | I31: 335.87 | J31: 67.15 | K31: 74.73
B32: 924 | C32: Retten på Bornholm | D32: 16.75 | E32: 20.89 | F32: 34.52 | G32: 30.76 | H32: 334.82 | I32: 306.39 | J32: 25.03 | K32: 32.04

Sheet HR-nøgletal_lønsum
B2: UDVALGTE HR-NØGLETAL
B4: EID | C4: Ret | D4: Gnst. antal sygedage pr. ansat | F4: Personaleomsætning (%) | H4: Lønsumsforbrug (mio.)
D5: 2014 | E5: 2015 | F5: 2014 | G5: 2015 | H5: 2014 | I5: 2015
C6: 5. BEDSTE RET | D6: 6.3 | E6: 5.9
C7: SAMLET BYRETTERNE | D7: 9.3 | E7: 9.1 | F7: =SUM(F9:F32)/24 -> 13.8375 | G7: 9.954166667 | H7: =SUM(H9:H32)/24 -> 31.60924578 | I7: =SUM(I9:I32)/24 -> 31.31840759
B9: 901 | C9: Retten i Hjørring | D9: 8.3 | E9: 5.9 | F9: 5.7 | G9: 5.8 | H9: 23.90913679 | I9: 23.92788749
B10: 902 | C10: Retten i Aalborg | D10: 8.5 | E10: 9.8 | F10: 14.9 | G10: 6 | H10: 36.63402749 | I10: 35.33456669
B11: 903 | C11: Retten i Randers | D11: 8.6 | E11: 7.5 | F11: 16.8 | G11: 7.2 | H11: 25.62575263 | I11: 25.50176153
B12: 904 | C12: Retten i Århus | D12: 7.5 | E12: 8 | F12: 13.7 | G12: 12.3 | H12: 40.6273674 | I12: 40.90032181
B13: 905 | C13: Retten i Viborg | D13: 6.3 | E13: 5 | F13: 19.2 | G13: 7.4 | H13: 24.61018693 | I13: 25.06499927
B14: 906 | C14: Retten i Holstebro | D14: 7.1 | E14: 7.8 | F14: 14.1 | G14: 11.2 | H14: 19.09541128 | I14: 19.36654729
B15: 907 | C15: Retten i Herning | D15: 5.2 | E15: 4.1 | F15: 15.6 | G15: 13.3 | H15: 19.00288448 | I15: 18.70789614
B16: 908 | C16: Retten i Horsens | D16: 7.7 | E16: 14.6 | F16: 15.7 | G16: 23.2 | H16: 24.09609649 | I16: 23.04821055
B17: 909 | C17: Retten i Kolding | D17: 15.6 | E17: 8.6 | F17: 15.3 | G17: 11.2 | H17: 33.98298785 | I17: 33.44978416
B18: 910 | C18: Retten i Esbjerg | D18: 7.5 | E18: 8.7 | F18: 15.2 | G18: 19.6 | H18: 25.05472688 | I18: 24.04603543
B19: 911 | C19: Retten i Sønderborg | D19: 6.2 | E19: - | F19: 10.3 | G19: 7.8 | H19: 30.87363142 | I19: 31.31045844
B20: 912 | C20: Retten i Odense | D20: 10.7 | E20: 8.4 | F20: 7.9 | G20: 11.3 | H20: 38.61886183 | I20: 37.59849863
B21: 913 | C21: Retten i Svendborg | D21: 6.2 | E21: 7.6 | F21: 14.5 | G21: 7 | H21: 18.51114105 | I21: 18.3421697
B22: 914 | C22: Retten i Nykøbing F. | D22: 7.4 | E22: 6.1 | F22: 11.5 | G22: 6.2 | H22: 25.17850572 | I22: 24.84873316
B23: 915 | C23: Retten i Næstved | D23: 8 | E23: 9 | F23: 12.6 | G23: 6.8 | H23: 29.79163161 | I23: 28.62373068
B24: 916 | C24: Retten i Holbæk | D24: 8.7 | E24: 8.7 | F24: 18.7 | G24: 8.7 | H24: 22.46541318 | I24: 22.39640585
B25: 917 | C25: Retten i Roskilde | D25: 6.3 | E25: 12.6 | F25: 11.9 | G25: 2.9 | H25: 37.60096141 | I25: 36.05708979
B26: 918 | C26: Retten i Hillerød | D26: 9.8 | E26: - | F26: 12.9 | G26: 7.4 | H26: 25.43023796 | I26: 24.46727605
B27: 919 | C27: Retten i Helsingør | D27: 9.6 | E27: 11 | F27: 8.1 | G27: 10.9 | H27: 24.29663369 | I27: 23.63991032
B28: 920 | C28: Retten i Lyngby | D28: 9 | E28: 5.6 | F28: 16.5 | G28: 16.6 | H28: 29.34078699 | I28: 28.24267451
B29: 921 | C29: Retten i Glostrup | D29: 8.3 | E29: 8.6 | F29: 17.3 | G29: 6.6 | H29: 54.12637493 | I29: 52.60025092
B30: 922 | C30: Retten på Frederiksberg | D30: 13 | E30: 17 | F30: 15.6 | G30: 4.5 | H30: 40.72638703 | I30: 42.74148875
B31: 923 | C31: Københavns Byret | D31: 10.1 | E31: 12.7 | F31: 8.7 | G31: 2.5 | H31: 101.9412044 | I31: 104.3905402
B32: 924 | C32: Retten på Bornholm | D32: 7.4 | E32: 1.8 | F32: 19.4 | G32: 22.5 | H32: 7.08154941 | I32: 7.03454467
B34: 1) Tallene er ekskl. ansatte under socialt kapitel. Deltidssygdom er inkluderet, men barns sygdom, omsorgsdage og særlige feriedage indgår ikke.
B35: 2) Lønsumsforbruget inkluderer egentlig løn, over- og merarbejde, stævningsmænd, refusioner og pensionsbidrag og er i faste priser.
B36: 3) Perioden for personaleomsætningen opgøres af ISOLA som rullende år og løber fra november 2014 til november 2015.
B37: 4) Det gennemsnitlige antal sygedage pr. ansat er beregnet med sygefraværstallet for alle byretterne, de to landsretter, Højesteret, Sø- og Handelsretten samt Tinglysningsretten.
B39: 5) Der foreligger ikke ISOLA tal for sygefraværet i 2015 ved Retten i Sønderborg og Retten i Hillerød.

Sheet Årsværk_Pers.kat
B2: ÅRSVÆRKSFORBRUG 2014 OG 2015
B4: EID | C4: Ret | D4: Jur | E4: Kon | F4: Elev | G4: Fleks | H4: Øvr. | I4: I ALT | J4: Jur | K4: Kon | L4: Elev | M4: Fleks | N4: Øvr. | O4: I ALT | P4: Jur | Q4: Kon | R4: Elev | S4: Fleks | T4: Øvr. | U4: I ALT | V4: Jur | W4: Kon | X4: Elev | Y4: Fleks | Z4: Øvr. | AA4: I ALT
D5: 2014 | J5: 2015 | P5: 2014 | V5: 2015
D6: - absolutte tal - | J6: - absolutte tal - | P6: - indeks - | V6: - indeks -
C8: SAMLET BYRETTERNE | D8: 446.18924 | E8: 823.11431 | F8: 83.78272 | G8: 51.87247 | H8: 86.85497 | I8: 1491.81371 | J8: 431.50347 | K8: 801.55996 | L8: 79.28157 | M8: 49.41147 | N8: 87.48138 | O8: 1449.23785 | P8: 100 | Q8: 100 | R8: 100 | S8: 100 | T8: 100 | U8: 100 | V8: =J8*100/D8 -> 96.708623 | W8: =K8*100/E8 -> 97.38136614 | X8: =L8*100/F8 -> 94.62759147 | Y8: 95.25567223 | Z8: 100.7212138 | AA8: =O8*100/I8 -> 97.14603374
B10: 901 | C10: Retten i Hjørring | D10: 13.73052 | E10: 28.51714 | F10: 2.4227 | G10: 3.22177 | H10: 2.16188 | I10: 50.05401 | J10: 13.18267 | K10: 28.19354 | L10: 2.77952 | M10: 3.21998 | N10: 3.03018 | O10: 50.40589 | P10: 100 | Q10: 100 | R10: 100 | S10: 100 | T10: 100 | U10: 100 | V10: =J10*100/D10 -> 96.0099836 | W10: =K10*100/E10 -> 98.86524385 | X10: 114.7281958 | Y10: 99.94444048 | Z10: 140.1641164 | AA10: 100.7030006
B11: 902 | C11: Retten i Aalborg | D11: 23.25516 | E11: 40.42406 | F11: 4.19804 | G11: 2.04024 | H11: 4.84547 | I11: 74.76297 | J11: 20.9191 | K11: 41.67825 | L11: 3.28498 | M11: 1.3895 | N11: 3.19265 | O11: 70.46448 | P11: 100 | Q11: 100 | R11: 100 | S11: 100 | T11: 100 | U11: 100 | V11: =J11*100/D11 -> 89.95465953 | W11: =K11*100/E11 -> 103.102583 | X11: =L11*100/F11 -> 78.25032634 | Y11: =M11*100/G11 -> 68.10473278 | Z11: =N11*100/H11 -> 65.88937709 | AA11: =O11*100/I11 -> 94.25050931
B12: 903 | C12: Retten i Randers | D12: 14.54934 | E12: 26.15055 | F12: 3.46091 | G12: 2.60333 | H12: 4.30409 | I12: 51.06822 | J12: 14.40619 | K12: 25.55332 | L12: 4.04789 | M12: 2.96625 | N12: 4.29155 | O12: 51.2652 | P12: 100 | Q12: 100 | R12: 100 | S12: 100 | T12: 100 | U12: 100 | V12: 99.01610657 | W12: 97.7161857 | X12: 116.9602792 | Y12: 113.9406068 | Z12: 99.70864922 | AA12: 100.3857193
B13: 904 | C13: Retten i Århus | D13: 25.26038 | E13: 41.33383 | F13: 2.09549 | G13: 5.36902 | H13: 7.14232 | I13: 81.20104 | J13: 25.42637 | K13: 40.34725 | L13: 1.99393 | M13: 5.96716 | N13: 5.58009 | O13: 79.3148 | P13: 100 | Q13: 100 | R13: 100 | S13: 100 | T13: 100 | U13: 100 | V13: 100.657116 | W13: 97.61314158 | X13: 95.15340088 | Y13: 111.1405806 | Z13: 78.12713516 | AA13: 97.67707409
B14: 905 | C14: Retten i Viborg | D14: 15.44982 | E14: 26.36467 | F14: 4.28962 | G14: 2.54944 | H14: 3.38298 | I14: 52.03653 | J14: 15.68988 | K14: 25.75541 | L14: 4.15023 | M14: 2.47035 | N14: 3.68406 | O14: 51.74993 | P14: 100 | Q14: 100 | R14: 100 | S14: 100 | T14: 100 | U14: 100 | V14: 101.5538045 | W14: 97.6891044 | X14: 96.75052802 | Y14: 96.89775009 | Z14: 108.8998457 | AA14: 99.44923307
B15: 906 | C15: Retten i Holstebro | D15: 9.49824 | E15: 20.18777 | F15: 2.75617 | G15: 2.00006 | H15: 2.59734 | I15: 37.03958 | J15: 9.99869 | K15: 20.2146 | L15: 2.10971 | M15: 2.00006 | N15: 2.58598 | O15: 36.90904 | P15: 100 | Q15: 100 | R15: 100 | S15: 100 | T15: 100 | U15: 100 | V15: 105.2688709 | W15: 100.1329022 | X15: 76.54498815 | Y15: 100 | Z15: 99.56262946 | AA15: 99.6475662
B16: 907 | C16: Retten i Herning | D16: 11.39788 | E16: 20.21608 | F16: 3.76894 | G16: 0 | H16: 2.08745 | I16: 37.47035 | J16: 11.45896 | K16: 20.62696 | L16: 3.23036 | M16: 0 | N16: 2.00088 | O16: 37.31716 | P16: 100 | Q16: 100 | R16: 100 | S16: 100 | T16: 100 | U16: 100 | V16: 100.5358891 | W16: 102.0324415 | X16: 85.71004049 | Y16: - | Z16: 95.8528348 | AA16: 99.59117009
B17: 908 | C17: Retten i Horsens | D17: 14.3927 | E17: 24.3045 | F17: 3.87724 | G17: 3.00009 | H17: 2.80687 | I17: 48.3814 | J17: 14.10508 | K17: 21.75263 | L17: 3.06074 | M17: 2.75006 | N17: 3.17355 | O17: 44.84206 | P17: 100 | Q17: 100 | R17: 100 | S17: 100 | T17: 100 | U17: 100 | V17: 98.00162582 | W17: 89.50042173 | X17: 78.9412056 | Y17: 91.66591669 | Z17: 113.0636617 | AA17: 92.68450272
B18: 909 | C18: Retten i Kolding | D18: 19.78779 | E18: 36.96165 | F18: 3.54343 | G18: 3.00009 | H18: 3.36084 | I18: 66.6538 | J18: 19.39277 | K18: 35.57804 | L18: 4.07315 | M18: 3.00011 | N18: 3.73559 | O18: 65.77966 | P18: 100 | Q18: 100 | R18: 100 | S18: 100 | T18: 100 | U18: 100 | V18: 98.00371845 | W18: 96.25663356 | X18: 114.949357 | Y18: 100.0006666 | Z18: 111.1504862 | AA18: 98.68853689
B19: 910 | C19: Retten i Esbjerg | D19: 14.62602 | E19: 27.96305 | F19: 3.96933 | G19: 3.23605 | H19: 2.04207 | I19: 51.83652 | J19: 14.08996 | K19: 25.86657 | L19: 3.904 | M19: 2.21903 | N19: 3.0907 | O19: 49.17026 | P19: 100 | Q19: 100 | R19: 100 | S19: 100 | T19: 100 | U19: 100 | V19: 96.3348881 | W19: 92.50267764 | X19: 98.35413029 | Y19: 68.57217905 | Z19: 151.3513249 | AA19: 94.85640626
B20: 911 | C20: Retten i Sønderborg | D20: 15.55415 | E20: 32.17316 | F20: 3.58347 | G20: 1.33745 | H20: 3.16061 | I20: 55.80884 | J20: 16.37808 | K20: 30.6954 | L20: 2.88066 | M20: 1.23184 | N20: 3.58724 | O20: 54.77322 | P20: 100 | Q20: 100 | R20: 100 | S20: 100 | T20: 100 | U20: 100 | V20: 105.2971715 | W20: 95.40685466 | X20: 80.38744569 | Y20: 92.10363004 | Z20: 113.4983437 | AA20: 98.14434416
B21: 912 | C21: Retten i Odense | D21: 23.71285 | E21: 43.9482 | F21: 2.64294 | G21: 2.00006 | H21: 4.77327 | I21: 77.07732 | J21: 22.71669 | K21: 37.21079 | L21: 2.70966 | M21: 2.27859 | N21: 4.41923 | O21: 69.33496 | P21: 100 | Q21: 100 | R21: 100 | S21: 100 | T21: 100 | U21: 100 | V21: 95.79907097 | W21: 84.66965655 | X21: 102.5244614 | Y21: 113.9260822 | Z21: 92.58286248 | AA21: 89.95507368
B22: 913 | C22: Retten i Svendborg | D22: 10.27236 | E22: 20.21508 | F22: 2.31373 | G22: 1.00003 | H22: 2.81897 | I22: 36.62017 | J22: 9.97958 | K22: 19.38742 | L22: 2.65107 | M22: 1.00003 | N22: 3.28316 | O22: 36.30126 | P22: 100 | Q22: 100 | R22: 100 | S22: 100 | T22: 100 | U22: 100 | V22: 97.1498273 | W22: 95.90572978 | X22: 114.5799207 | Y22: 100 | Z22: 116.4666527 | AA22: 99.12914113
B23: 914 | C23: Retten i Nykøbing F. | D23: 13.82973 | E23: 30.67865 | F23: 2.40278 | G23: 0.41641 | H23: 2.99735 | I23: 50.32492 | J23: 14.06912 | K23: 29.58863 | L23: 1.80114 | M23: 0 | N23: 2.93638 | O23: 48.39527 | P23: 100 | Q23: 100 | R23: 100 | S23: 100 | T23: 100 | U23: 100 | V23: 101.730981 | W23: 96.44697534 | X23: 74.96067056 | Y23: 0 | Z23: 97.96586985 | AA23: 96.16561735
B24: 915 | C24: Retten i Næstved | D24: 17.55258 | E24: 34.2524 | F24: 2.64586 | G24: 2.94262 | H24: 3.25647 | I24: 60.64993 | J24: 16.36537 | K24: 33.32264 | L24: 3.45738 | M24: 3.86152 | N24: 2.8611 | O24: 59.86801 | P24: 100 | Q24: 100 | R24: 100 | S24: 100 | T24: 100 | U24: 100 | V24: 93.23626498 | W24: 97.28556247 | X24: 130.6713129 | Y24: 131.2272737 | Z24: 87.85893928 | AA24: 98.71076521
B25: 916 | C25: Retten i Holbæk | D25: 12.52644 | E25: 25.08951 | F25: 2.86229 | G25: 2.82397 | H25: 2.23873 | I25: 45.54094 | J25: 12.4593 | K25: 25.75207 | L25: 1.25055 | M25: 3.00009 | N25: 2.65085 | O25: 45.11286 | P25: 100 | Q25: 100 | R25: 100 | S25: 100 | T25: 100 | U25: 100 | V25: 99.46401372 | W25: 102.6407849 | X25: 43.69054149 | Y25: 106.2366102 | Z25: 118.4086513 | AA25: 99.06001062
B26: 917 | C26: Retten i Roskilde | D26: 20.71814 | E26: 43.09007 | F26: 3.20558 | G26: 1.00003 | H26: 3.53179 | I26: 71.54561 | J26: 19.29365 | K26: 42.26722 | L26: 3.06145 | M26: 0.7489 | N26: 2.19316 | O26: 67.56438 | P26: 100 | Q26: 100 | R26: 100 | S26: 100 | T26: 100 | U26: 100 | V26: 93.12443105 | W26: 98.0903953 | X26: 95.50377779 | Y26: 74.88775337 | Z26: 62.09768984 | AA26: 94.43539583
B27: 918 | C27: Retten i Hillerød | D27: 15.82924 | E27: 24.89634 | F27: 3.80985 | G27: 2.32442 | H27: 4.412 | I27: 51.27185 | J27: 14.2453 | K27: 24.07071 | L27: 3.98254 | M27: 2.53011 | N27: 4.31029 | O27: 49.13895 | P27: 100 | Q27: 100 | R27: 100 | S27: 100 | T27: 100 | U27: 100 | V27: 89.9935815 | W27: 96.68372942 | X27: 104.5327244 | Y27: 108.8490892 | Z27: 97.69469628 | AA27: 95.84001748
B28: 919 | C28: Retten i Helsingør | D28: 15.65373 | E28: 23.82526 | F28: 3.97373 | G28: 3.32208 | H28: 1.98019 | I28: 48.75499 | J28: 14.08231 | K28: 24.38135 | L28: 3.7185 | M28: 3.53631 | N28: 2.46638 | O28: 48.18485 | P28: 100 | Q28: 100 | R28: 100 | S28: 100 | T28: 100 | U28: 100 | V28: 89.96137023 | W28: 102.3340354 | X28: 93.57706739 | Y28: 106.4486707 | Z28: 124.5526944 | AA28: 98.83060175
B29: 920 | C29: Retten i Lyngby | D29: 18.80749 | E29: 29.49397 | F29: 3.52821 | G29: 0 | H29: 3.43385 | I29: 55.26352 | J29: 15.98318 | K29: 29.50248 | L29: 2.95171 | M29: 0 | N29: 3.52342 | O29: 51.96079 | P29: 100 | Q29: 100 | R29: 100 | S29: 100 | T29: 100 | U29: 100 | V29: 84.98305728 | W29: 100.0288534 | X29: 83.66026966 | Y29: - | Z29: 102.6084424 | AA29: 94.02367059
B30: 921 | C30: Retten i Glostrup | D30: 30.84999 | E30: 63.61432 | F30: 4.94756 | G30: 3.00009 | H30: 4.43343 | I30: 106.84539 | J30: 30.74411 | K30: 59.56152 | L30: 4.88606 | M30: 2.30122 | N30: 5.57551 | O30: 103.06842 | P30: 100 | Q30: 100 | R30: 100 | S30: 100 | T30: 100 | U30: 100 | V30: 99.65679081 | W30: 93.62910741 | X30: 98.75696303 | Y30: 76.70503218 | Z30: 125.7606413 | AA30: 96.46501361
B31: 922 | C31: Retten på Frederiksberg | D31: 25.78624 | E31: 43.13565 | F31: 3.48332 | G31: 2.95008 | H31: 5.54263 | I31: 80.89792 | J31: 24.85565 | K31: 42.96383 | L31: 4.00016 | M31: 2.89752 | N31: 4.58216 | O31: 79.29932 | P31: 100 | Q31: 100 | R31: 100 | S31: 100 | T31: 100 | U31: 100 | V31: 96.39113729 | W31: 99.60167518 | X31: 114.8375688 | Y31: 98.2183534 | Z31: 82.67122287 | AA31: 98.02392942
B32: 923 | C32: Københavns Byret | D32: 59.37777 | E32: 108.74881 | F32: 8.00121 | G32: 1.73514 | H32: 8.26053 | I32: 186.12346 | J32: 58.2112 | K32: 110.58845 | L32: 7.38359 | M32: 0.04284 | N32: 8.91349 | O32: 185.13957 | P32: 100 | Q32: 100 | R32: 100 | S32: 100 | T32: 100 | U32: 100 | V32: 98.03534218 | W32: 101.6916415 | X32: 92.28091751 | Y32: 2.46896504 | Z32: 107.9045776 | AA32: 99.47137776
B33: 924 | C33: Retten på Bornholm | D33: 3.77068 | E33: 7.52959 | F33: 2.00032 | G33: 0 | H33: 1.28384 | I33: 14.58443 | J33: 3.45026 | K33: 6.70088 | L33: 1.91259 | M33: 0 | N33: 1.81378 | O33: 13.87751 | P33: 100 | Q33: 100 | R33: 100 | S33: 100 | T33: 100 | U33: 100 | V33: 91.50232849 | W33: 88.99395585 | X33: 95.61420173 | Y33: - | Z33: 141.2777293 | AA33: 95.15291307
B35: 1) Det opgjorte årsværksforbrug er inkl. de korrektioner, der foretages som led i produktivitetsberegningen, hvorfor det ikke kan stemmes af i forhold til eksempelvis prognoseværktøjet SOL.
B36: 2) Opgørelsen af årsværk for 2014 er genberegnet med de nye årsværksvægte og kan derfor ikke sammenlignes med tal fra Årsnøgletallene for 2014.

Sheet Årsværk_Sagsområder
B2: ÅRSVÆRKSFORBRUG DE ENKELTE SAGSOMRÅDER I 2015
B4: EID | C4: Ret | E4: Straf | G4: Civil | I4: Foged | K4: Skifte | M4: Notarial
E5: Årsværk | F5: % | G5: Årsværk | H5: % | I5: Årsværk | J5: % | K5: Årsværk | L5: % | M5: Årsværk | N5: %
C7: SAMLET BYRETTERNE | D7: Jurister | E7: 168.7104919 | F7: 0.390982932 | G7: 154.3173117 | H7: 0.3576270469 | I7: 39.13567178 | J7: 0.09069607663 | K7: 33.33161498 | L7: 0.07724529997 | M7: 0.373472848 | N7: 0.000865515283
D8: Kontor | E8: 190.1373275 | F8: 0.2372091135 | G8: 147.1260418 | H8: 0.1835496396 | I8: 187.2155574 | J8: 0.2335640086 | K8: 140.0165612 | L8: 0.1746800841 | M8: 13.9478107 | N8: 0.01740083262
D9: Elev | E9: 16.50462892 | F9: 0.2081773724 | G9: 10.7120387 | H9: 0.1351138569 | I9: 24.97165797 | J9: 0.314974312 | K9: 19.78686513 | L9: 0.2495771102 | M9: 0.1418285348 | N9: 0.001788921875
D10: Fleks | E10: 4.981883545 | F10: 0.100824435 | G10: 7.166086659 | H10: 0.1450288093 | I10: 9.428448051 | J10: 0.1908149677 | K10: 4.791980404 | L10: 0.09698113422 | M10: 1.310457253 | N10: 0.02652131688
D11: Øvrige | E11: 4.738885474 | F11: 0.05417021856 | G11: 3.918131774 | H11: 0.04478817977 | I11: 6.314878028 | J11: 0.07218539566 | K11: 1.310956057 | L11: 0.01498554386 | M11: 0.260812568 | N11: 0.002981349494
B13: 901 | C13: Retten i Hjørring | D13: Jurister | E13: 4.617954358 | F13: 0.3503049351 | G13: 4.348392494 | H13: 0.3298567357 | I13: 1.175089267 | J13: 0.08913894279 | K13: 1.112744 | L13: 0.08440960746 | M13: 0.0007708824826 | N13: 5.847696124e-05
B14: 901 | C14: Retten i Hjørring | D14: Kontor | E14: 5.502961113 | F14: 0.1951851776 | G14: 5.04516251 | H14: 0.1789474649 | I14: 7.952603013 | J14: 0.2820718155 | K14: 5.885180544 | L14: 0.2087421638 | M14: 0.2496728504 | N14: 0.008855675818
B15: 901 | C15: Retten i Hjørring | D15: Elev | E15: 0.6112834011 | F15: 0.219924088 | G15: 1.072437305 | H15: 0.3858354338 | I15: 0.4849796053 | J15: 0.174483222 | K15: 0.5202654026 | L15: 0.1871781468 | M15: 0.0009430571583 | N15: 0.0003392877757
B16: 901 | C16: Retten i Hjørring | D16: Fleks | E16: 0.9854172967 | F16: 0.3060321172 | G16: 0.9873986701 | H16: 0.3066474543 | I16: 0.634430261 | J16: 0.1970292552 | K16: 0.2530761936 | L16: 0.07859557934 | M16: 0.3434520821 | N16: 0.1066627998
B17: 901 | C17: Retten i Hjørring | D17: Øvrige | E17: 0.1373948364 | F17: 0.04534213691 | G17: 0.1280332764 | H17: 0.04225269668 | I17: 0.02869399054 | J17: 0.009469401334 | K17: 0.03654164788 | L17: 0.0120592334 | M17: 0 | N17: 0
B18: 902 | C18: Retten i Aalborg | D18: Jurister | E18: 8.111385695 | F18: 0.3877502232 | G18: 8.011098902 | H18: 0.3829561932 | I18: 1.965092563 | J18: 0.0939377202 | K18: 1.780011963 | L18: 0.08509027457 | M18: 0.002091057265 | N18: 9.995923652e-05
B19: 902 | C19: Retten i Aalborg | D19: Kontor | E19: 8.117665884 | F19: 0.1947698352 | G19: 8.27323283 | H19: 0.1985024043 | I19: 9.151334652 | J19: 0.2195709909 | K19: 8.385933284 | L19: 0.2012064634 | M19: 0.7943656596 | N19: 0.0190594773
B20: 902 | C20: Retten i Aalborg | D20: Elev | E20: 0.844713547 | F20: 0.2571441978 | G20: 0.03274501609 | H20: 0.009968102117 | I20: 1.007128542 | J20: 0.3065858976 | K20: 1.03951302 | L20: 0.3164442461 | M20: 0.007883719774 | N20: 0.002399929307
B21: 902 | C21: Retten i Aalborg | D21: Fleks | E21: 0.2050315804 | F21: 0.1475578125 | G21: 0.000736670973 | H21: 0.0005301698258 | I21: 0.3238388976 | J21: 0.2330614592 | K21: 0.4448964193 | L21: 0.3201845407 | M21: 0 | N21: 0
B22: 902 | C22: Retten i Aalborg | D22: Øvrige | E22: 0.1183946357 | F22: 0.03708349982 | G22: 0.1285641813 | H22: 0.04026879905 | I22: 1.679890181 | J22: 0.526174238 | K22: 0 | L22: 0 | M22: 0 | N22: 0
B23: 903 | C23: Retten i Randers | D23: Jurister | E23: 4.81487062 | F23: 0.3342223461 | G23: 5.163969587 | H23: 0.3584549133 | I23: 1.365047299 | J23: 0.09475422014 | K23: 1.279620126 | L23: 0.08882432663 | M23: 0.002650733408 | N23: 0.0001839996146
B24: 903 | C24: Retten i Randers | D24: Kontor | E24: 5.210935237 | F24: 0.2039240004 | G24: 6.173816246 | H24: 0.2416052492 | I24: 5.022068526 | J24: 0.1965329173 | K24: 5.83121409 | L24: 0.228197905 | M24: 0.3518930133 | N24: 0.01377093126
B25: 903 | C25: Retten i Randers | D25: Elev | E25: 0.7191218344 | F25: 0.177653502 | G25: 0.1483223057 | H25: 0.0366418815 | I25: 1.273579949 | J25: 0.3146281022 | K25: 1.690234178 | L25: 0.4175593156 | M25: 0 | N25: 0
B26: 903 | C26: Retten i Randers | D26: Fleks | E26: 0.007091899507 | F26: 0.002390863719 | G26: 0 | H26: 0 | I26: 0.01895272769 | J26: 0.006389457292 | K26: 0.1161448395 | L26: 0.03915544527 | M26: 0.02988639876 | N26: 0.01007548209
B27: 903 | C27: Retten i Randers | D27: Øvrige | E27: 0.0003176992184 | F27: 7.402901479e-05 | G27: 0 | H27: 0 | I27: 0.335242835 | J27: 0.07811695891 | K27: 0 | L27: 0 | M27: 0 | N27: 0
B28: 904 | C28: Retten i Århus | D28: Jurister | E28: 10.65018947 | F28: 0.4188639382 | G28: 8.88421556 | H28: 0.349409513 | I28: 1.772328834 | J28: 0.06970435945 | K28: 2.014891578 | L28: 0.07924416966 | M28: 0.07797377521 | N28: 0.003066649907
B29: 904 | C29: Retten i Århus | D29: Kontor | E29: 12.2493945 | F29: 0.3035992415 | G29: 7.471918816 | H29: 0.1851902872 | I29: 8.511336164 | J29: 0.2109520764 | K29: 7.259991813 | L29: 0.1799377111 | M29: 0.807937114 | N29: 0.02002458938
B30: 904 | C30: Retten i Århus | D30: Elev | E30: 0.4844242873 | F30: 0.2429494954 | G30: 0.291184907 | H30: 0.1460356718 | I30: 0.642024678 | J30: 0.3219895774 | K30: 0.5472963089 | L30: 0.2744812049 | M30: 0.008930624462 | N30: 0.00447890571
B31: 904 | C31: Retten i Århus | D31: Fleks | E31: 0.4432099302 | F31: 0.07427485272 | G31: 1.745176105 | H31: 0.292463434 | I31: 1.839737814 | J31: 0.308310455 | K31: 0 | L31: 0 | M31: 0 | N31: 0
B32: 904 | C32: Retten i Århus | D32: Øvrige | E32: 0.6445807341 | F32: 0.1155143975 | G32: 1.190801161 | H32: 0.2134017839 | I32: 0 | J32: 0 | K32: 0.3919872332 | L32: 0.07024747507 | M32: 0.003336573105 | N32: 0.0005979425252
B33: 905 | C33: Retten i Viborg | D33: Jurister | E33: 4.731121712 | F33: 0.3015397002 | G33: 6.501002394 | H33: 0.4143436657 | I33: 1.817677719 | J33: 0.1158503264 | K33: 1.231288812 | L33: 0.07847662393 | M33: 0.002793418062 | N33: 0.0001780394791
B34: 905 | C34: Retten i Viborg | D34: Kontor | E34: 4.979779451 | F34: 0.1933488712 | G34: 5.996344193 | H34: 0.2328188211 | I34: 7.340560419 | J34: 0.2850104277 | K34: 3.282850795 | L34: 0.1274625718 | M34: 0.6154224599 | N34: 0.02389488111
B35: 905 | C35: Retten i Viborg | D35: Elev | E35: 0.9225325538 | F35: 0.2222846815 | G35: 0.3945890438 | H35: 0.095076428 | I35: 1.803539745 | J35: 0.434563806 | K35: 0.7168458251 | L35: 0.1727243611 | M35: 0.02469628812 | N35: 0.005950583009
B36: 905 | C36: Retten i Viborg | D36: Fleks | E36: 0.5158797475 | F36: 0.2088286063 | G36: 0.6154650472 | H36: 0.2491408291 | I36: 1.18275964 | J36: 0.4787822132 | K36: 0 | L36: 0 | M36: 0 | N36: 0
B37: 905 | C37: Retten i Viborg | D37: Øvrige | E37: 0.1356050309 | F37: 0.03680858372 | G37: 0.08196690426 | H37: 0.02224906876 | I37: 0.7966805604 | J37: 0.2162507018 | K37: 0.0306016631 | L37: 0.008306505079 | M37: 0.001344813535 | N37: 0.0003650357308
B38: 906 | C38: Retten i Holstebro | D38: Jurister | E38: 3.712908041 | F38: 0.3713394496 | G38: 2.75906952 | H38: 0.2759431005 | I38: 0.9729937972 | J38: 0.0973121276 | K38: 1.561762443 | L38: 0.1561967061 | M38: 0.01337013326 | N38: 0.001337188497
B39: 906 | C39: Retten i Holstebro | D39: Kontor | E39: 4.846093863 | F39: 0.2397323649 | G39: 3.505627253 | H39: 0.17342056 | I39: 3.916592141 | J39: 0.1937506625 | K39: 5.010386563 | L39: 0.2478597926 | M39: 0.230048562 | N39: 0.01138031729
B40: 906 | C40: Retten i Holstebro | D40: Elev | E40: 0.2551785629 | F40: 0.1209543316 | G40: 0.01973539974 | H40: 0.009354555718 | I40: 0.5101526742 | J40: 0.2418117534 | K40: 1.025613745 | L40: 0.4861396802 | M40: 0.0002359254889 | N40: 0.0001118283977
B41: 906 | C41: Retten i Holstebro | D41: Fleks | E41: 0 | F41: 0 | G41: 0 | H41: 0 | I41: 0 | J41: 0 | K41: 0 | L41: 0 | M41: 0 | N41: 0
B42: 906 | C42: Retten i Holstebro | D42: Øvrige | E42: 0.0920349098 | F42: 0.03558995421 | G42: 0 | H42: 0 | I42: 0 | J42: 0 | K42: 0 | L42: 0 | M42: 0.1966340669 | N42: 0.0760385103
B43: 907 | C43: Retten i Herning | D43: Jurister | E43: 3.867399351 | F43: 0.3375000307 | G43: 3.972080808 | H43: 0.3466353673 | I43: 1.120974006 | J43: 0.09782510855 | K43: 1.347548512 | L43: 0.1175978023 | M43: 0.005910374216 | N43: 0.0005157862682
B44: 907 | C44: Retten i Herning | D44: Kontor | E44: 4.393451987 | F44: 0.2129956129 | G44: 2.956850005 | H44: 0.143348802 | I44: 4.750868504 | J44: 0.2303232519 | K44: 5.237152868 | L44: 0.2538984353 | M44: 0.3754965845 | N44: 0.01820416506
B45: 907 | C45: Retten i Herning | D45: Elev | E45: 0.2671770768 | F45: 0.082708143 | G45: 0.184600569 | H45: 0.05714550979 | I45: 1.128278413 | J45: 0.3492732738 | K45: 1.250544292 | L45: 0.3871222688 | M45: 0.02202281765 | N45: 0.006817449959
B46: 907 | C46: Retten i Herning | D46: Fleks | E46: 0 | F46: 0 | G46: 0 | H46: 0 | I46: 0 | J46: 0 | K46: 0 | L46: 0 | M46: 0 | N46: 0
B47: 907 | C47: Retten i Herning | D47: Øvrige | E47: 0 | F47: 0 | G47: 0 | H47: 0 | I47: 0 | J47: 0 | K47: 0 | L47: 0 | M47: 0 | N47: 0
B48: 908 | C48: Retten i Horsens | D48: Jurister | E48: 4.289727279 | F48: 0.3041264054 | G48: 5.475998684 | H48: 0.3882288285 | I48: 1.496452213 | J48: 0.106093139 | K48: 1.525024927 | L48: 0.1081188428 | M48: 0.05474756236 | N48: 0.003881407433
B49: 908 | C49: Retten i Horsens | D49: Kontor | E49: 3.947868231 | F49: 0.1814892374 | G49: 3.771306382 | H49: 0.1733724327 | I49: 6.040774211 | J49: 0.2777031656 | K49: 3.979841748 | L49: 0.1829591065 | M49: 0.4878480322 | N49: 0.02242708271
B50: 908 | C50: Retten i Horsens | D50: Elev | E50: 0.2214187191 | F50: 0.07234156416 | G50: 0.992678957 | H50: 0.324326456 | I50: 0.8136427854 | J50: 0.2658320489 | K50: 0.5045137326 | L50: 0.164833907 | M50: 0.02584133156 | N50: 0.008442837862
B51: 908 | C51: Retten i Horsens | D51: Fleks | E51: 0 | F51: 0 | G51: 0.8386869202 | H51: 0.304970408 | I51: 0 | J51: 0 | K51: 1.125386957 | L51: 0.4092226922 | M51: 0.0002546941986 | N51: 9.261405156e-05
B52: 908 | C52: Retten i Horsens | D52: Øvrige | E52: 0.2596834543 | F52: 0.08182743434 | G52: 0.04521341844 | H52: 0.01424695323 | I52: 0.1583365235 | J52: 0.04989255675 | K52: 0.3602929874 | L52: 0.1135299546 | M52: 0 | N52: 0
B53: 909 | C53: Retten i Kolding | D53: Jurister | E53: 6.96619398 | F53: 0.3592160367 | G53: 8.4014806 | H53: 0.4332274657 | I53: 1.660530501 | J53: 0.08562626695 | K53: 1.135379451 | L53: 0.05854653313 | M53: 0.0005731443016 | N53: 2.95545351e-05
B54: 909 | C54: Retten i Kolding | D54: Kontor | E54: 6.45905975 | F54: 0.1815462501 | G54: 7.368216367 | H54: 0.2071001204 | I54: 8.230256881 | J54: 0.2313296877 | K54: 7.802357324 | L54: 0.2193026183 | M54: 0.8894226384 | N54: 0.02499920283
B55: 909 | C55: Retten i Kolding | D55: Elev | E55: 0.633757695 | F55: 0.1555939985 | G55: 0.003062074697 | H55: 0.0007517706682 | I55: 1.707851261 | J55: 0.4192949586 | K55: 1.330717069 | L55: 0.3267046559 | M55: 0.0009573784184 | N55: 0.0002350461973
B56: 909 | C56: Retten i Kolding | D56: Fleks | E56: 0.9828784048 | F56: 0.3276141224 | G56: 0.0008055325468 | H56: 0.0002685010039 | I56: 0.9820533165 | J56: 0.3273391031 | K56: 0.01723962926 | L56: 0.005746332388 | M56: 0.002776647216 | N56: 0.0009255151365
B57: 909 | C57: Retten i Kolding | D57: Øvrige | E57: 0 | F57: 0 | G57: 0 | H57: 0 | I57: 0.7235928635 | J57: 0.1937024308 | K57: 0 | L57: 0 | M57: 0 | N57: 0
B58: 910 | C58: Retten i Esbjerg | D58: Jurister | E58: 7.058983166 | F58: 0.50099384 | G58: 3.569549064 | H58: 0.2533399004 | I58: 1.616568956 | J58: 0.1147319762 | K58: 0.7136500017 | L58: 0.05064954064 | M58: 0.02861205377 | N58: 0.002030669624
B59: 910 | C59: Retten i Esbjerg | D59: Kontor | E59: 5.356978897 | F59: 0.2071004736 | G59: 4.730347072 | H59: 0.1828749259 | I59: 6.656319409 | J59: 0.2573328976 | K59: 6.075200959 | L59: 0.2348668942 | M59: 0.3221902285 | N59: 0.01245585435
B60: 910 | C60: Retten i Esbjerg | D60: Elev | E60: 0.7332626404 | F60: 0.1878234222 | G60: 0.4084426924 | H60: 0.1046215913 | I60: 1.618506808 | J60: 0.4145765388 | K60: 0.9243078836 | L60: 0.2367591915 | M60: 0.0003463348561 | N60: 8.871282175e-05
B61: 910 | C61: Retten i Esbjerg | D61: Fleks | E61: 0 | F61: 0 | G61: 0.09417011657 | H61: 0.04243751394 | I61: 0.8434379001 | J61: 0.3800930587 | K61: 1.154663614 | L61: 0.5203461036 | M61: 0.006752986682 | N61: 0.003043215586
B62: 910 | C62: Retten i Esbjerg | D62: Øvrige | E62: 0 | F62: 0 | G62: 0 | H62: 0 | I62: 0 | J62: 0 | K62: 0 | L62: 0 | M62: 0 | N62: 0
B63: 911 | C63: Retten i Sønderborg | D63: Jurister | E63: 6.173312989 | F63: 0.3769253166 | G63: 6.823026631 | H63: 0.416595024 | I63: 1.359019988 | J63: 0.0829779796 | K63: 0.9664187596 | L63: 0.05900684083 | M63: 0.01306384818 | N63: 0.0007976422257
B64: 911 | C64: Retten i Sønderborg | D64: Kontor | E64: 6.734390305 | F64: 0.2193941211 | G64: 6.038072818 | H64: 0.1967093707 | I64: 7.762061608 | J64: 0.2528737729 | K64: 6.66949211 | L64: 0.2172798566 | M64: 0.776458925 | N64: 0.02529561188
B65: 911 | C65: Retten i Sønderborg | D65: Elev | E65: 0.5713007588 | F65: 0.19832287 | G65: 0.1529189613 | H65: 0.05308469631 | I65: 1.182925946 | J65: 0.4106440699 | K65: 0.684259199 | L65: 0.2375355644 | M65: 0.01950222631 | N65: 0.006770054888
B66: 911 | C66: Retten i Sønderborg | D66: Fleks | E66: 0 | F66: 0 | G66: 0 | H66: 0 | I66: 0 | J66: 0 | K66: 0.4170672805 | L66: 0.3385726073 | M66: 0 | N66: 0
B67: 911 | C67: Retten i Sønderborg | D67: Øvrige | E67: 0.09066913198 | F67: 0.02527545745 | G67: 0.1871004578 | H67: 0.05215721775 | I67: 0.4115205007 | J67: 0.1147178613 | K67: 0.004770310343 | L67: 0.001329799607 | M67: 0 | N67: 0
B68: 912 | C68: Retten i Odense | D68: Jurister | E68: 8.606042108 | F68: 0.3788422569 | G68: 7.35203385 | H68: 0.3236401892 | I68: 2.409911802 | J68: 0.1060855169 | K68: 2.145531214 | L68: 0.09444735187 | M68: 0.02661734771 | N68: 0.001171708894
B69: 912 | C69: Retten i Odense | D69: Kontor | E69: 8.877539354 | F69: 0.2385743316 | G69: 6.552848962 | H69: 0.1761007751 | I69: 9.47342869 | J69: 0.2545882173 | K69: 7.318920801 | L69: 0.1966881327 | M69: 0.8483754195 | N69: 0.02279917786
B70: 912 | C70: Retten i Odense | D70: Elev | E70: 0.2090413174 | F70: 0.0771466964 | G70: 0.9179150308 | H70: 0.3387565343 | I70: 0.165368059 | J70: 0.06102908075 | K70: 1.208365369 | L70: 0.445947229 | M70: 0.001163131978 | N70: 0.0004292538466
B71: 912 | C71: Retten i Odense | D71: Fleks | E71: 0 | F71: 0 | G71: 0 | H71: 0 | I71: 0.1528601326 | J71: 0.06708540485 | K71: 0 | L71: 0 | M71: 0 | N71: 0
B72: 912 | C72: Retten i Odense | D72: Øvrige | E72: 0.02312319307 | F72: 0.005232403173 | G72: 0 | H72: 0 | I72: 0 | J72: 0 | K72: 0 | L72: 0 | M72: 0 | N72: 0
B73: 913 | C73: Retten i Svendborg | D73: Jurister | E73: 3.932937572 | F73: 0.3940985064 | G73: 2.921099712 | H73: 0.2927076803 | I73: 1.085056438 | J73: 0.1087276657 | K73: 1.032914572 | L73: 0.1035028099 | M73: 0.004123711249 | N73: 0.0004132149098
B74: 913 | C74: Retten i Svendborg | D74: Kontor | E74: 4.430907848 | F74: 0.2285455129 | G74: 3.476450045 | H74: 0.1793147332 | I74: 4.807605506 | J74: 0.2479755174 | K74: 4.209246661 | L74: 0.2171122646 | M74: 0.1478344411 | N74: 0.007625276652
B75: 913 | C75: Retten i Svendborg | D75: Elev | E75: 0.5687137785 | F75: 0.2145223546 | G75: 1.001067927 | H75: 0.3776090134 | I75: 0.530582807 | J75: 0.2001391163 | K75: 0.1859141965 | L75: 0.07012798473 | M75: 0 | N75: 0
B76: 913 | C76: Retten i Svendborg | D76: Fleks | E76: 0.1452678146 | F76: 0.1452634567 | G76: 0.002077552911 | H76: 0.002077490586 | I76: 0.03000824172 | J76: 0.0300073415 | K76: 0.0004440852616 | L76: 0.0004440719394 | M76: 0.3136542371 | N76: 0.3136448278
B77: 913 | C77: Retten i Svendborg | D77: Øvrige | E77: 0.1347943912 | F77: 0.04105629675 | G77: 0.138313436 | H77: 0.0421281436 | I77: 0.3948579488 | J77: 0.1202676534 | K77: 0 | L77: 0 | M77: 0 | N77: 0
B78: 914 | C78: Retten i Nykøbing F. | D78: Jurister | E78: 5.302866816 | F78: 0.3769153164 | G78: 4.542488722 | H78: 0.3228694277 | I78: 1.238483609 | J78: 0.08802850562 | K78: 1.672429898 | L78: 0.1188723885 | M78: 0.001747899655 | N78: 0.0001242366015
B79: 914 | C79: Retten i Nykøbing F. | D79: Kontor | E79: 6.502267242 | F79: 0.2197556035 | G79: 3.418367386 | H79: 0.1155297621 | I79: 9.3588313 | J79: 0.3162982301 | K79: 5.972250858 | L79: 0.2018427639 | M79: 0.2850857912 | N79: 0.009634977732
B80: 914 | C80: Retten i Nykøbing F. | D80: Elev | E80: 0.1118385647 | F80: 0.06209321024 | G80: 0.2035610226 | H80: 0.113017879 | I80: 0.8654842561 | J80: 0.4805202572 | K80: 0.1944541995 | L80: 0.107961735 | M80: 0 | N80: 0
B81: 914 | C81: Retten i Nykøbing F. | D81: Fleks | E81: 0 | F81: 0 | G81: 0 | H81: 0 | I81: 0 | J81: 0 | K81: 0 | L81: 0 | M81: 0 | N81: 0
B82: 914 | C82: Retten i Nykøbing F. | D82: Øvrige | E82: 0 | F82: 0 | G82: 0 | H82: 0 | I82: 0 | J82: 0 | K82: 0 | L82: 0 | M82: 0 | N82: 0
B83: 915 | C83: Retten i Næstved | D83: Jurister | E83: 6.209496869 | F83: 0.3794290547 | G83: 5.311391858 | H83: 0.3245506736 | I83: 1.65588695 | J83: 0.1011823717 | K83: 1.704673527 | L83: 0.1041634578 | M83: 0.0009723602128 | N83: 5.941571824e-05
B84: 915 | C84: Retten i Næstved | D84: Kontor | E84: 6.767451845 | F84: 0.2030887062 | G84: 4.828367918 | H84: 0.1448975207 | I84: 9.377636841 | J84: 0.2814193846 | K84: 6.284734133 | L84: 0.1886025277 | M84: 0.4517796144 | N84: 0.01355773775
B85: 915 | C85: Retten i Næstved | D85: Elev | E85: 0.7872541908 | F85: 0.2277025351 | G85: 0.2354742445 | H85: 0.06810771292 | I85: 0.8331169897 | J85: 0.240967724 | K85: 1.279228257 | L85: 0.3699993223 | M85: 0.004825125407 | N85: 0.0013956017
B86: 915 | C86: Retten i Næstved | D86: Fleks | E86: 0 | F86: 0 | G86: 0.01452424703 | H86: 0.003761277174 | I86: 0.4789167977 | J86: 0.1240228712 | K86: 0.09976499129 | L86: 0.02583567903 | M86: 0.1606595623 | N86: 0.04160526485
B87: 915 | C87: Retten i Næstved | D87: Øvrige | E87: 0.1960551604 | F87: 0.06852439984 | G87: 0.03093232975 | H87: 0.0108113417 | I87: 0.002329817943 | J87: 0.0008143084629 | K87: 0 | L87: 0 | M87: 0.0001444478906 | N87: 5.048683743e-05
B88: 916 | C88: Retten i Holbæk | D88: Jurister | E88: 4.206881476 | F88: 0.3376499061 | G88: 3.79701272 | H88: 0.3047532944 | I88: 1.416615292 | J88: 0.1136994287 | K88: 1.231891014 | L88: 0.09887321233 | M88: 0.005080235809 | N88: 0.0004077464873
B89: 916 | C89: Retten i Holbæk | D89: Kontor | E89: 5.753064945 | F89: 0.2234020389 | G89: 4.231666986 | H89: 0.1643233723 | I89: 6.775266104 | J89: 0.2630959804 | K89: 5.216772906 | L89: 0.2025768378 | M89: 0.3357419841 | N89: 0.01303747559
B90: 916 | C90: Retten i Holbæk | D90: Elev | E90: 0.01674671724 | F90: 0.01339148154 | G90: 0.03017671765 | H90: 0.02413075658 | I90: 0.7482350243 | J90: 0.5983247565 | K90: 0.26325075 | L90: 0.2105079765 | M90: 0.002066152303 | N90: 0.001652194877
B91: 916 | C91: Retten i Holbæk | D91: Fleks | E91: 0.7796392972 | F91: 0.2598719696 | G91: 1.220486047 | H91: 0.4068164778 | I91: 0.02255848899 | J91: 0.007519270752 | K91: 0.0001960331151 | L91: 6.534241143e-05 | M91: 0 | N91: 0
B92: 916 | C92: Retten i Holbæk | D92: Øvrige | E92: 0.0296281869 | F92: 0.01117686286 | G92: 0.000616266601 | H92: 0.0002324788657 | I92: 0.003994090773 | J92: 0.001506720778 | K92: 0.2900149145 | L92: 0.1094044984 | M92: 0 | N92: 0
B93: 917 | C93: Retten i Roskilde | D93: Jurister | E93: 7.366669458 | F93: 0.3818183422 | G93: 6.886093987 | H93: 0.3569098635 | I93: 2.063973036 | J93: 0.1069768051 | K93: 1.47101342 | L93: 0.07624339717 | M93: 0.05991397085 | N93: 0.003105372537
B94: 917 | C94: Retten i Roskilde | D94: Kontor | E94: 10.44681548 | F94: 0.2471611685 | G94: 8.354502956 | H94: 0.1976591542 | I94: 10.26991125 | J94: 0.2429757918 | K94: 7.883758935 | L94: 0.1865218232 | M94: 0.6099353149 | N94: 0.01443045734
B95: 917 | C95: Retten i Roskilde | D95: Elev | E95: 0.918293365 | F95: 0.299953736 | G95: 0.4727557433 | H95: 0.1544221671 | I95: 1.028885955 | J95: 0.3360779874 | K95: 0.314214615 | L95: 0.10263588 | M95: 0.0009386386516 | N95: 0.0003065993734
B96: 917 | C96: Retten i Roskilde | D96: Fleks | E96: 0 | F96: 0 | G96: 0 | H96: 0 | I96: 0.1043058923 | J96: 0.1392787987 | K96: 0 | L96: 0 | M96: 0 | N96: 0
B97: 917 | C97: Retten i Roskilde | D97: Øvrige | E97: 0 | F97: 0 | G97: 0 | H97: 0 | I97: 0 | J97: 0 | K97: 0 | L97: 0 | M97: 0 | N97: 0
B98: 918 | C98: Retten i Hillerød | D98: Jurister | E98: 5.188993869 | F98: 0.3642600626 | G98: 5.137895166 | H98: 0.3606730055 | I98: 1.276460698 | J98: 0.0896057435 | K98: 1.39156922 | L98: 0.09768619967 | M98: 0.00646766278 | N98: 0.0004540208195
B99: 918 | C99: Retten i Hillerød | D99: Kontor | E99: 5.691281057 | F99: 0.2364400991 | G99: 4.359442464 | H99: 0.1811098411 | I99: 5.133548806 | J99: 0.2132695216 | K99: 4.727630759 | L99: 0.1964059539 | M99: 0.4770602412 | N99: 0.01981911798
B100: 918 | C100: Retten i Hillerød | D100: Elev | E100: 1.040007324 | F100: 0.2611417145 | G100: 0.8973523298 | H100: 0.2253216113 | I100: 1.320919226 | J100: 0.3316775791 | K100: 0.6642224566 | L100: 0.1667836247 | M100: 0.003330838335 | N100: 0.0008363602963
B101: 918 | C101: Retten i Hillerød | D101: Fleks | E101: 0.0006950586731 | F101: 0.0002747148041 | G101: 0.0008439998174 | H101: 0.0003335822622 | I101: 1.009756297 | J101: 0.3990958088 | K101: 0 | L101: 0 | M101: 0.002228126843 | N101: 0.0008806442576
B102: 918 | C102: Retten i Hillerød | D102: Øvrige | E102: 0.9904397671 | F102: 0.2297849488 | G102: 0.2412698061 | H102: 0.05597530702 | I102: 0.4147634739 | J102: 0.09622634995 | K102: 0 | L102: 0 | M102: 0.05844192917 | N102: 0.01355870003
B103: 919 | C103: Retten i Helsingør | D103: Jurister | E103: 4.660117505 | F103: 0.3309199631 | G103: 5.45395539 | H103: 0.3872912463 | I103: 1.763163018 | J103: 0.1252041049 | K103: 1.229562391 | L103: 0.08731254966 | M103: 0.005499260938 | N103: 0.000390508442
B104: 919 | C104: Retten i Helsingør | D104: Kontor | E104: 5.60455817 | F104: 0.2298707073 | G104: 4.867403984 | H104: 0.1996363607 | I104: 6.114405524 | J104: 0.2507820742 | K104: 4.221848073 | L104: 0.1731589134 | M104: 0.1351646637 | N104: 0.00554377275
B105: 919 | C105: Retten i Helsingør | D105: Elev | E105: 0.7291847848 | F105: 0.1960964864 | G105: 0.5921591057 | H105: 0.1592467677 | I105: 1.430476035 | J105: 0.3846916861 | K105: 0.5990725324 | L105: 0.1611059654 | M105: 0.0006465095012 | N105: 0.0001738629827
B106: 919 | C106: Retten i Helsingør | D106: Fleks | E106: 0.1560764711 | F106: 0.04413540416 | G106: 0.1441605586 | H106: 0.04076581482 | I106: 0.6302401254 | J106: 0.1782197051 | K106: 0.2787872196 | L106: 0.07883562799 | M106: 0.4507925182 | N106: 0.1274753962
B107: 919 | C107: Retten i Helsingør | D107: Øvrige | E107: 0.003290612397 | F107: 0.001334187107 | G107: 0.2568132637 | H107: 0.1041255864 | I107: 0 | J107: 0 | K107: 0 | L107: 0 | M107: 0 | N107: 0
B108: 920 | C108: Retten i Lyngby | D108: Jurister | E108: 4.579527925 | F108: 0.2865217013 | G108: 8.580799678 | H108: 0.5368643586 | I108: 0.838574778 | J108: 0.05246607859 | K108: 1.188906506 | L108: 0.0743848537 | M108: 0.009574208153 | N108: 0.0005990177269
B109: 920 | C109: Retten i Lyngby | D109: Kontor | E109: 5.32343411 | F109: 0.1804402243 | G109: 6.678902237 | H109: 0.226384434 | I109: 4.221557392 | J109: 0.143091611 | K109: 6.414668692 | L109: 0.2174281176 | M109: 1.386845019 | N109: 0.04700774373
B110: 920 | C110: Retten i Lyngby | D110: Elev | E110: 0.5528897806 | F110: 0.1873116873 | G110: 0.2256702647 | H110: 0.07645407737 | I110: 0.5372235466 | J110: 0.1820041761 | K110: 1.032641033 | L110: 0.3498450163 | M110: 0.004654323349 | N110: 0.001576822706
B111: 920 | C111: Retten i Lyngby | D111: Fleks | E111: 0 | F111: 0 | G111: 0 | H111: 0 | I111: 0 | J111: 0 | K111: 0 | L111: 0 | M111: 0 | N111: 0
B112: 920 | C112: Retten i Lyngby | D112: Øvrige | E112: 0.005437820573 | F112: 0.001543335899 | G112: 0.0521333613 | H112: 0.01479623811 | I112: 0.4098418468 | J112: 0.116319328 | K112: 0 | L112: 0 | M112: 0 | N112: 0
B113: 921 | C113: Retten i Glostrup | D113: Jurister | E113: 13.88926341 | F113: 0.4517698969 | G113: 10.82364326 | H113: 0.352055833 | I113: 2.970566621 | J113: 0.09662230004 | K113: 1.088190041 | L113: 0.03539507375 | M113: 0.006117915406 | N113: 0.000198994715
B114: 921 | C114: Retten i Glostrup | D114: Kontor | E114: 14.2222885 | F114: 0.238783169 | G114: 11.56321574 | H114: 0.1941390304 | I114: 16.10317586 | J114: 0.2703620704 | K114: 7.433977029 | L114: 0.1248117414 | M114: 1.047532666 | N114: 0.01758740654
B115: 921 | C115: Retten i Glostrup | D115: Elev | E115: 1.120119583 | F115: 0.2292480205 | G115: 1.069641486 | H115: 0.2189169773 | I115: 1.29691404 | J115: 0.26543146 | K115: 1.205068377 | L115: 0.2466339703 | M115: 0.001274290102 | N115: 0.0002608011571
B116: 921 | C116: Retten i Glostrup | D116: Fleks | E116: 0.5325937177 | F116: 0.2314397223 | G116: 0 | H116: 0 | I116: 0 | J116: 0 | K116: 0.8843131411 | L116: 0.3842801389 | M116: 0 | N116: 0
B117: 921 | C117: Retten i Glostrup | D117: Øvrige | E117: 0.9959173193 | F117: 0.1786235375 | G117: 0.09887227319 | H117: 0.01773331465 | I117: 0.05595784252 | J117: 0.01003636304 | K117: 0.1967473002 | L117: 0.03528776743 | M117: 0.0009107374301 | N117: 0.0001633460311
B118: 922 | C118: Retten på Frederiksberg | D118: Jurister | E118: 10.03937313 | F118: 0.4039070846 | G118: 9.228064373 | H118: 0.3712662664 | I118: 1.633012274 | J118: 0.06569984186 | K118: 1.934401756 | L118: 0.07782543432 | M118: 0.01728336119 | N118: 0.000695349395
B119: 922 | C119: Retten på Frederiksberg | D119: Kontor | E119: 9.205415073 | F119: 0.2142596475 | G119: 8.196501875 | H119: 0.190776797 | I119: 12.49443284 | J119: 0.2908128264 | K119: 6.489365178 | L119: 0.1510425206 | M119: 0.765602831 | N119: 0.01781970627
B120: 922 | C120: Retten på Frederiksberg | D120: Elev | E120: 1.068119014 | F120: 0.2670190727 | G120: 0.4587080512 | H120: 0.1146724259 | I120: 1.726947002 | J120: 0.4317194817 | K120: 0.3556486933 | L120: 0.08890861698 | M120: 0 | N120: 0
B121: 922 | C121: Retten på Frederiksberg | D121: Fleks | E121: 0.2281023263 | F121: 0.07872329658 | G121: 1.501555192 | H121: 0.5182208205 | I121: 1.145862886 | J121: 0.3954633224 | K121: 0 | L121: 0 | M121: 0 | N121: 0
B122: 922 | C122: Retten på Frederiksberg | D122: Øvrige | E122: 0.10917066 | F122: 0.02382515233 | G122: 0.1217105869 | H122: 0.02656183696 | I122: 0.2748753533 | J122: 0.05998816132 | K122: 0 | L122: 0 | M122: 0 | N122: 0
B123: 923 | C123: Københavns Byret | D123: Jurister | E123: 29.16167845 | F123: 0.5009633619 | G123: 19.95388844 | H123: 0.3427843515 | I123: 3.850260351 | J123: 0.06614294759 | K123: 2.085419493 | L123: 0.03582505588 | M123: 0.02292718029 | N123: 0.0003938620109
B124: 923 | C124: Københavns Byret | D124: Kontor | E124: 38.31567582 | F124: 0.346470864 | G124: 18.2389998 | H124: 0.1649268057 | I124: 15.95354251 | J124: 0.1442604767 | K124: 7.085789373 | L124: 0.06407350291 | M124: 1.488094681 | N124: 0.01345614918
B125: 923 | C125: Københavns Byret | D125: Elev | E125: 2.531128975 | F125: 0.3428046486 | G125: 0.8411925593 | H125: 0.1139273117 | I125: 1.782934037 | J125: 0.2414725136 | K125: 1.811899387 | L125: 0.2453954495 | M125: 0 | N125: 0
B126: 923 | C126: Københavns Byret | D126: Fleks | E126: 0 | F126: 0 | G126: 0 | H126: 0 | I126: 0.02872863242 | J126: 0.6706029976 | K126: 0 | L126: 0 | M126: 0 | N126: 0
B127: 923 | C127: Københavns Byret | D127: Øvrige | E127: 0.772347931 | F127: 0.08664932939 | G127: 1.215791052 | H127: 0.136398992 | I127: 0.5546941488 | J127: 0.06223086005 | K127: 0 | L127: 0 | M127: 0 | N127: 0
B128: 924 | C128: Retten på Bornholm | D128: Jurister | E128: 0.5725966034 | F128: 0.165957523 | G128: 0.4190602999 | H128: 0.1214576003 | I128: 0.6119317747 | J128: 0.1773581628 | K128: 0.4867713511 | L128: 0.1410825129 | M128: 0.00459075123 | N128: 0.001330552257
B129: 924 | C129: Retten på Bornholm | D129: Kontor | E129: 1.19804888 | F129: 0.1787897829 | G129: 1.028476969 | H129: 0.1534838661 | I129: 1.797439204 | J129: 0.2682392767 | K129: 1.337995719 | L129: 0.1996746276 | M129: 0.06800196688 | N129: 0.0101482144
B130: 924 | C130: Retten på Bornholm | D130: Elev | E130: 0.5871204485 | F130: 0.3069766382 | G130: 0.06564698731 | H130: 0.0343236069 | I130: 0.5319605848 | J130: 0.2781362366 | K130: 0.4387746113 | L130: 0.2294138374 | M130: 0.01156982141 | N130: 0.006049295148
B131: 924 | C131: Retten på Bornholm | D131: Fleks | E131: 0 | F131: 0 | G131: 0 | H131: 0 | I131: 0 | J131: 0 | K131: 0 | L131: 0 | M131: 0 | N131: 0
B132: 924 | C132: Retten på Bornholm | D132: Øvrige | E132: 0 | F132: 0 | G132: 0 | H132: 0 | I132: 0.06960605029 | J132: 0.03837623653 | K132: 0 | L132: 0 | M132: 0 | N132: 0
B134: 1) Procenten er beregnet i forhold til det samlede årsværksforbrug ved retten inkl. generel ledelse og administration, hvorfor der ikke kan summes op til 100 % for den enkelte ret.
B135: 2) Ansatte under socialt kapitel (fleksjobbere mv.) uden tidsfordeling indgår ikke i denne opgørelse.
B136: 3) Det opgjorte årsværksforbrug er inkl. de korrektioner, der foretages som led i produktivitetsberegningen.

Sheet Dataark til 901-924 (hidden)
B11: Samlet produktivitet, retten | D11: Samlet produktivitet, jurister | F11: Samlet produktivitet, kontor | H11: ÅRVK ledelse og adm. | J11: Sagstider domsmandssager | L11: Sagstider hfh. alm. Civil | N11: Sagstid alm. fogedsag | P11: Målopfyldelse vold | R11: Målopfyldelse voldtægt | T11: Sygefravær | V11: Personaleomsætning | X11: Årsværk retten | Z11: Årsværk jurist | AB11: Årsværk kontor | AD11: Samlet lønsum
A12: Ret | B12: 2013 | C12: 2014 | D12: 2013 | E12: 2014 | F12: 2013 | G12: 2014 | H12: 2013 | I12: 2014 | J12: 2013 | K12: 2014 | L12: 2013 | M12: 2014 | N12: 2013 | O12: 2014 | P12: 2013 | Q12: 2014 | R12: 2013 | S12: 2014 | T12: 2013 | U12: 2014 | V12: 2013 | W12: 2014 | X12: 2013 | Y12: 2014 | Z12: 2013 | AA12: 2014 | AB12: 2013 | AC12: 2014 | AD12: 2013 | AE12: 2014
A13: Retten i Hjørring | B13: 102.9146793 | C13: 103.5231212 | D13: 101.4346809 | E13: 100.759754 | F13: 103.2149744 | G13: 103.3974315 | H13: 0.1868261939 | I13: 0.1665256771 | J13: 96 | K13: 95 | L13: 631.7745665 | M13: 525.5742574 | N13: 49.86269469 | O13: 49.91041129 | P13: 64 | Q13: 56.25 | R13: 75 | S13: 33.33333333 | T13: 5.7 | U13: 8.9 | V13: 12.7 | W13: 5.7 | X13: 53.476 | Y13: 50.05401 | Z13: 14.51677 | AA13: 13.73052 | AB13: 29.3254 | AC13: 28.51714 | AD13: 25.23077424 | AE13: 23.90913679 | AF13: Retten i Hjørring
A14: Retten i Aalborg | B14: 98.62855147 | C14: 96.6556053 | D14: 98.45801217 | E14: 89.37239006 | F14: 98.27397591 | G14: 106.1063077 | H14: 0.1339181623 | I14: 0.1197207669 | J14: 106 | K14: 114 | L14: 593.4757282 | M14: 527.4122807 | N14: 41.55710276 | O14: 43.94413408 | P14: 33.89830508 | Q14: 54.28571429 | R14: 60 | S14: 100 | T14: 5.1 | U14: 7.5 | V14: 12 | W14: 14.9 | X14: 75.60557 | Y14: 74.76297 | Z14: 20.77576 | AA14: 23.25516 | AB14: 43.97071 | AC14: 40.42406 | AD14: 36.32284163 | AE14: 36.63402749 | AF14: Retten i Aalborg
A15: Retten i Randers | B15: 97.0241151 | C15: 103.339095 | D15: 91.55018696 | E15: 96.00976208 | F15: 105.3368061 | G15: 117.9593277 | H15: 0.1980503732 | I15: 0.2099300769 | J15: 151 | K15: 124 | L15: 622.7865854 | M15: 555.5109489 | N15: 47.72560892 | O15: 58.37249399 | P15: 40 | Q15: 47.72727273 | R15: 0 | S15: 66.66666667 | T15: 6.9 | U15: 8.2 | V15: 10.8 | W15: 16.8 | X15: 51.35568 | Y15: 51.06822 | Z15: 14.54448 | AA15: 14.54934 | AB15: 28.09834 | AC15: 26.15055 | AD15: 26.74664964 | AE15: 25.62575263 | AF15: Retten i Randers
A16: Retten i Århus | B16: 98.14882931 | C16: 96.18247078 | D16: 94.28098483 | E16: 89.7982108 | F16: 104.1593869 | G16: 109.6431052 | H16: 0.1656399121 | I16: 0.1516882453 | J16: 140 | K16: 139 | L16: 494.8684211 | M16: 483.0638298 | N16: 56.95581015 | O16: 59.21347896 | P16: 38.46153846 | Q16: 27.08333333 | R16: 100 | S16: 14.28571429 | T16: 10.8 | U16: 9.6 | V16: 11.6 | W16: 13.7 | X16: 83.99051 | Y16: 81.20104 | Z16: 25.22725 | AA16: 25.26038 | AB16: 45.35235 | AC16: 41.33383 | AD16: 41.02113215 | AE16: 40.6273674 | AF16: Retten i Århus
A17: Retten i Viborg | B17: 97.24417792 | C17: 96.93034019 | D17: 92.31263346 | E17: 86.7549527 | F17: 105.8387295 | G17: 111.2954665 | H17: 0.1831987808 | I17: 0.1776954429 | J17: 108 | K17: 128 | L17: 534.7073171 | M17: 519.2689655 | N17: 47.35630204 | O17: 51.79351254 | P17: 67.74193548 | Q17: 62.16216216 | R17: 0 | S17: 100 | T17: 4.7 | U17: 5.9 | V17: 16.2 | W17: 19.2 | X17: 53.08464 | Y17: 52.03653 | Z17: 15.00269 | AA17: 15.44982 | AB17: 28.03999 | AC17: 26.36467 | AD17: 25.88336059 | AE17: 24.61018693 | AF17: Retten i Viborg
A18: Retten i Holstebro | B18: 103.5572491 | C18: 100.812459 | D18: 103.5300145 | E18: 99.45621923 | F18: 106.9435187 | G18: 105.1031682 | H18: 0.2155162205 | I18: 0.2143408913 | J18: 86 | K18: 84 | L18: 475.9032258 | M18: 413.4242424 | N18: 32.54022491 | O18: 34.27151899 | P18: 72.72727273 | Q18: 71.42857143 | R18: 100 | S18: 50 | T18: 5 | U18: 7.3 | V18: 16.2 | W18: 14.1 | X18: 38.40156 | Y18: 37.12805 | Z18: 9.67165 | AA18: 9.58671 | AB18: 20.53304 | AC18: 20.18777 | AD18: 19.40336905 | AE18: 19.09541128 | AF18: Retten i Holstebro
A19: Retten i Herning | B19: 92.5848018 | C19: 99.65816242 | D19: 82.04356593 | E19: 89.417041 | F19: 104.7436876 | G19: 111.3990738 | H19: 0.1955231872 | I19: 0.1893007858 | J19: 94 | K19: 91 | L19: 433.9708738 | M19: 520.7297297 | N19: 46.84155791 | O19: 46.73239437 | P19: 52.63157895 | Q19: 76.92307692 | R19: 16.66666667 | S19: 66.66666667 | T19: 8.6 | U19: 5.7 | V19: 15.3 | W19: 15.6 | X19: 38.76992 | Y19: 37.47035 | Z19: 11.84085 | AA19: 11.39788 | AB19: 20.75833 | AC19: 20.21608 | AD19: 20.02559767 | AE19: 19.00288448 | AF19: Retten i Herning
A20: Retten i Horsens | B20: 96.30874721 | C20: 89.74637006 | D20: 90.97352822 | E20: 80.99846156 | F20: 103.1020684 | G20: 100.8419553 | H20: 0.1979407442 | I20: 0.1918271636 | J20: 96 | K20: 111 | L20: 418 | M20: 434.1073826 | N20: 49.71742972 | O20: 46.29432687 | P20: 47.05882353 | Q20: 40 | R20: 0 | S20: 50 | T20: 5.3 | U20: 7.7 | V20: 13.3 | W20: 15.7 | X20: 49.88988 | Y20: 48.3814 | Z20: 14.06581 | AA20: 14.3927 | AB20: 25.31688 | AC20: 24.3045 | AD20: 24.53226103 | AE20: 24.09609649 | AF20: Retten i Horsens
A21: Retten i Kolding | B21: 103.4065127 | C21: 102.7438446 | D21: 93.44213967 | E21: 95.50833868 | F21: 112.1976912 | G21: 109.1412959 | H21: 0.1814648532 | I21: 0.1734292531 | J21: 105 | K21: 99 | L21: 510.0465116 | M21: 480.371134 | N21: 46.31372549 | O21: 52.97362322 | P21: 61.2244898 | Q21: 60 | R21: 100 | S21: 75 | T21: 11.7 | U21: 15.9 | V21: 6.6 | W21: 15.3 | X21: 67.53552 | Y21: 66.6538 | Z21: 21.33572 | AA21: 19.78779 | AB21: 37.2161 | AC21: 36.96165 | AD21: 35.21200134 | AE21: 33.98298785 | AF21: Retten i Kolding
A22: Retten i Esbjerg | B22: 99.69839621 | C22: 96.95557776 | D22: 95.03327915 | E22: 90.16354519 | F22: 101.4630039 | G22: 101.1639788 | H22: 0.1544399994 | I22: 0.1449473346 | J22: 143 | K22: 133 | L22: 631.4972067 | M22: 627.1860465 | N22: 58.91485835 | O22: 42.71642026 | P22: 30.86419753 | Q22: 40 | R22: 0 | S22: 0 | T22: 10.3 | U22: 8.5 | V22: 15 | W22: 15.2 | X22: 54.27444 | Y22: 51.83652 | Z22: 14.92874 | AA22: 14.62602 | AB22: 29.74744 | AC22: 27.96305 | AD22: 26.28483427 | AE22: 25.05472688 | AF22: Retten i Esbjerg
A23: Retten i Sønderborg | B23: 103.0055282 | C23: 106.4151909 | D23: 98.84884045 | E23: 103.7144091 | F23: 105.9415153 | G23: 108.6960709 | H23: 0.1968216784 | I23: 0.2000639601 | J23: 77 | K23: 81 | L23: 588.0246914 | M23: 405.7076923 | N23: 52.85101266 | O23: 51.7282204 | P23: 75.67567568 | Q23: 63.82978723 | R23: 100 | S23: - | T23: 7 | U23: 6.2 | V23: 10.2 | W23: 10.3 | X23: 58.41784 | Y23: 55.80884 | Z23: 17.36145 | AA23: 15.55415 | AB23: 33.50583 | AC23: 32.17316 | AD23: 32.07104816 | AE23: 30.87363142 | AF23: Retten i Sønderborg
A24: Retten i Odense | B24: 108.3800934 | C24: 96.5395286 | D24: 106.2807687 | E24: 89.58908157 | F24: 110.9626462 | G24: 104.5850874 | H24: 0.1610274217 | I24: 0.1668205188 | J24: 97 | K24: 92 | L24: 460.0165746 | M24: 410.88 | N24: 50.36748596 | O24: 60.92986425 | P24: 51.11111111 | Q24: 45.71428571 | R24: 40 | S24: 30.76923077 | T24: 7.7 | U24: 9.5 | V24: 8.3 | W24: 7.9 | X24: 77.86296 | Y24: 77.07732 | Z24: 21.81471 | AA24: 23.71285 | AB24: 45.22965 | AC24: 43.9482 | AD24: 38.81514503 | AE24: 38.61886183 | AF24: Retten i Odense
A25: Retten i Svendborg | B25: 98.99112703 | C25: 99.80214422 | D25: 96.48288534 | E25: 95.62400779 | F25: 103.5551398 | G25: 107.9791467 | H25: 0.1662743921 | I25: 0.1705922523 | J25: 105 | K25: 122 | L25: 479.2658228 | M25: 477.09375 | N25: 47.2630719 | O25: 56.18881119 | P25: 56.60377358 | Q25: 51.28205128 | R25: 40 | S25: 0 | T25: 14.2 | U25: 7.4 | V25: 17.7 | W25: 14.5 | X25: 36.96098 | Y25: 36.62017 | Z25: 10.30021 | AA25: 10.27236 | AB25: 21.70681 | AC25: 20.21508 | AD25: 19.70705955 | AE25: 18.51114105 | AF25: Retten i Svendborg
A26: Retten i Nykøbing F. | B26: 101.1958707 | C26: 99.31443827 | D26: 103.2506045 | E26: 101.3997252 | F26: 99.98645671 | G26: 96.93095285 | H26: 0.2136326657 | I26: 0.1807260383 | J26: 94 | K26: 80 | L26: 390.2222222 | M26: 382.2692308 | N26: 51.22872467 | O26: 46.03074305 | P26: 43.83561644 | Q26: 67.30769231 | R26: 100 | S26: 50 | T26: 3.8 | U26: 7.2 | V26: 15.8 | W26: 11.5 | X26: 49.93317 | Y26: 50.32492 | Z26: 13.97805 | AA26: 13.82973 | AB26: 30.55141 | AC26: 30.67865 | AD26: 25.6823684 | AE26: 25.17850572 | AF26: Retten i Nykøbing F.
A27: Retten i Næstved | B27: 106.4522251 | C27: 102.3117616 | D27: 101.2406033 | E27: 95.96222851 | F27: 111.6879755 | G27: 108.2319237 | H27: 0.2110018934 | I27: 0.2055415245 | J27: 132 | K27: 137 | L27: 524.7538462 | M27: 502.7627119 | N27: 59.44236241 | O27: 69.69931074 | P27: 38.0952381 | Q27: 31.81818182 | R27: 50 | S27: 22.22222222 | T27: 9 | U27: 8 | V27: 19.7 | W27: 12.6 | X27: 63.45753 | Y27: 60.64993 | Z27: 18.70124 | AA27: 17.55258 | AB27: 35.80973 | AC27: 34.2524 | AD27: 31.63077126 | AE27: 29.79163161 | AF27: Retten i Næstved
A28: Retten i Holbæk | B28: 97.5198651 | C28: 101.478968 | D28: 98.0654575 | E28: 98.97449175 | F28: 95.65987869 | G28: 102.2496137 | H28: 0.1791150763 | I28: 0.1726009196 | J28: 121 | K28: 92 | L28: 423.1904762 | M28: 406.2105263 | N28: 61.38024691 | O28: 62.59675489 | P28: 66.66666667 | Q28: 60 | R28: 66.66666667 | S28: 33.33333333 | T28: 7.3 | U28: 8.7 | V28: 14.1 | W28: 18.7 | X28: 49.02491 | Y28: 45.54094 | Z28: 12.88079 | AA28: 12.52644 | AB28: 27.5082 | AC28: 25.08951 | AD28: 23.08612638 | AE28: 22.46541318 | AF28: Retten i Holbæk
A29: Retten i Roskilde | B29: 101.069153 | C29: 101.644567 | D29: 93.84592474 | E29: 99.36044334 | F29: 107.666467 | G29: 101.7161825 | H29: 0.1856861136 | I29: 0.1794598483 | J29: 152 | K29: 133 | L29: 631.7375566 | M29: 468.0430108 | N29: 62.14235163 | O29: 56.66790871 | P29: 38.46153846 | Q29: 26.66666667 | R29: - | S29: 0 | T29: 8 | U29: 4.5 | V29: 19.9 | W29: 11.9 | X29: 73.92877 | Y29: 71.54561 | Z29: 22.48327 | AA29: 20.71814 | AB29: 41.59892 | AC29: 43.09007 | AD29: 38.57747683 | AE29: 37.60096141 | AF29: Retten i Roskilde
A30: Retten i Hillerød | B30: 98.37624366 | C30: 92.68948395 | D30: 93.0362009 | E30: 83.08629181 | F30: 111.8642549 | G30: 111.2224862 | H30: 0.2259331167 | I30: 0.1991529722 | J30: 93 | K30: 113 | L30: 457.4690265 | M30: 502.826087 | N30: 49.4952913 | O30: 52.278487 | P30: 56.25 | Q30: 41.37931034 | R30: 50 | S30: 50 | T30: 9.2 | U30: 11.2 | V30: 20.1 | W30: 12.9 | X30: 51.95118 | Y30: 51.27185 | Z30: 14.9175 | AA30: 15.82924 | AB30: 25.88941 | AC30: 24.89634 | AD30: 26.59530339 | AE30: 25.43023796 | AF30: Retten i Hillerød
A31: Retten i Helsingør | B31: 96.60724523 | C31: 95.73488114 | D31: 85.9110245 | E31: 81.20297998 | F31: 105.9668203 | G31: 112.4083829 | H31: 0.1578139783 | I31: 0.1449705115 | J31: 106 | K31: 112 | L31: 446.7733333 | M31: 559.9230769 | N31: 55.7016081 | O31: 68.93901858 | P31: 53.84615385 | Q31: 40 | R31: - | S31: 0 | T31: 13.1 | U31: 10.5 | V31: 17.9 | W31: 8.1 | X31: 47.84352 | Y31: 48.75499 | Z31: 14.47586 | AA31: 15.65373 | AB31: 25.18211 | AC31: 23.82526 | AD31: 25.17136882 | AE31: 24.29663369 | AF31: Retten i Helsingør
A32: Retten i Lyngby | B32: 96.82753324 | C32: 88.90590959 | D32: 86.51477605 | E32: 79.383929 | F32: 110.7851418 | G32: 101.3125505 | H32: 0.2167293196 | I32: 0.2029569311 | J32: 103 | K32: 105 | L32: 475.2258065 | M32: 385.046729 | N32: 39.57969813 | O32: 41.28764479 | P32: 72.72727273 | Q32: 60 | R32: 100 | S32: 33.33333333 | T32: 9.7 | U32: 8.8 | V32: 15.3 | W32: 16.5 | X32: 55.74239 | Y32: 55.26352 | Z32: 19.51242 | AA32: 18.80749 | AB32: 29.6227 | AC32: 29.49397 | AD32: 31.14209533 | AE32: 29.34078699 | AF32: Retten i Lyngby
A33: Retten i Glostrup | B33: 98.98202225 | C33: 104.7182355 | D33: 100.008897 | E33: 103.6593422 | F33: 99.29484206 | G33: 101.7834329 | H33: 0.2005362955 | I33: 0.1838177813 | J33: 146 | K33: 142 | L33: 614.8410405 | M33: 509.8187702 | N33: 75.69489089 | O33: 80.59972946 | P33: 43.75 | Q33: 32.89473684 | R33: 0 | S33: 0 | T33: 11.8 | U33: 7.5 | V33: 20.6 | W33: 17.3 | X33: 115.40872 | Y33: 106.84539 | Z33: 32.60759 | AA33: 30.84999 | AB33: 66.42532 | AC33: 63.61432 | AD33: 56.2588608 | AE33: 54.12637493 | AF33: Retten i Glostrup
A34: Retten på Frederiksberg | B34: 101.2561076 | C34: 103.1249909 | D34: 97.63529013 | E34: 96.62965753 | F34: 107.7453051 | G34: 112.175938 | H34: 0.2027823079 | I34: 0.1769760671 | J34: 180 | K34: 162 | L34: 551.3023256 | M34: 542.7112299 | N34: 86.15949623 | O34: 76.66579713 | P34: 8.695652174 | Q34: 26.47058824 | R34: 0 | S34: 40 | T34: 12 | U34: 10.9 | V34: 18.3 | W34: 15.6 | X34: 79.92535 | Y34: 80.89792 | Z34: 23.83584 | AA34: 25.78624 | AB34: 44.71399 | AC34: 43.13565 | AD34: 40.40890417 | AE34: 40.72638703 | AF34: Retten på Frederiksberg
A35: Københavns Byret | B35: 96.14494276 | C35: 94.63679124 | D35: 97.09472333 | E35: 93.86221962 | F35: 91.31934696 | G35: 91.19352344 | H35: 0.2065795179 | I35: 0.2060769464 | J35: 96 | K35: 104 | L35: 512.7992278 | M35: 529.8726592 | N35: 78.12335474 | O35: 73.15736591 | P35: 70 | Q35: 38.02816901 | R35: - | S35: 16.66666667 | T35: 8.1 | U35: 10.3 | V35: 9.6 | W35: 8.7 | X35: 190.18872 | Y35: 186.12346 | Z35: 58.73651 | AA35: 59.37777 | AB35: 113.64497 | AC35: 108.74881 | AD35: 102.9923745 | AE35: 101.9412044 | AF35: Københavns Byret
A36: Retten på Bornholm | B36: 63.43657445 | C36: 62.38123174 | D36: 64.7059556 | E36: 61.18431382 | F36: 66.6434586 | G36: 67.97281795 | H36: 0.3379421224 | I36: 0.3262324987 | J36: 46 | K36: 35 | L36: 291.3529412 | M36: 332.1111111 | N36: 27.57464366 | O36: 27.50285249 | P36: 94.73684211 | Q36: 78.94736842 | R36: 100 | S36: - | T36: 7.2 | U36: 8.7 | V36: 6.4 | W36: 19.4 | X36: 14.55013 | Y36: 14.58443 | Z36: 3.48785 | AA36: 3.77068 | AB36: 7.80507 | AC36: 7.52959 | AD36: 7.31 | AE36: 7.08154941 | AF36: Retten på Bornholm
B37: 0 | C37: 0 | D37: 0 | E37: 0 | F37: 0 | G37: 0 | H37: 0 | I37: 0 | J37: 0 | K37: 0 | L37: 0 | M37: 0 | N37: 0 | O37: 0 | P37: 0 | Q37: 0 | R37: 0 | S37: 0 | T37: 0 | U37: 0 | V37: 0 | W37: 0 | X37: 0 | Y37: 0 | Z37: 0 | AA37: 0 | AB37: 0 | AC37: 0 | AD37: 0 | AE37: 0
B41: Samlet produktivitet, retten | D41: Samlet produktivitet, jurister | F41: Samlet produktivitet, kontor | H41: ÅRVK ledelse og adm. | J41: Sagstider domsmandssager | L41: Sagstider hfh. alm. Civil | N41: Sagstid alm. fogedsag | P41: Målopfyldelse vold | R41: Målopfyldelse voldtægt | T41: Sygefravær | V41: Personaleomsætning | X41: Årsværk retten | Z41: Årsværk jurist | AB41: Årsværk kontor | AD41: Samlet lønsum
A42: Ret | B42: 2010 | C42: 2011 | D42: 2010 | E42: 2011 | F42: 2010 | G42: 2011 | H42: 2011 | J42: 2011 | L42: 2011 | N42: 2011 | P42: 2011 | R42: 2011 | T42: 2011 | V42: 2011 | X42: 2011 | Z42: 2011 | AB42: 2011 | AD42: 2011
A43: Retten i Hjørring | H43: 0.1808500373 | I43: =#REF!-H43 ->  | J43: 93 | K43: =J13-J43 -> 3 | L43: 588.737931 | M43: =L13-L43 -> 43.03663544 | N43: 59.02804965 | O43: =N13-N43 -> -9.165354958 | P43: 72.72727273 | Q43: =P13-P43 -> -8.727272727 | R43: 75 | S43: =R13-R43 -> 0 | T43: 9.195340336 | U43: =T13-T43 -> -3.495340336 | V43: 13.3 | W43: =V13-V43 -> -0.6 | X43: 59.79526 | Y43: =#REF!-X43 ->  | Z43: 13.34803 | AA43: =#REF!-Z43 ->  | AB43: 33.06976 | AC43: =#REF!-AB43 ->  | AD43: 25.84077727 | AE43: =AD13-AD43 -> -0.61000303
A44: Retten i Aalborg | H44: 0.1440885883 | I44: =#REF!-H44 ->  | J44: 89 | K44: =J14-J44 -> 17 | L44: 549.7346939 | M44: =L14-L44 -> 43.74103428 | N44: 81.29756381 | O44: =N14-N44 -> -39.74046105 | P44: 70 | Q44: =P14-P44 -> -36.10169492 | R44: 0 | S44: =R14-R44 -> 60 | T44: 7.44756948 | U44: =T14-T44 -> -2.34756948 | V44: 11.1 | W44: =V14-V44 -> 0.9 | X44: 80.50898 | Y44: =#REF!-X44 ->  | Z44: 22.18722 | AA44: =#REF!-Z44 ->  | AB44: 48.742 | AC44: =#REF!-AB44 ->  | AD44: 38.77436805 | AE44: =AD14-AD44 -> -2.45152642
A45: Retten i Randers | H45: 0.2242573374 | I45: =#REF!-H45 ->  | J45: 160 | K45: -9 | L45: 633.4363636 | M45: -10.64977827 | N45: 76.65538674 | O45: -28.92977782 | P45: 43.1372549 | Q45: -3.137254902 | R45: 0 | S45: 0 | T45: 7.923213529 | U45: -1.023213529 | V45: 6.1 | W45: 4.7 | X45: 58.17027 | Y45: =#REF!-X45 ->  | Z45: 16.642 | AA45: =#REF!-Z45 ->  | AB45: 31.602 | AC45: =#REF!-AB45 ->  | AD45: 28.27830635 | AE45: -1.53165671
A46: Retten i Århus | H46: 0.1740744916 | I46: =#REF!-H46 ->  | J46: 187 | K46: -47 | L46: 585.8815789 | M46: -91.01315789 | N46: 68.09649662 | O46: -11.14068647 | P46: 44.44444444 | Q46: -5.982905983 | R46: 0 | S46: 100 | T46: 10.94548768 | U46: -0.1454876758 | V46: 11.4 | W46: 0.2 | X46: 90.00205 | Y46: =#REF!-X46 ->  | Z46: 26.56876 | AA46: =#REF!-Z46 ->  | AB46: 50.61565 | AC46: =#REF!-AB46 ->  | AD46: 43.96941009 | AE46: -2.94827794
A47: Retten i Viborg | H47: 0.1869106164 | I47: =#REF!-H47 ->  | J47: 110 | K47: -2 | L47: 598.0942408 | M47: -63.38692376 | N47: 70.36160608 | O47: -23.00530404 | P47: 67.64705882 | Q47: 0.09487666034 | R47: 100 | S47: -100 | T47: 7.021671724 | U47: -2.321671724 | V47: 10.2 | W47: 6 | X47: 55.19659 | Y47: =#REF!-X47 ->  | Z47: 15.1701 | AA47: =#REF!-Z47 ->  | AB47: 30.18242 | AC47: =#REF!-AB47 ->  | AD47: 26.64360749 | AE47: -0.7602469
A48: Retten i Holstebro | H48: 0.2156894162 | I48: =#REF!-H48 ->  | J48: 99 | K48: -13 | L48: 517.1038961 | M48: -41.2006703 | N48: 33.32733875 | O48: -0.787113838 | P48: 44.06779661 | Q48: 28.65947612 | R48: 66.66666667 | S48: 33.33333333 | T48: 7.512563132 | U48: -2.512563132 | V48: 11.9 | W48: 4.3 | X48: 46.44103 | Y48: =#REF!-X48 ->  | Z48: 11.27 | AA48: =#REF!-Z48 ->  | AB48: 23.056 | AC48: =#REF!-AB48 ->  | AD48: 21.76629581 | AE48: -2.36292676
A49: Retten i Herning | H49: 0.2140891957 | I49: =#REF!-H49 ->  | J49: 93 | K49: 1 | L49: 504 | M49: -70.02912621 | N49: 46.15043463 | O49: 0.6911232819 | P49: 60.41666667 | Q49: -7.785087719 | R49: 0 | S49: 16.66666667 | T49: 12.53367166 | U49: -3.933671661 | V49: 17.4 | W49: -2.1 | X49: 42.52615 | Y49: =#REF!-X49 ->  | Z49: 11.84873 | AA49: =#REF!-Z49 ->  | AB49: 23.57106 | AC49: =#REF!-AB49 ->  | AD49: 21.11471095 | AE49: -1.08911328
A50: Retten i Horsens | H50: 0.1978894442 | I50: =#REF!-H50 ->  | J50: 75 | K50: 21 | L50: 454.2037037 | M50: -36.2037037 | N50: 53.19851049 | O50: -3.481080771 | P50: 54.23728814 | Q50: -7.178464606 | R50: 999 | S50: -999 | T50: 9.656788281 | U50: -4.356788281 | V50: 12.5 | W50: 0.8 | X50: 53.41053 | Y50: =#REF!-X50 ->  | Z50: 14.38903 | AA50: =#REF!-Z50 ->  | AB50: 26.41923 | AC50: =#REF!-AB50 ->  | AD50: 25.08928797 | AE50: -0.55702694
A51: Retten i Kolding | H51: 0.1649720064 | I51: =#REF!-H51 ->  | J51: 150 | K51: -45 | L51: 651.4146341 | M51: -141.3681225 | N51: 50.7865086 | O51: -4.47278311 | P51: 65.51724138 | Q51: -4.292751583 | R51: 999 | S51: -899 | T51: 8.675627926 | U51: 3.024372074 | V51: 6.1 | W51: 0.5 | X51: 76.6875 | Y51: =#REF!-X51 ->  | Z51: 20.54952 | AA51: =#REF!-Z51 ->  | AB51: 45.06554 | AC51: =#REF!-AB51 ->  | AD51: 36.12998449 | AE51: -0.91798315
A52: Retten i Esbjerg | H52: 0.160884098 | I52: =#REF!-H52 ->  | J52: 134 | K52: 9 | L52: 627.5329949 | M52: 3.96421178 | N52: 57.25041368 | O52: 1.664444668 | P52: 31.91489362 | Q52: -1.050696086 | R52: 20 | S52: -20 | T52: 9.830962196 | U52: 0.469037804 | V52: 12.2 | W52: 2.8 | X52: 56.23196 | Y52: =#REF!-X52 ->  | Z52: 15.1442 | AA52: =#REF!-Z52 ->  | AB52: 32.03157 | AC52: =#REF!-AB52 ->  | AD52: 27.40345038 | AE52: -1.11861611
A53: Retten i Sønderborg | H53: 0.2093655007 | I53: =#REF!-H53 ->  | J53: 146 | K53: -69 | L53: 670.3020134 | M53: -82.27732206 | N53: 66.74565217 | O53: -13.89463951 | P53: 51.25 | Q53: 24.42567568 | R53: 0 | S53: 100 | T53: 5.1 | U53: 1.9 | V53: 12.9 | W53: -2.7 | X53: 62.58565 | Y53: =#REF!-X53 ->  | Z53: 15.411 | AA53: =#REF!-Z53 ->  | AB53: 36.905 | AC53: =#REF!-AB53 ->  | AD53: 32.31378702 | AE53: -0.24273886
A54: Retten i Odense | H54: 0.1463671875 | I54: =#REF!-H54 ->  | J54: 86 | K54: 11 | L54: 428.4694836 | M54: 31.54709102 | N54: 66.62457364 | O54: -16.25708768 | P54: 60.46511628 | Q54: -9.354005168 | R54: 37.5 | S54: 2.5 | T54: 7.222463525 | U54: 0.4775364751 | V54: 20.8 | W54: -12.5 | X54: 89.18757 | Y54: =#REF!-X54 ->  | Z54: 24.26146 | AA54: =#REF!-Z54 ->  | AB54: 52.27552 | AC54: =#REF!-AB54 ->  | AD54: 42.19547545 | AE54: -3.38033042
A55: Retten i Svendborg | H55: 0.2310023534 | I55: =#REF!-H55 ->  | J55: 100 | K55: 5 | L55: 457.0487805 | M55: 22.2170423 | N55: 39.74894068 | O55: 7.514131217 | P55: 60.52631579 | Q55: -3.922542205 | R55: 0 | S55: 40 | T55: 7.534810135 | U55: 6.665189865 | V55: 13.5 | W55: 4.2 | X55: 46.62935 | Y55: =#REF!-X55 ->  | Z55: 12.16381 | AA55: =#REF!-Z55 ->  | AB55: 26.86367 | AC55: =#REF!-AB55 ->  | AD55: 21.33413431 | AE55: -1.62707476
A56: Retten i Nykøbing F. | H56: 0.2106800886 | I56: =#REF!-H56 ->  | J56: 89 | K56: 5 | L56: 511.1076923 | M56: -120.8854701 | N56: 58.32441823 | O56: -7.095693557 | P56: 75 | Q56: -31.16438356 | R56: 33.33333333 | S56: 66.66666667 | T56: 3.1 | U56: 0.7 | V56: 5.9 | W56: 9.9 | X56: 57.71872 | Y56: =#REF!-X56 ->  | Z56: 15.11914 | AA56: =#REF!-Z56 ->  | AB56: 36.06329 | AC56: =#REF!-AB56 ->  | AD56: 27.75952561 | AE56: -2.07715721
A57: Retten i Næstved | H57: 0.2009634119 | I57: =#REF!-H57 ->  | J57: 175 | K57: -43 | L57: 667.1578947 | M57: -142.4040486 | N57: 90.31952363 | O57: -30.87716122 | P57: 19.60784314 | Q57: 18.48739496 | R57: 42.85714286 | S57: 7.142857143 | T57: 9.143692893 | U57: -0.1436928928 | V57: 8.7 | W57: 11 | X57: 71.95559 | Y57: =#REF!-X57 ->  | Z57: 19.95737 | AA57: =#REF!-Z57 ->  | AB57: 40.2327 | AC57: =#REF!-AB57 ->  | AD57: 33.44395386 | AE57: -1.8131826
A58: Retten i Holbæk | H58: 0.2013305659 | I58: =#REF!-H58 ->  | J58: 129 | K58: -8 | L58: 492.7288136 | M58: -69.53833737 | N58: 79.91707956 | O58: -18.53683265 | P58: 45.90163934 | Q58: 20.76502732 | R58: 0 | S58: 66.66666667 | T58: 10.0927266 | U58: -2.792726598 | V58: 3.7 | W58: 10.4 | X58: 52.84805 | Y58: =#REF!-X58 ->  | Z58: 12.96697 | AA58: =#REF!-Z58 ->  | AB58: 31.22812 | AC58: =#REF!-AB58 ->  | AD58: 24.06054675 | AE58: -0.97442037
A59: Retten i Roskilde | H59: 0.1985138754 | I59: =#REF!-H59 ->  | J59: 161 | K59: -9 | L59: 580.0681818 | M59: 51.66937474 | N59: 78.76805332 | O59: -16.62570169 | P59: 57.69230769 | Q59: -19.23076923 | R59: 0 | T59: 8.041632025 | U59: -0.04163202497 | V59: 8.1 | W59: 11.8 | X59: 81.93291 | Y59: =#REF!-X59 ->  | Z59: 20.991 | AA59: =#REF!-Z59 ->  | AB59: 50.15184 | AC59: =#REF!-AB59 ->  | AD59: 40.35202857 | AE59: -1.77455174
A60: Retten i Hillerød | H60: 0.1966681251 | I60: =#REF!-H60 ->  | J60: 94 | K60: =J30-J60 -> -1 | L60: 535.2297297 | M60: -77.76070318 | N60: 69.77698997 | O60: -20.28169867 | P60: 67.56756757 | Q60: -11.31756757 | R60: 0 | S60: 50 | T60: 10.53646297 | U60: -1.33646297 | V60: 15.7 | W60: 4.4 | X60: 59.93847 | Y60: =#REF!-X60 ->  | Z60: 15.51429 | AA60: =#REF!-Z60 ->  | AB60: 31.81079 | AC60: =#REF!-AB60 ->  | AD60: 28.1485882 | AE60: -1.55328481
A61: Retten i Helsingør | H61: 0.1747076542 | I61: =#REF!-H61 ->  | J61: 91 | K61: 15 | L61: 625.1616766 | M61: -178.3883433 | N61: 80.56226998 | O61: -24.86066188 | P61: 65.71428571 | Q61: -11.86813187 | R61: 33.33333333 | T61: 8.100239201 | U61: 4.999760799 | V61: 11 | W61: 6.9 | X61: 59.49472 | Y61: =#REF!-X61 ->  | Z61: 16.67005 | AA61: =#REF!-Z61 ->  | AB61: 30.65085 | AC61: =#REF!-AB61 ->  | AD61: 27.2421141 | AE61: -2.07074528
A62: Retten i Lyngby | H62: 0.215369746 | I62: =#REF!-H62 ->  | J62: 97 | K62: 6 | L62: 681.4340426 | M62: -206.2082361 | N62: 48.64405845 | O62: -9.064360324 | P62: 92 | Q62: -19.27272727 | R62: 0 | S62: 100 | T62: 13.96319244 | U62: -4.263192438 | V62: 11.4 | W62: 3.9 | X62: 64.72881 | Y62: =#REF!-X62 ->  | Z62: 18.96953 | AA62: =#REF!-Z62 ->  | AB62: 37.24601 | AC62: =#REF!-AB62 ->  | AD62: 32.28066977 | AE62: -1.13857444
A63: Retten i Glostrup | H63: 0.1969059645 | I63: =#REF!-H63 ->  | J63: 204 | K63: -58 | L63: 771.7123746 | M63: -156.8713341 | N63: 86.84454431 | O63: -11.14965342 | P63: 31.86813187 | Q63: 11.88186813 | R63: 0 | S63: 0 | T63: 10.93379043 | U63: 0.8662095749 | V63: 11.7 | W63: 8.9 | X63: 130.88573 | Y63: =#REF!-X63 ->  | Z63: 35.62068 | AA63: =#REF!-Z63 ->  | AB63: 77.10199 | AC63: =#REF!-AB63 ->  | AD63: 61.81072972 | AE63: -5.55186892
A64: Retten på Frederiksberg | H64: 0.174762062 | I64: =#REF!-H64 ->  | J64: 165 | K64: 15 | L64: 581.0327869 | M64: -29.7304613 | N64: 111.6069617 | O64: -25.44746547 | P64: 13.79310345 | Q64: -5.097451274 | R64: 0 | S64: 0 | T64: 13.6 | U64: -1.6 | V64: 6.9 | W64: 11.4 | X64: 85.6221 | Y64: =#REF!-X64 ->  | Z64: 23.5809 | AA64: =#REF!-Z64 ->  | AB64: 50.499 | AC64: =#REF!-AB64 ->  | AD64: 41.59169201 | AE64: -1.18278784
A65: Københavns Byret | H65: 0.2193251818 | I65: =#REF!-H65 ->  | J65: 149 | K65: -53 | L65: 545 | M65: -32.2007722 | N65: 119.5509634 | O65: -41.42760866 | P65: 31.50684932 | Q65: 38.49315068 | R65: 12.5 | T65: 9.68431915 | U65: -1.58431915 | V65: 7 | W65: 2.6 | X65: 193.76867 | Y65: =#REF!-X65 ->  | Z65: 57.94189 | AA65: =#REF!-Z65 ->  | AB65: 116.4215 | AC65: =#REF!-AB65 ->  | AD65: 102.5840725 | AE65: 0.40830193
A66: Retten på Bornholm | H66: 0.3437150824 | I66: =#REF!-H66 ->  | J66: 37 | K66: 9 | L66: 359.8181818 | M66: -68.46524064 | N66: 39.08944028 | O66: -11.51479662 | P66: 100 | Q66: -5.263157895 | R66: 999 | S66: -899 | T66: 6.887992143 | U66: 0.3120078568 | V66: 6.4 | W66: 0 | X66: 15.32718 | Y66: =#REF!-X66 ->  | Z66: 3.68583 | AA66: =#REF!-Z66 ->  | AB66: 8.36564 | AC66: =#REF!-AB66 ->  | AD66: 7.34 | AE66: -0.03
B67: 0 | C67: 0 | D67: 0 | E67: 0 | F67: 0 | G67: 0 | H67: 0 | I67: 0 | J67: 0 | K67: 0 | L67: 0 | M67: 0 | N67: 0 | O67: 0 | P67: 0 | Q67: 0 | R67: 0 | S67: 0 | T67: 0 | U67: 0 | V67: 0 | W67: 0 | X67: 0 | Y67: 0 | Z67: 0 | AA67: 0 | AB67: 0 | AC67: 0 | AD67: 0 | AE67: 0
